Workbook

Sheet 1. Utility_Info
AB1: 36
AB2: =VLOOKUP(AB1, $AA$20:$AB$87, 2,0) -> Hydro Hawkesbury Inc. | AC2: =VLOOKUP($AB1, $AA$20:$AF$86, MATCH(AC$20, $AA$20:$AF$20,0),FALSE) ->  | AD2: =VLOOKUP($AB1, $AA$20:$AF$86, MATCH(AD$20, $AA$20:$AF$20,0),FALSE) ->  | AE2: =VLOOKUP($AB1, $AA$20:$AF$86, MATCH(AE$20, $AA$20:$AF$20,0),FALSE) -> 
A13: 2011-12-12 | C13: Notes pages removed - kcr
C17: Name: | D17: Michel Poulin
C19: Title: | D19: Manager
AB20: Company Name
C21: Phone Number: | D21: 613-632-6689 | AA21: 1 | AB21: Algoma Power Inc.
AA22: 2 | AB22: Atikokan Hydro Inc.
C23: Email Address: | D23: michelpoulin@hydrohawkesbury.ca | AA23: 3 | AB23: Attawapiskat Power Corp.
AA24: 4 | AB24: Bluewater Power Distribution Corporation
C25: We are applying for rates effective: | D25: 2012-05-01 | AA25: 5 | AB25: Brant County Power Inc.
AA26: 6 | AB26: Brantford Power Inc.
C27: Last COS Re-based Year | D27: 2010 | AA27: 7 | AB27: Burlington Hydro Inc.
AA28: 8 | AB28: Cambridge and North Dumfries Hydro Inc.
AA29: 9 | AB29: Canadian Niagara Power Inc. - Eastern Ontario Power
AA30: 10 | AB30: Canadian Niagara Power Inc. - Fort Erie
AA31: 11 | AB31: Canadian Niagara Power Inc. - Port Colborne Hydro Inc.
AA32: 12 | AB32: Centre Wellington Hydro Ltd.
AA33: 13 | AB33: Chapleau Public Utilities Corporation
AA34: 14 | AB34: Chatham-Kent Hydro Inc.
AA35: 15 | AB35: Clinton Power Corporation
AA36: 16 | AB36: COLLUS Power Corporation
AA37: 17 | AB37: Cooperative Hydro Embrun Inc.
AA38: 18 | AB38: E.L.K. Energy Inc.
AA39: 19 | AB39: Enersource Hydro Mississauga Inc.
AA40: 20 | AB40: ENWIN Utilities Ltd.
AA41: 21 | AB41: Erie Thames Powerlines Corporation
AA42: 22 | AB42: Espanola Regional Hydro Distribution Corporation
AA43: 23 | AB43: Essex Powerlines Corporation
AA44: 24 | AB44: Festival Hydro Inc.
AA45: 25 | AB45: Festival Hydro Inc. - Hensall
AA46: 26 | AB46: Fort Albany Power Corporation
AA47: 27 | AB47: Fort Frances Power Corporation
AA48: 28 | AB48: Greater Sudbury Hydro Inc.
AA49: 29 | AB49: Grimsby Power Inc.
AA50: 30 | AB50: Guelph Hydro Electric Systems Inc.
AA51: 31 | AB51: Haldimand County Hydro Inc.
AA52: 32 | AB52: Halton Hills Hydro Inc.
AA53: 33 | AB53: Hearst Power Distribution Company Limited
AA54: 34 | AB54: Horizon Utilities Corporation
AA55: 35 | AB55: Hydro 2000 Inc.
AA56: 36 | AB56: Hydro Hawkesbury Inc.
AA57: 37 | AB57: Hydro One Brampton Networks Inc.
AA58: 38 | AB58: Hydro One Networks Inc.
AA59: 39 | AB59: Hydro Ottawa Limited
AA60: 40 | AB60: Innisfil Hydro Distribution Systems Limited
AA61: 41 | AB61: Kashechewan Power Corporation
AA62: 42 | AB62: Kenora Hydro Electric Corporation Ltd.
AA63: 43 | AB63: Kingston Hydro Corporation
AA64: 44 | AB64: Kitchener-Wilmot Hydro Inc.
AA65: 45 | AB65: Lakefront Utilities Inc.
AA66: 46 | AB66: Lakeland Power Distribution Ltd.
AA67: 47 | AB67: London Hydro Inc.
AA68: 48 | AB68: Middlesex Power Distribution Corporation
AA69: 49 | AB69: Middlesex Power Distribution Corporation - Dutton
AA70: 50 | AB70: Middlesex Power Distribution Corporation - Newbury
AA71: 51 | AB71: Midland Power Utility Corporation
AA72: 52 | AB72: Milton Hydro Distribution inc.
AA73: 53 | AB73: Newmarket - Tay Power Distribution Ltd.
AA74: 54 | AB74: Niagara Peninsula Energy Inc.
AA75: 55 | AB75: Niagara-on-the-Lake Hydro Inc.
AA76: 56 | AB76: Norfolk Power Distribution Inc.
AA77: 57 | AB77: North Bay Hydro Distribution Limited
AA78: 58 | AB78: Northern Ontario Wires Inc.
AA79: 59 | AB79: Oakville Hydro Electricity Distribution Inc.
AA80: 60 | AB80: Orangeville Hydro Limited
AA81: 61 | AB81: Orillia Power Distribution Corporation
AA82: 62 | AB82: Oshawa PUC Networks Inc.
AA83: 63 | AB83: Ottawa River Power Corporation
AA84: 64 | AB84: Parry Sound Power Corporation
AA85: 65 | AB85: Peterborough Distribution Incorporated
AA86: 66 | AB86: PowerStream Inc. - Barrie
AA87: 67 | AB87: PowerStream Inc. - South
AA88: 68 | AB88: PUC Distribution Inc.
AA89: 69 | AB89: Renfrew Hydro Inc.
AA90: 70 | AB90: Rideau St. Lawrence Distribution Inc.
AA91: 71 | AB91: Sioux Lookout Hydro Inc.
AA92: 72 | AB92: St. Thomas Energy Inc.
AA93: 73 | AB93: Thunder Bay Hydro Electricity Distribution Inc.
AA94: 74 | AB94: Tillsonburg Hydro Inc.
AA95: 75 | AB95: Toronto Hydro-Electric System Limited
AA96: 76 | AB96: Veridian Connections Inc.
AA97: 77 | AB97: Veridian Connections Inc. - Gravenhurst
AA98: 78 | AB98: Wasaga Distribution Inc.
AA99: 79 | AB99: Waterloo North Hydro Inc.
AA100: 80 | AB100: Welland Hydro-Electric System Corp.
AA101: 81 | AB101: Wellington North Power Inc.
AA102: 82 | AB102: West Coast Huron Energy Inc.
AA103: 83 | AB103: West Perth Power Inc.
AA104: 84 | AB104: Westario Power Inc.
AA105: 85 | AB105: Whitby Hydro Electric Corporation
AA106: 86 | AB106: Woodstock Hydro Services Inc.

Sheet 2. Smart_Meter_Costs
G18: 2006 | I18: 2007 | K18: 2008 | M18: 2009 | O18: 2010 | Q18: 2011 | S18: 2012 and later | U18: Total
B19: Smart Meter Capital Cost and Operational Expense Data | G19: Audited Actual | I19: Audited Actual | K19: Audited Actual | M19: Audited Actual | O19: Audited Actual | Q19: Audited Actual | S19: Forecast
C21: Smart Meter Installation Plan
C23: Actual/Planned number of Smart Meters installed during the Calendar Year
C25: Residential | G25: 0 | I25: 0 | K25: 0 | M25: =537+952 -> 1489 | O25: =1343+1264+458+249 -> 3314 | Q25: 0 | U25: =SUM(G25,I25,K25,M25,O25,Q25,S25) -> 4803
C27: General Service < 50 kW | G27: 0 | I27: 0 | K27: 0 | M27: 0 | O27: =153+18 -> 171 | Q27: =167+5+110+2+19+62+35+7 -> 407 | U27: =SUM(G27,I27,K27,M27,O27,Q27,S27) -> 578
C29: Actual/Planned number of Smart Meters installed (Residential and GS < 50 kW only) | G29: =G25+G27 -> 0 | I29: =I25+I27 -> 0 | K29: =K25+K27 -> 0 | M29: =M25+M27 -> 1489 | O29: =O25+O27 -> 3485 | Q29: =Q25+Q27 -> 407 | S29: =S25+S27 -> 0 | U29: =SUM(G29,I29,K29,M29,O29,Q29,S29) -> 5381
C31: Percentage of Residential and GS < 50 kW Smart Meter Installations Completed | G31: =IF($U29=0,0,G29/$U29) -> 0 | I31: =IF(G31=100%, 0, IF(ISERROR(SUM(G29:I29)/$U29),0,SUM(G29:I29)/$U29)) -> 0 | K31: =IF(I31=100%, 0, IF(ISERROR(SUM(G29:K29)/$U29), 0, SUM(G29:K29)/$U29)) -> 0 | M31: =IF(K31=100%,0,IF(ISERROR(SUM(G29:M29)/$U29),0,SUM(G29:M29)/$U29)) -> 0.2767143654 | O31: =IF(M31=100%,0,IF(ISERROR(SUM(G29:O29)/$U29),0,SUM(G29:O29)/$U29)) -> 0.9243635012 | Q31: =IF(O31=100%,0,IF(ISERROR(SUM(G29:Q29)/$U29),0,SUM(G29:Q29)/$U29)) -> 1 | S31: =IF(Q31=100%,0,IF(ISERROR(SUM(G29:S29)/$U29),0,SUM(G29:S29)/$U29)) -> 0 | U31: =IF($U29=0,"",U29/$U29) -> 1
C33: Actual/Planned number of GS > 50 kW meters installed | G33: 0 | I33: 0 | K33: 0 | M33: 0 | O33: 0 | Q33: 0 | U33: =SUM(G33,I33,K33,M33,O33,Q33,S33) -> 0
C35: Other (please identify) | G35: 0 | I35: 0 | K35: 0 | M35: 0 | O35: 0 | Q35: 0 | U35: =SUM(G35,I35,K35,M35,O35,Q35,S35) -> 0
C37: Total Number of Smart Meters installed or planned to be installed | G37: =SUM(G29,G33,G35) -> 0 | I37: =SUM(I29,I33,I35) -> 0 | K37: =SUM(K29,K33,K35) -> 0 | M37: =SUM(M29,M33,M35) -> 1489 | O37: =SUM(O29,O33,O35) -> 3485 | Q37: =SUM(Q29,Q33,Q35) -> 407 | S37: =SUM(S29,S33,S35) -> 0 | U37: =SUM(G37,I37,K37,M37,O37,Q37,S37) -> 5381
B39: 1 | C39: Capital Costs
E40: Asset Type
C41: 1.1 ADVANCED METERING COMMUNICATION DEVICE (AMCD) | E41: Asset type must be selected to enable calculations | G41: =IF(ISBLANK(G19),"",G19) -> Audited Actual | I41: =IF(ISBLANK(I19),"",I19) -> Audited Actual | K41: =IF(ISBLANK(K19),"",K19) -> Audited Actual | M41: =IF(ISBLANK(M19),"",M19) -> Audited Actual | O41: =IF(ISBLANK(O19),"",O19) -> Audited Actual | Q41: =IF(ISBLANK(Q19),"",Q19) -> Audited Actual | S41: =IF(ISBLANK(S19),"",S19) -> Forecast
C42: 1.1.1 Smart Meters (may include new meters and modules, etc.) | E42: Smart Meter | M42: 170913.64 | O42: =196065+98841.6+449.46 -> 295356.06 | Q42: =86512.68+3665.58+1440+4363.35+2558.56+1883.48+1003.74+1003.74 -> 102431.13 | U42: =SUM(G42,I42,K42,M42,O42,Q42,S42) -> 568700.83
C44: 1.1.2 Installation Costs (may include socket kits, labour, vehicle, benefits, etc.) | E44: Smart Meter | Q44: =11003.3+473+857.45 -> 12333.75 | U44: =SUM(G44,I44,K44,M44,O44,Q44,S44) -> 12333.75
C46: 1.1.3a Workforce Automation Hardware (may include fieldwork handhelds, barcode hardware, etc.) | U46: =SUM(G46,I46,K46,M46,O46,Q46,S46) -> 0
C48: 1.1.3b Workforce Automation Software (may include fieldwork handhelds, barcode hardware, etc.) | U48: =SUM(G48,I48,K48,M48,O48,Q48,S48) -> 0
C50: Total Advanced Metering Communications Devices (AMCD) | G50: =SUM(G42,G44,G46,G48) -> 0 | I50: =SUM(I42,I44,I46,I48) -> 0 | K50: =SUM(K42,K44,K46,K48) -> 0 | M50: =SUM(M42,M44,M46,M48) -> 170913.64 | O50: =SUM(O42,O44,O46,O48) -> 295356.06 | Q50: =SUM(Q42,Q44,Q46,Q48) -> 114764.88 | S50: =SUM(S42,S44,S46,S48) -> 0 | U50: =U42+U44+U46+U48 -> 581034.58
E52: =E40 -> Asset Type
C53: 1.2 ADVANCED METERING REGIONAL COLLECTOR (AMRC) (includes LAN) | G53: =G41 -> Audited Actual | I53: =I41 -> Audited Actual | K53: =K41 -> Audited Actual | M53: =M41 -> Audited Actual | O53: =O41 -> Audited Actual | Q53: =Q41 -> Audited Actual | S53: =S41 -> Forecast
C54: 1.2.1 Collectors | E54: Smart Meter | M54: 6888.79 | O54: =6018.3+298.18 -> 6316.48 | U54: =SUM(G54,I54,K54,M54,O54,Q54,S54) -> 13205.27
C56: 1.2.2 Repeaters (may include radio licence, etc.) | U56: =SUM(G56,I56,K56,M56,O56,Q56,S56) -> 0
C58: 1.2.3 Installation (may include meter seals and rings, collector computer hardware, etc.) | E58: Smart Meter | O58: =257.92+598.22+234+443.78 -> 1533.92 | U58: =SUM(G58,I58,K58,M58,O58,Q58,S58) -> 1533.92
C60: Total Advanced Metering Regional Collector (AMRC) (Includes LAN) | G60: =G54+G56+G58 -> 0 | I60: =I54+I56+I58 -> 0 | K60: =K54+K56+K58 -> 0 | M60: =M54+M56+M58 -> 6888.79 | O60: =O54+O56+O58 -> 7850.4 | Q60: =Q54+Q56+Q58 -> 0 | S60: =S54+S56+S58 -> 0 | U60: =U54+U56+U58 -> 14739.19
E62: =E52 -> Asset Type
C63: 1.3 ADVANCED METERING CONTROL COMPUTER (AMCC) | G63: =G53 -> Audited Actual | I63: =I53 -> Audited Actual | K63: =K53 -> Audited Actual | M63: =M53 -> Audited Actual | O63: =O53 -> Audited Actual | Q63: =Q53 -> Audited Actual | S63: =S53 -> Forecast
C64: 1.3.1 Computer Hardware | U64: =SUM(G64,I64,K64,M64,O64,Q64,S64) -> 0
C66: 1.3.2 Computer Software | E66: Computer Software | Q66: =7519.8 -> 7519.8 | U66: =SUM(G66,I66,K66,M66,O66,Q66,S66) -> 7519.8
C68: 1.3.3 Computer Software Licences & Installation (includes hardware and software) | U68: =SUM(G68,I68,K68,M68,O68,Q68,S68) -> 0
C69: (may include AS/400 disk space, backup and recovery computer, UPS, etc.)
C70: Total Advanced Metering Control Computer (AMCC) | G70: =G64+G66+G68 -> 0 | I70: =I64+I66+I68 -> 0 | K70: =K64+K66+K68 -> 0 | M70: =M64+M66+M68 -> 0 | O70: =O64+O66+O68 -> 0 | Q70: =Q64+Q66+Q68 -> 7519.8 | S70: =S64+S66+S68 -> 0 | U70: =U64+U66+U68 -> 7519.8
E72: =E62 -> Asset Type
C73: 1.4 WIDE AREA NETWORK (WAN) | G73: =G63 -> Audited Actual | I73: =I63 -> Audited Actual | K73: =K63 -> Audited Actual | M73: =M63 -> Audited Actual | O73: =O63 -> Audited Actual | Q73: =Q63 -> Audited Actual | S73: =S63 -> Forecast
C75: 1.4.1 Activiation Fees | U75: =SUM(G75,I75,K75,M75,O75,Q75,S75) -> 0
C77: Total Wide Area Network (WAN) | G77: =G75 -> 0 | I77: =I75 -> 0 | K77: =K75 -> 0 | M77: =M75 -> 0 | O77: =O75 -> 0 | Q77: =Q75 -> 0 | S77: =S75 -> 0 | U77: =U75 -> 0
E79: =E72 -> Asset Type
C80: 1.5 OTHER AMI CAPITAL COSTS RELATED TO MINIMUM FUNCTIONALITY | G80: =G73 -> Audited Actual | I80: =I73 -> Audited Actual | K80: =K73 -> Audited Actual | M80: =M73 -> Audited Actual | O80: =O73 -> Audited Actual | Q80: =Q73 -> Audited Actual | S80: =S73 -> Forecast
C82: 1.5.1 Customer Equipment (including repair of damaged equipment) | E82: Tools & Equipment | M82: 271.83 | O82: =345.14+1097.6 -> 1442.74 | Q82: 458.6 | U82: =SUM(G82,I82,K82,M82,O82,Q82,S82) -> 2173.17
C84: 1.5.2 AMI Interface to CIS | E84: Applications Software | O84: 1029.6 | U84: =SUM(G84,I84,K84,M84,O84,Q84,S84) -> 1029.6
C86: 1.5.3 Professional Fees | E86: Applications Software | Q86: 30000 | U86: =SUM(G86,I86,K86,M86,O86,Q86,S86) -> 30000
C88: 1.5.4 Integration | E88: Computer Software | Q88: 3000 | U88: =SUM(G88,I88,K88,M88,O88,Q88,S88) -> 3000
C90: 1.5.5 Program Management | U90: =SUM(G90,I90,K90,M90,O90,Q90,S90) -> 0
C92: 1.5.6 Other AMI Capital | U92: =SUM(G92,I92,K92,M92,O92,Q92,S92) -> 0
C94: Total Other AMI Capital Costs Related to Minimum Functionality | G94: =SUM(G82,G84,G86,G88,G90,G92) -> 0 | I94: =SUM(I82,I84,I86,I88,I90,I92) -> 0 | K94: =SUM(K82,K84,K86,K88,K90,K92) -> 0 | M94: =SUM(M82,M84,M86,M88,M90,M92) -> 271.83 | O94: =SUM(O82,O84,O86,O88,O90,O92) -> 2472.34 | Q94: =SUM(Q82,Q84,Q86,Q88,Q90,Q92) -> 33458.6 | S94: =SUM(S82,S84,S86,S88,S90,S92) -> 0 | U94: =SUM(U82,U84,U86,U88,U90,U92) -> 36202.77
C96: Total Capital Costs Related to Minimum Functionality | G96: =SUM(G50,G60,G70,G77,G94) -> 0 | I96: =SUM(I50,I60,I70,I77,I94) -> 0 | K96: =SUM(K50,K60,K70,K77,K94) -> 0 | M96: =SUM(M50,M60,M70,M77,M94) -> 178074.26 | O96: =SUM(O50,O60,O70,O77,O94) -> 305678.8 | Q96: =SUM(Q50,Q60,Q70,Q77,Q94) -> 155743.28 | S96: =SUM(S50,S60,S70,S77,S94) -> 0 | U96: =SUM(U50,U60,U70,U77,U94) -> 639496.34
E98: =E79 -> Asset Type
C99: 1.6 CAPITAL COSTS BEYOND MINIMUM FUNCTIONALITY | G99: =G80 -> Audited Actual | I99: =I80 -> Audited Actual | K99: =K80 -> Audited Actual | M99: =M80 -> Audited Actual | O99: =O80 -> Audited Actual | Q99: =Q80 -> Audited Actual | S99: =S80 -> Forecast
C100: (Please provide a descriptive title and identify nature of beyond minimum functionality costs)
C101: 1.6.1 Costs related to technical capabilities in the smart meters or related communications infrastructure that exceed those specified in O.Reg 425/06 | U101: =SUM(G101,I101,K101,M101,O101,Q101,S101) -> 0
C103: 1.6.2 Costs for deployment of smart meters to customers other than residential and small general service | E103: Smart Meter | M103: 3878.09 | O103: 2164.6 | U103: =SUM(G103,I103,K103,M103,O103,Q103,S103) -> 6042.69
C105: 1.6.3 Costs for TOU rate implementation, CIS system upgrades, web presentation, integration with the MDM/R, etc. | U105: =SUM(G105,I105,K105,M105,O105,Q105,S105) -> 0
C107: Total Capital Costs Beyond Minimum Functionality | G107: =SUM(G101,G103,G105) -> 0 | I107: =SUM(I101,I103,I105) -> 0 | K107: =SUM(K101,K103,K105) -> 0 | M107: =SUM(M101,M103,M105) -> 3878.09 | O107: =SUM(O101,O103,O105) -> 2164.6 | Q107: =SUM(Q101,Q103,Q105) -> 0 | S107: =SUM(S101,S103,S105) -> 0 | U107: =SUM(U101,U103,U105) -> 6042.69
C109: Total Smart Meter Capital Costs | G109: =G96+G107 -> 0 | I109: =I96+I107 -> 0 | K109: =K96+K107 -> 0 | M109: =M96+M107 -> 181952.35 | O109: =O96+O107 -> 307843.4 | Q109: =Q96+Q107 -> 155743.28 | S109: =S96+S107 -> 0 | U109: =U96+U107 -> 645539.03
B111: 2 | C111: OM&A Expenses
C112: 2.1 ADVANCED METERING COMMUNICATION DEVICE (AMCD) | G112: =G99 -> Audited Actual | I112: =I99 -> Audited Actual | K112: =K99 -> Audited Actual | M112: =M99 -> Audited Actual | O112: =O99 -> Audited Actual | Q112: =Q99 -> Audited Actual | S112: =S99 -> Forecast
C114: 2.1.1 Maintenance (may include meter reverification costs, etc.) | O114: =902.63 -> 902.63 | Q114: 416.7 | U114: =SUM(G114,I114,K114,M114,O114,Q114,S114) -> 1319.33
C116: 2.1.2 Other (please specifiy) | U116: =SUM(G116,I116,K116,M116,O116,Q116,S116) -> 0
C118: Total Incremental AMCD OM&A Costs | G118: =SUM(G114,G116) -> 0 | I118: =SUM(I114,I116) -> 0 | K118: =SUM(K114,K116) -> 0 | M118: =SUM(M114,M116) -> 0 | O118: =SUM(O114,O116) -> 902.63 | Q118: =SUM(Q114,Q116) -> 416.7 | S118: =SUM(S114,S116) -> 0 | U118: =SUM(U114,U116) -> 1319.33
C120: 2.2 ADVANCED METERING REGIONAL COLLECTOR (AMRC) (includes LAN)
C122: 2.2.1 Maintenance | U122: =SUM(G122,I122,K122,M122,O122,Q122,S122) -> 0
C124: 2.2.2 Other (please specifiy) | U124: =SUM(G124,I124,K124,M124,O124,Q124,S124) -> 0
C126: Total Incremental AMRC OM&A Costs | G126: =SUM(G122,G124) -> 0 | I126: =SUM(I122,I124) -> 0 | K126: =SUM(K122,K124) -> 0 | M126: =SUM(M122,M124) -> 0 | O126: =SUM(O122,O124) -> 0 | Q126: =SUM(Q122,Q124) -> 0 | S126: =SUM(S122,S124) -> 0 | U126: =SUM(U122,U124) -> 0
C128: 2.3 ADVANCED METERING CONTROL COMPUTER (AMCC)
C130: 2.3.1 Hardware Maintenance (may include server support, etc.) | U130: =SUM(G130,I130,K130,M130,O130,Q130,S130) -> 0
C132: 2.3.2 Software Maintenance (may include maintenance support, etc.) | U132: =SUM(G132,I132,K132,M132,O132,Q132,S132) -> 0
C134: 2.3.2 Other (please specifiy) | U134: =SUM(G134,I134,K134,M134,O134,Q134,S134) -> 0
C136: Total Incremental AMCC OM&A Costs | G136: =SUM(G130,G132,G134) -> 0 | I136: =SUM(I130,I132,I134) -> 0 | K136: =SUM(K130,K132,K134) -> 0 | M136: =SUM(M130,M132,M134) -> 0 | O136: =SUM(O130,O132,O134) -> 0 | Q136: =SUM(Q130,Q132,Q134) -> 0 | S136: =SUM(S130,S132,S134) -> 0 | U136: =SUM(U130,U132,U134) -> 0
C138: 2.4 WIDE AREA NETWORK (WAN)
C140: 2.4.1 WAN Maintenance | U140: =SUM(G140,I140,K140,M140,O140,Q140,S140) -> 0
C142: 2.4.2 Other (please specifiy) | U142: =SUM(G142,I142,K142,M142,O142,Q142,S142) -> 0
C144: Total Incremental AMRC OM&A Costs | G144: =SUM(G140,G142) -> 0 | I144: =SUM(I140,I142) -> 0 | K144: =SUM(K140,K142) -> 0 | M144: =SUM(M140,M142) -> 0 | O144: =SUM(O140,O142) -> 0 | Q144: =SUM(Q140,Q142) -> 0 | S144: =SUM(S140,S142) -> 0 | U144: =SUM(U140,U142) -> 0
C146: 2.5 OTHER AMI OM&A COSTS RELATED TO MINIMUM FUNCTIONALITY
C148: 2.5.1 Business Process Redesign | U148: =SUM(G148,I148,K148,M148,O148,Q148,S148) -> 0
C150: 2.5.2 Customer Communication (may include project communication, etc.) | O150: =3900.62 -> 3900.62 | Q150: =3283.09 -> 3283.09 | S150: 957.52 | U150: =SUM(G150,I150,K150,M150,O150,Q150,S150) -> 8141.23
C152: 2.5.3 Program Management | U152: =SUM(G152,I152,K152,M152,O152,Q152,S152) -> 0
C154: 2.5.4 Change Management (may include training, etc.) | O154: =341.45+98.13 -> 439.58 | U154: =SUM(G154,I154,K154,M154,O154,Q154,S154) -> 439.58
C156: 2.5.5 Administration Costs | U156: =SUM(G156,I156,K156,M156,O156,Q156,S156) -> 0
C158: 2.5.6 Other AMI Expenses | U158: =SUM(G158,I158,K158,M158,O158,Q158,S158) -> 0
C159: (please specify)
C160: Total Other AMI OM&A Costs Related to Minimum Functionality | G160: =SUM(G158,G156,G154,G152,G150,G148) -> 0 | I160: =SUM(I158,I156,I154,I152,I150,I148) -> 0 | K160: =SUM(K158,K156,K154,K152,K150,K148) -> 0 | M160: =SUM(M158,M156,M154,M152,M150,M148) -> 0 | O160: =SUM(O158,O156,O154,O152,O150,O148) -> 4340.2 | Q160: =SUM(Q158,Q156,Q154,Q152,Q150,Q148) -> 3283.09 | S160: =SUM(S158,S156,S154,S152,S150,S148) -> 957.52 | U160: =SUM(U154,U156,U158,U152,U150,U148) -> 8580.81
C162: TOTAL OM&A COSTS RELATED TO MINIMUM FUNCTIONALITY | G162: =SUM(G118,G126,G136,G144,G160) -> 0 | I162: =SUM(I118,I126,I136,I144,I160) -> 0 | K162: =SUM(K118,K126,K136,K144,K160) -> 0 | M162: =SUM(M118,M126,M136,M144,M160) -> 0 | O162: =SUM(O118,O126,O136,O144,O160) -> 5242.83 | Q162: =SUM(Q118,Q126,Q136,Q144,Q160) -> 3699.79 | S162: =SUM(S118,S126,S136,S144,S160) -> 957.52 | U162: =SUM(U118,U126,U136,U144,U160) -> 9900.14
C164: 2.6 OM&A COSTS RELATED TO BEYOND MINIMUM FUNCTIONALITY | G164: =G112 -> Audited Actual | I164: =I112 -> Audited Actual | K164: =K112 -> Audited Actual | M164: =M112 -> Audited Actual | O164: =O112 -> Audited Actual | Q164: =Q112 -> Audited Actual
C165: (Please provide a descriptive title and identify nature of beyond minimum functionality costs)
C166: 2.6.1 Costs related to technical capabilities in the smart meters or related communications infrastructure that exceed those specified in O.Reg 425/06 | U166: =SUM(G166,I166,K166,M166,O166,Q166,S166) -> 0
C168: 2.6.2 Costs for deployment of smart meters to customers other than residential and small general service | U168: =SUM(G168,I168,K168,M168,O168,Q168,S168) -> 0
C170: 2.6.3 Costs for TOU rate implementation, CIS system upgrades, web presentation, integration with the MDM/R, etc. | S170: 5000 | U170: =SUM(G170,I170,K170,M170,O170,Q170,S170) -> 5000
C172: Total OM&A Costs Beyond Minimum Functionality | G172: =SUM(G166,G168,G170) -> 0 | I172: =SUM(I166,I168,I170) -> 0 | K172: =SUM(K166,K168,K170) -> 0 | M172: =SUM(M166,M168,M170) -> 0 | O172: =SUM(O166,O168,O170) -> 0 | Q172: =SUM(Q166,Q168,Q170) -> 0 | S172: =SUM(S166,S168,S170) -> 5000 | U172: =SUM(U166,U168,U170) -> 5000
C174: Total Smart Meter OM&A Costs | G174: =G162+G172 -> 0 | I174: =I162+I172 -> 0 | K174: =K162+K172 -> 0 | M174: =M162+M172 -> 0 | O174: =O162+O172 -> 5242.83 | Q174: =Q162+Q172 -> 3699.79 | S174: =S162+S172 -> 5957.52 | U174: =U162+U172 -> 14900.14
B177: 3 | C177: Aggregate Smart Meter Costs by Category
C179: 3.1 | D179: Capital
C181: 3.1.1 | D181: Smart Meter | G181: =SUMIF($E$42:$E$105,$D181,G$42:G$105) -> 0 | I181: =SUMIF($E$42:$E$105,$D181,I$42:I$105) -> 0 | K181: =SUMIF($E$42:$E$105,$D181,K$42:K$105) -> 0 | M181: =SUMIF($E$42:$E$105,$D181,M$42:M$105) -> 181680.52 | O181: =SUMIF($E$42:$E$105,$D181,O$42:O$105) -> 305371.06 | Q181: =SUMIF($E$42:$E$105,$D181,Q$42:Q$105) -> 114764.88 | S181: =SUMIF($E$42:$E$105,$D181,S$42:S$105) -> 0 | U181: =SUM(G181:S181) -> 601816.46
C183: 3.1.2 | D183: Computer Hardware | G183: =SUMIF($E$42:$E$105,$D183,G$42:G$105) -> 0 | I183: =SUMIF($E$42:$E$105,$D183,I$42:I$105) -> 0 | K183: =SUMIF($E$42:$E$105,$D183,K$42:K$105) -> 0 | M183: =SUMIF($E$42:$E$105,$D183,M$42:M$105) -> 0 | O183: =SUMIF($E$42:$E$105,$D183,O$42:O$105) -> 0 | Q183: =SUMIF($E$42:$E$105,$D183,Q$42:Q$105) -> 0 | S183: =SUMIF($E$42:$E$105,$D183,S$42:S$105) -> 0 | U183: =SUM(G183:S183) -> 0
C185: 3.1.3 | D185: Computer Software | G185: =SUMIF($E$42:$E$105,$D185,G$42:G$105) -> 0 | I185: =SUMIF($E$42:$E$105,$D185,I$42:I$105) -> 0 | K185: =SUMIF($E$42:$E$105,$D185,K$42:K$105) -> 0 | M185: =SUMIF($E$42:$E$105,$D185,M$42:M$105) -> 0 | O185: =SUMIF($E$42:$E$105,$D185,O$42:O$105) -> 0 | Q185: =SUMIF($E$42:$E$105,$D185,Q$42:Q$105) -> 10519.8 | S185: =SUMIF($E$42:$E$105,$D185,S$42:S$105) -> 0 | U185: =SUM(G185:S185) -> 10519.8
C187: 3.1.4 | D187: Tools & Equipment | G187: =SUMIF($E$42:$E$105,$D187,G$42:G$105) -> 0 | I187: =SUMIF($E$42:$E$105,$D187,I$42:I$105) -> 0 | K187: =SUMIF($E$42:$E$105,$D187,K$42:K$105) -> 0 | M187: =SUMIF($E$42:$E$105,$D187,M$42:M$105) -> 271.83 | O187: =SUMIF($E$42:$E$105,$D187,O$42:O$105) -> 1442.74 | Q187: =SUMIF($E$42:$E$105,$D187,Q$42:Q$105) -> 458.6 | S187: =SUMIF($E$42:$E$105,$D187,S$42:S$105) -> 0 | U187: =SUM(G187:S187) -> 2173.17
C189: 3.1.5 | D189: Other Equipment | G189: =SUMIF($E$42:$E$105,$D189,G$42:G$105) -> 0 | I189: =SUMIF($E$42:$E$105,$D189,I$42:I$105) -> 0 | K189: =SUMIF($E$42:$E$105,$D189,K$42:K$105) -> 0 | M189: =SUMIF($E$42:$E$105,$D189,M$42:M$105) -> 0 | O189: =SUMIF($E$42:$E$105,$D189,O$42:O$105) -> 0 | Q189: =SUMIF($E$42:$E$105,$D189,Q$42:Q$105) -> 0 | S189: =SUMIF($E$42:$E$105,$D189,S$42:S$105) -> 0 | U189: =SUM(G189:S189) -> 0
C191: 3.1.6 | D191: Applications Software | G191: =SUMIF($E$42:$E$105,$D191,G$42:G$105) -> 0 | I191: =SUMIF($E$42:$E$105,$D191,I$42:I$105) -> 0 | K191: =SUMIF($E$42:$E$105,$D191,K$42:K$105) -> 0 | M191: =SUMIF($E$42:$E$105,$D191,M$42:M$105) -> 0 | O191: =SUMIF($E$42:$E$105,$D191,O$42:O$105) -> 1029.6 | Q191: =SUMIF($E$42:$E$105,$D191,Q$42:Q$105) -> 30000 | S191: =SUMIF($E$42:$E$105,$D191,S$42:S$105) -> 0 | U191: =SUM(G191:S191) -> 31029.6
C193: 3.1.7 | D193: Total Capital Costs | G193: =SUM(G181:G191) -> 0 | I193: =SUM(I181:I191) -> 0 | K193: =SUM(K181:K191) -> 0 | M193: =SUM(M181:M191) -> 181952.35 | O193: =SUM(O181:O191) -> 307843.4 | Q193: =SUM(Q181:Q191) -> 155743.28 | S193: =SUM(S181:S191) -> 0 | U193: =SUM(U181:U191) -> 645539.03
G194: =IF(G193=G109,"","Error") ->  | I194: =IF(I193=I109,"","Error") ->  | K194: =IF(K193=K109,"","Error") ->  | M194: =IF(M193=M109,"","Error") ->  | O194: =IF(O193=O109,"","Error") ->  | Q194: =IF(Q193=Q109,"","Error") ->  | S194: =IF(S193=S109,"","Error") ->  | U194: =IF(U193=U109,"","Error") -> 
C195: 3.2 | D195: OM&A Costs
C197: 3.2.1 | D197: Total OM&A Costs | G197: =G174 -> 0 | I197: =I174 -> 0 | K197: =K174 -> 0 | M197: =M174 -> 0 | O197: =O174 -> 5242.83 | Q197: =Q174 -> 3699.79 | S197: =S174 -> 5957.52 | U197: =U174 -> 14900.14

Sheet 3. Cost_of_Service_Parameters
G19: 2006 | I19: 2007 | K19: 2008 | M19: 2009 | O19: 2010 | Q19: 2011 | S19: 2012 and later
B20: Cost of Capital
C21: Capital Structure1
D22: Deemed Short-term Debt Capitalization | K22: 0 | M22: 0 | O22: 0.04 | Q22: 0.04 | S22: 0.04
D23: Deemed Long-term Debt Capitalization | G23: 0.5 | I23: =G23 -> 0.5 | K23: =IF(I23=50%,53.3%-K22,IF(I23=55%,57.5%-K22,IF(I23=65%,62.5%-K22,60%-K22))) -> 0.533 | M23: =IF(I23=50%,56.7%-M22,60%-M22) -> 0.567 | O23: =60%-O22 -> 0.56 | Q23: =O23 -> 0.56 | S23: =Q23 -> 0.56
D24: Deemed Equity Capitalization | G24: =100%-G23-G25 -> 0.5 | I24: =100%-I23-I25-I22 -> 0.5 | K24: =100%-K23-K25-K22 -> 0.467 | M24: =100%-M23-M25-M22 -> 0.433 | O24: =100%-O23-O25-O22 -> 0.4 | Q24: =100%-Q23-Q25-Q22 -> 0.4 | S24: =100%-S23-S25-S22 -> 0.4
D25: Preferred Shares
C26: Total | G26: =SUM(G22:G25) -> 1 | I26: =SUM(I22:I25) -> 1 | K26: =SUM(K22:K25) -> 1 | M26: =SUM(M22:M25) -> 1 | O26: =SUM(O22:O25) -> 1 | Q26: =SUM(Q22:Q25) -> 1 | S26: =SUM(S22:S25) -> 1
C28: Cost of Capital Parameters
D29: Deemed Short-term Debt Rate | K29: 0 | M29: 0 | O29: 0.0133 | Q29: =O29 -> 0.0133 | S29: =Q29 -> 0.0133
D30: Long-term Debt Rate (actual/embedded/deemed)2 | G30: =IF(G23=50%,6.25%,IF(G23=55%,6%,IF(G23=60%,5.9%,5.8%))) -> 0.0625 | I30: =G30 -> 0.0625 | K30: 0.0625 | M30: 0.0625 | O30: 0.0762 | Q30: =O30 -> 0.0762 | S30: =Q30 -> 0.0762
D31: Target Return on Equity (ROE) | G31: 0.09 | I31: =G31 -> 0.09 | K31: 0.09 | M31: 0.09 | O31: 0.0801 | Q31: =O31 -> 0.0801 | S31: =Q31 -> 0.0801
D32: Return on Preferred Shares
C33: WACC | G33: =SUMPRODUCT(G22:G25,G29:G32) -> 0.07625 | I33: =SUMPRODUCT(I22:I25,I29:I32) -> 0.07625 | K33: =SUMPRODUCT(K22:K25,K29:K32) -> 0.0753425 | M33: =SUMPRODUCT(M22:M25,M29:M32) -> 0.0744075 | O33: =SUMPRODUCT(O22:O25,O29:O32) -> 0.075244 | Q33: =SUMPRODUCT(Q22:Q25,Q29:Q32) -> 0.075244 | S33: =SUMPRODUCT(S22:S25,S29:S32) -> 0.075244
B35: Working Capital Allowance
C36: Working Capital Allowance Rate | G36: 0.15 | I36: 0.15 | K36: 0.15 | M36: 0.15 | O36: 0.15 | Q36: 0.15 | S36: 0.15
C37: (% of the sum of Cost of Power + controllable expenses)
B39: Taxes/PILs
C40: Aggregate Corporate Income Tax Rate | G40: 0.1862 | I40: 0.1862 | K40: 0.165 | M40: 0.165 | O40: 0.16 | Q40: 0.155 | S40: 0.155
C41: Capital Tax (until July 1st, 2010) | G41: 0.003 | I41: 0.00225 | K41: 0.00225 | M41: 0.00225 | O41: 0.00075 | Q41: 0 | S41: 0
B43: Depreciation Rates
B44: (expressed as expected useful life in years)
C45: Smart Meters - years | G45: 15 | I45: 15 | K45: 15 | M45: 15 | O45: 15 | Q45: 15 | S45: 15
C46: - rate (%) | G46: =IF(G45=0,0,1/G45) -> 0.06666666667 | I46: =IF(I45=0,0,1/I45) -> 0.06666666667 | K46: =IF(K45=0,0,1/K45) -> 0.06666666667 | M46: =IF(M45=0,0,1/M45) -> 0.06666666667 | O46: =IF(O45=0,0,1/O45) -> 0.06666666667 | Q46: =IF(Q45=0,0,1/Q45) -> 0.06666666667 | S46: =IF(S45=0,0,1/S45) -> 0.06666666667
C47: Computer Hardware - years | G47: 5 | I47: 5 | K47: 5 | M47: 5 | O47: 5 | Q47: 5 | S47: 5
C48: - rate (%) | G48: =IF(G47=0,0,1/G47) -> 0.2 | I48: =IF(I47=0,0,1/I47) -> 0.2 | K48: =IF(K47=0,0,1/K47) -> 0.2 | M48: =IF(M47=0,0,1/M47) -> 0.2 | O48: =IF(O47=0,0,1/O47) -> 0.2 | Q48: =IF(Q47=0,0,1/Q47) -> 0.2 | S48: =IF(S47=0,0,1/S47) -> 0.2
C49: Computer Software - years | G49: 5 | I49: 5 | K49: 5 | M49: 5 | O49: 5 | Q49: 5 | S49: 5
C50: - rate (%) | G50: =IF(G49=0,0,1/G49) -> 0.2 | I50: =IF(I49=0,0,1/I49) -> 0.2 | K50: =IF(K49=0,0,1/K49) -> 0.2 | M50: =IF(M49=0,0,1/M49) -> 0.2 | O50: =IF(O49=0,0,1/O49) -> 0.2 | Q50: =IF(Q49=0,0,1/Q49) -> 0.2 | S50: =IF(S49=0,0,1/S49) -> 0.2
C51: Tools & Equipment - years | G51: 10 | I51: 10 | K51: 10 | M51: 10 | O51: 10 | Q51: 10 | S51: 10
C52: - rate (%) | G52: =IF(G51=0,0,1/G51) -> 0.1 | I52: =IF(I51=0,0,1/I51) -> 0.1 | K52: =IF(K51=0,0,1/K51) -> 0.1 | M52: =IF(M51=0,0,1/M51) -> 0.1 | O52: =IF(O51=0,0,1/O51) -> 0.1 | Q52: =IF(Q51=0,0,1/Q51) -> 0.1 | S52: =IF(S51=0,0,1/S51) -> 0.1
C53: Other Equipment - years | G53: 10 | I53: 10 | K53: 10 | M53: 10 | O53: 10 | Q53: 10 | S53: 10
C54: - rate (%) | G54: =IF(G53=0,0,1/G53) -> 0.1 | I54: =IF(I53=0,0,1/I53) -> 0.1 | K54: =IF(K53=0,0,1/K53) -> 0.1 | M54: =IF(M53=0,0,1/M53) -> 0.1 | O54: =IF(O53=0,0,1/O53) -> 0.1 | Q54: =IF(Q53=0,0,1/Q53) -> 0.1 | S54: =IF(S53=0,0,1/S53) -> 0.1
B56: CCA Rates
C57: Smart Meters - CCA Class | G57: 1 | I57: 47 | K57: 47 | M57: 47 | O57: 47 | Q57: 47 | S57: 47
C58: Smart Meters - CCA Rate | G58: 0.04 | I58: 0.08 | K58: 0.08 | M58: 0.08 | O58: 0.08 | Q58: 0.08 | S58: 0.08
C60: Computer Equipment - CCA Class | G60: 45 | I60: 50 | K60: 50 | M60: 52 | O60: 52 | Q60: 50 | S60: 50
C61: Computer Equipment - CCA Rate | G61: 0.45 | I61: 0.55 | K61: 0.55 | M61: 1 | O61: 1 | Q61: 0.55 | S61: 0.55
C63: General Equipment - CCA Class | G63: 8 | I63: 8 | K63: 8 | M63: 8 | O63: 8 | Q63: 8 | S63: 8
C64: General Equipment - CCA Rate | G64: 0.2 | I64: 0.2 | K64: 0.2 | M64: 0.2 | O64: 0.2 | Q64: 0.2 | S64: 0.2
C66: Applications Software - CCA Class | G66: 12 | I66: 12 | K66: 12 | M66: 12 | O66: 12 | Q66: 12 | S66: 12
C67: Applications Software - CCA Rate | G67: 1 | I67: 1 | K67: 1 | M67: 1 | O67: 1 | Q67: 1 | S67: 1
B69: Assumptions
B70: 1 | C70: Planned smart meter installations occur evenly throughout the year.
B71: 2 | C71: Fiscal calendar year (January 1 to December 31) used.
B72: 3 | C72: Amortization is done on a striaght line basis and has the "half-year" rule applied.

Sheet 4. SM_Assets_and_Rate_Base
G18: 2006 | I18: 2007 | K18: 2008 | M18: 2009 | O18: 2010 | Q18: 2011 | S18: 2012 and later
B19: Net Fixed Assets - Smart Meters
C21: Gross Book Value
D22: Opening Balance | I22: =G25 -> 0 | K22: =I25 -> 0 | M22: =K25 -> 0 | O22: =M25 -> 181680.52 | Q22: =O25 -> 487051.58 | S22: =Q25 -> 601816.46
D23: Capital Additions during year (from Smart Meter Costs) | G23: ='2. Smart_Meter_Costs'!G181 -> 0 | I23: ='2. Smart_Meter_Costs'!I181 -> 0 | K23: ='2. Smart_Meter_Costs'!K181 -> 0 | M23: ='2. Smart_Meter_Costs'!M181 -> 181680.52 | O23: ='2. Smart_Meter_Costs'!O181 -> 305371.06 | Q23: ='2. Smart_Meter_Costs'!Q181 -> 114764.88 | S23: ='2. Smart_Meter_Costs'!S181 -> 0
D24: Retirements/Removals (if applicable)
D25: Closing Balance | G25: =G22+G23-G24 -> 0 | I25: =I22+I23-I24 -> 0 | K25: =K22+K23-K24 -> 0 | M25: =M22+M23-M24 -> 181680.52 | O25: =O22+O23-O24 -> 487051.58 | Q25: =Q22+Q23-Q24 -> 601816.46 | S25: =S22+S23-S24 -> 601816.46
C27: Accumulated Depreciation
D28: Opening Balance | I28: =G31 -> 0 | K28: =I31 -> 0 | M28: =K31 -> 0 | O28: =M31 -> -6056.017333 | Q28: =O31 -> -28347.08733 | S28: =Q31 -> -64642.68867
D29: Amortization expense during year | G29: =IF(ISERROR(-G23/('3. Cost_of_Service_Parameters'!G45*2)), 0, -G23/('3. Cost_of_Service_Parameters'!G45*2)) -> 0 | I29: =IF(ISERROR(-(I23/('3. Cost_of_Service_Parameters'!I45*2)+MIN((I22/'3. Cost_of_Service_Parameters'!I45),(I22+I28)))), 0, -(I23/('3. Cost_of_Service_Parameters'!I45*2)+MIN((I22/'3. Cost_of_Service_Parameters'!I45),(I22+I28)))) -> 0 | K29: =IF(ISERROR(-(K23/('3. Cost_of_Service_Parameters'!K45*2)+MIN((K22/'3. Cost_of_Service_Parameters'!K45),(K22+K28)))), 0, -(K23/('3. Cost_of_Service_Parameters'!K45*2)+MIN((K22/'3. Cost_of_Service_Parameters'!K45),(K22+K28)))) -> 0 | M29: =IF(ISERROR(-(M23/('3. Cost_of_Service_Parameters'!M45*2)+MIN((M22/'3. Cost_of_Service_Parameters'!M45),(M22+M28)))), 0,-(M23/('3. Cost_of_Service_Parameters'!M45*2)+MIN((M22/'3. Cost_of_Service_Parameters'!M45),(M22+M28)))) -> -6056.017333 | O29: =IF(ISERROR(-(O23/('3. Cost_of_Service_Parameters'!O45*2)+MIN((O22/'3. Cost_of_Service_Parameters'!O45),(O22+O28)))), 0, -(O23/('3. Cost_of_Service_Parameters'!O45*2)+MIN((O22/'3. Cost_of_Service_Parameters'!O45),(O22+O28)))) -> -22291.07 | Q29: =IF(ISERROR(-(Q23/('3. Cost_of_Service_Parameters'!Q45*2)+MIN((Q22/'3. Cost_of_Service_Parameters'!Q45),(Q22+Q28)))), 0, -(Q23/('3. Cost_of_Service_Parameters'!Q45*2)+MIN((Q22/'3. Cost_of_Service_Parameters'!Q45),(Q22+Q28)))) -> -36295.60133 | S29: =IF(ISERROR(-(S23/('3. Cost_of_Service_Parameters'!S45*2)+MIN((S22/'3. Cost_of_Service_Parameters'!S45),(S22+S28)))), 0, -(S23/('3. Cost_of_Service_Parameters'!S45*2)+MIN((S22/'3. Cost_of_Service_Parameters'!S45),(S22+S28)))) -> -40121.09733
D30: Retirements/Removals (if applicable)
D31: Closing Balance | G31: =G28+G29-G30 -> 0 | I31: =I28+I29-I30 -> 0 | K31: =K28+K29-K30 -> 0 | M31: =M28+M29-M30 -> -6056.017333 | O31: =O28+O29-O30 -> -28347.08733 | Q31: =Q28+Q29-Q30 -> -64642.68867 | S31: =S28+S29-S30 -> -104763.786
C33: Net Book Value
D34: Opening Balance | G34: =G22+G28 -> 0 | I34: =G35 -> 0 | K34: =I35 -> 0 | M34: =K35 -> 0 | O34: =M35 -> 175624.5027 | Q34: =O35 -> 458704.4927 | S34: =Q35 -> 537173.7713
D35: Closing Balance | G35: =G25+G31 -> 0 | I35: =I25+I31 -> 0 | K35: =K25+K31 -> 0 | M35: =M25+M31 -> 175624.5027 | O35: =O25+O31 -> 458704.4927 | Q35: =Q25+Q31 -> 537173.7713 | S35: =S25+S31 -> 497052.674
D36: Average Net Book Value | G36: =AVERAGE(G34:G35) -> 0 | I36: =AVERAGE(I34:I35) -> 0 | K36: =AVERAGE(K34:K35) -> 0 | M36: =AVERAGE(M34:M35) -> 87812.25133 | O36: =AVERAGE(O34:O35) -> 317164.4977 | Q36: =AVERAGE(Q34:Q35) -> 497939.132 | S36: =AVERAGE(S34:S35) -> 517113.2227
B38: Net Fixed Assets - Computer Hardware
C40: Gross Book Value
D41: Opening Balance | I41: =G44 -> 0 | K41: =I44 -> 0 | M41: =K44 -> 0 | O41: =M44 -> 0 | Q41: =O44 -> 0 | S41: =Q44 -> 0
D42: Capital Additions during year (from Smart Meter Costs) | G42: ='2. Smart_Meter_Costs'!G183 -> 0 | I42: ='2. Smart_Meter_Costs'!I183 -> 0 | K42: ='2. Smart_Meter_Costs'!K183 -> 0 | M42: ='2. Smart_Meter_Costs'!M183 -> 0 | O42: ='2. Smart_Meter_Costs'!O183 -> 0 | Q42: ='2. Smart_Meter_Costs'!Q183 -> 0 | S42: ='2. Smart_Meter_Costs'!S183 -> 0
D43: Retirements/Removals (if applicable)
D44: Closing Balance | G44: =G41+G42-G43 -> 0 | I44: =I41+I42-I43 -> 0 | K44: =K41+K42-K43 -> 0 | M44: =M41+M42-M43 -> 0 | O44: =O41+O42-O43 -> 0 | Q44: =Q41+Q42-Q43 -> 0 | S44: =S41+S42-S43 -> 0
C46: Accumulated Depreciation
D47: Opening Balance | G47: 0 | I47: =G50 -> 0 | K47: =I50 -> 0 | M47: =K50 -> 0 | O47: =M50 -> 0 | Q47: =O50 -> 0 | S47: =Q50 -> 0
D48: Amortization expense during year | G48: =IF(ISERROR(-G42/('3. Cost_of_Service_Parameters'!G47*2)), 0, -G42/('3. Cost_of_Service_Parameters'!G47*2)) -> 0 | I48: =IF(ISERROR(-(I42/('3. Cost_of_Service_Parameters'!I47*2)+MIN((I41/'3. Cost_of_Service_Parameters'!I47),(I41+I47)))), 0, -(I42/('3. Cost_of_Service_Parameters'!I47*2)+MIN((I41/'3. Cost_of_Service_Parameters'!I47),(I41+I47)))) -> 0 | K48: =IF(ISERROR(-(K42/('3. Cost_of_Service_Parameters'!K47*2)+MIN((K41/'3. Cost_of_Service_Parameters'!K47),(K41+K47)))), 0, -(K42/('3. Cost_of_Service_Parameters'!K47*2)+MIN((K41/'3. Cost_of_Service_Parameters'!K47),(K41+K47)))) -> 0 | M48: =IF(ISERROR(-(M42/('3. Cost_of_Service_Parameters'!M47*2)+MIN((M41/'3. Cost_of_Service_Parameters'!M47),(M41+M47)))), 0,-(M42/('3. Cost_of_Service_Parameters'!M47*2)+MIN((M41/'3. Cost_of_Service_Parameters'!M47),(M41+M47)))) -> 0 | O48: =IF(ISERROR(-(O42/('3. Cost_of_Service_Parameters'!O47*2)+MIN((O41/'3. Cost_of_Service_Parameters'!O47),(O41+O47)))), 0, -(O42/('3. Cost_of_Service_Parameters'!O47*2)+MIN((O41/'3. Cost_of_Service_Parameters'!O47),(O41+O47)))) -> 0 | Q48: =IF(ISERROR(-(Q42/('3. Cost_of_Service_Parameters'!Q47*2)+MIN((Q41/'3. Cost_of_Service_Parameters'!Q47),(Q41+Q47)))), 0, -(Q42/('3. Cost_of_Service_Parameters'!Q47*2)+MIN((Q41/'3. Cost_of_Service_Parameters'!Q47),(Q41+Q47)))) -> 0 | S48: =IF(ISERROR(-(S42/('3. Cost_of_Service_Parameters'!S47*2)+MIN((S41/'3. Cost_of_Service_Parameters'!S47),(S41+S47)))), 0, -(S42/('3. Cost_of_Service_Parameters'!S47*2)+MIN((S41/'3. Cost_of_Service_Parameters'!S47),(S41+S47)))) -> 0
D49: Retirements/Removals (if applicable)
D50: Closing Balance | G50: =G47+G48-G49 -> 0 | I50: =I47+I48-I49 -> 0 | K50: =K47+K48-K49 -> 0 | M50: =M47+M48-M49 -> 0 | O50: =O47+O48-O49 -> 0 | Q50: =Q47+Q48-Q49 -> 0 | S50: =S47+S48-S49 -> 0
C52: Net Book Value
D53: Opening Balance | G53: =G41+G47 -> 0 | I53: =G54 -> 0 | K53: =I54 -> 0 | M53: =K54 -> 0 | O53: =M54 -> 0 | Q53: =O54 -> 0 | S53: =Q54 -> 0
D54: Closing Balance | G54: =G44+G50 -> 0 | I54: =I44+I50 -> 0 | K54: =K44+K50 -> 0 | M54: =M44+M50 -> 0 | O54: =O44+O50 -> 0 | Q54: =Q44+Q50 -> 0 | S54: =S44+S50 -> 0
D55: Average Net Book Value | G55: =AVERAGE(G53:G54) -> 0 | I55: =AVERAGE(I53:I54) -> 0 | K55: =AVERAGE(K53:K54) -> 0 | M55: =AVERAGE(M53:M54) -> 0 | O55: =AVERAGE(O53:O54) -> 0 | Q55: =AVERAGE(Q53:Q54) -> 0 | S55: =AVERAGE(S53:S54) -> 0
B57: Net Fixed Assets - Computer Software (including Applications Software)
C59: Gross Book Value
D60: Opening Balance | I60: =G63 -> 0 | K60: =I63 -> 0 | M60: =K63 -> 0 | O60: =M63 -> 0 | Q60: =O63 -> 1029.6 | S60: =Q63 -> 41549.4
D61: Capital Additions during year (from Smart Meter Costs) | G61: ='2. Smart_Meter_Costs'!G185+'2. Smart_Meter_Costs'!G191 -> 0 | I61: ='2. Smart_Meter_Costs'!I185+'2. Smart_Meter_Costs'!I191 -> 0 | K61: ='2. Smart_Meter_Costs'!K185+'2. Smart_Meter_Costs'!K191 -> 0 | M61: ='2. Smart_Meter_Costs'!M185+'2. Smart_Meter_Costs'!M191 -> 0 | O61: ='2. Smart_Meter_Costs'!O185+'2. Smart_Meter_Costs'!O191 -> 1029.6 | Q61: ='2. Smart_Meter_Costs'!Q185+'2. Smart_Meter_Costs'!Q191 -> 40519.8 | S61: ='2. Smart_Meter_Costs'!S185+'2. Smart_Meter_Costs'!S191 -> 0
D62: Retirements/Removals (if applicable)
D63: Closing Balance | G63: =G60+G61-G62 -> 0 | I63: =I60+I61-I62 -> 0 | K63: =K60+K61-K62 -> 0 | M63: =M60+M61-M62 -> 0 | O63: =O60+O61-O62 -> 1029.6 | Q63: =Q60+Q61-Q62 -> 41549.4 | S63: =S60+S61-S62 -> 41549.4
C65: Accumulated Depreciation
D66: Opening Balance | G66: 0 | I66: =G69 -> 0 | K66: =I69 -> 0 | M66: =K69 -> 0 | O66: =M69 -> 0 | Q66: =O69 -> -102.96 | S66: =Q69 -> -4360.86
D67: Amortization expense during year | G67: =IF(ISERROR(-G61/('3. Cost_of_Service_Parameters'!G49*2)), 0, -G61/('3. Cost_of_Service_Parameters'!G49*2)) -> 0 | I67: =IF(ISERROR(-(I61/('3. Cost_of_Service_Parameters'!I49*2)+MIN((I60/'3. Cost_of_Service_Parameters'!I49),(I60+I66)))), 0, -(I61/('3. Cost_of_Service_Parameters'!I49*2)+MIN((I60/'3. Cost_of_Service_Parameters'!I49),(I60+I66)))) -> 0 | K67: =IF(ISERROR(-(K61/('3. Cost_of_Service_Parameters'!K49*2)+MIN((K60/'3. Cost_of_Service_Parameters'!K49),(K60+K66)))), 0, -(K61/('3. Cost_of_Service_Parameters'!K49*2)+MIN((K60/'3. Cost_of_Service_Parameters'!K49),(K60+K66)))) -> 0 | M67: =IF(ISERROR(-(M61/('3. Cost_of_Service_Parameters'!M49*2)+MIN((M60/'3. Cost_of_Service_Parameters'!M49),(M60+M66)))), 0,-(M61/('3. Cost_of_Service_Parameters'!M49*2)+MIN((M60/'3. Cost_of_Service_Parameters'!M49),(M60+M66)))) -> 0 | O67: =IF(ISERROR(-(O61/('3. Cost_of_Service_Parameters'!O49*2)+MIN((O60/'3. Cost_of_Service_Parameters'!O49),(O60+O66)))), 0, -(O61/('3. Cost_of_Service_Parameters'!O49*2)+MIN((O60/'3. Cost_of_Service_Parameters'!O49),(O60+O66)))) -> -102.96 | Q67: =IF(ISERROR(-(Q61/('3. Cost_of_Service_Parameters'!Q49*2)+MIN((Q60/'3. Cost_of_Service_Parameters'!Q49),(Q60+Q66)))), 0, -(Q61/('3. Cost_of_Service_Parameters'!Q49*2)+MIN((Q60/'3. Cost_of_Service_Parameters'!Q49),(Q60+Q66)))) -> -4257.9 | S67: =IF(ISERROR(-(S61/('3. Cost_of_Service_Parameters'!S49*2)+MIN((S60/'3. Cost_of_Service_Parameters'!S49),(S60+S66)))), 0, -(S61/('3. Cost_of_Service_Parameters'!S49*2)+MIN((S60/'3. Cost_of_Service_Parameters'!S49),(S60+S66)))) -> -8309.88
D68: Retirements/Removals (if applicable)
D69: Closing Balance | G69: =G66+G67-G68 -> 0 | I69: =I66+I67-I68 -> 0 | K69: =K66+K67-K68 -> 0 | M69: =M66+M67-M68 -> 0 | O69: =O66+O67-O68 -> -102.96 | Q69: =Q66+Q67-Q68 -> -4360.86 | S69: =S66+S67-S68 -> -12670.74
C71: Net Book Value
D72: Opening Balance | G72: =G60+G66 -> 0 | I72: =G73 -> 0 | K72: =I73 -> 0 | M72: =K73 -> 0 | O72: =M73 -> 0 | Q72: =O73 -> 926.64 | S72: =Q73 -> 37188.54
D73: Closing Balance | G73: =G63+G69 -> 0 | I73: =I63+I69 -> 0 | K73: =K63+K69 -> 0 | M73: =M63+M69 -> 0 | O73: =O63+O69 -> 926.64 | Q73: =Q63+Q69 -> 37188.54 | S73: =S63+S69 -> 28878.66
D74: Average Net Book Value | G74: =AVERAGE(G72:G73) -> 0 | I74: =AVERAGE(I72:I73) -> 0 | K74: =AVERAGE(K72:K73) -> 0 | M74: =AVERAGE(M72:M73) -> 0 | O74: =AVERAGE(O72:O73) -> 463.32 | Q74: =AVERAGE(Q72:Q73) -> 19057.59 | S74: =AVERAGE(S72:S73) -> 33033.6
B76: Net Fixed Assets - Tools and Equipment
C78: Gross Book Value
D79: Opening Balance | I79: =G82 -> 0 | K79: =I82 -> 0 | M79: =K82 -> 0 | O79: =M82 -> 271.83 | Q79: =O82 -> 1714.57 | S79: =Q82 -> 2173.17
D80: Capital Additions during year (from Smart Meter Costs) | G80: ='2. Smart_Meter_Costs'!G187 -> 0 | I80: ='2. Smart_Meter_Costs'!I187 -> 0 | K80: ='2. Smart_Meter_Costs'!K187 -> 0 | M80: ='2. Smart_Meter_Costs'!M187 -> 271.83 | O80: ='2. Smart_Meter_Costs'!O187 -> 1442.74 | Q80: ='2. Smart_Meter_Costs'!Q187 -> 458.6 | S80: ='2. Smart_Meter_Costs'!S187 -> 0
D81: Retirements/Removals (if applicable)
D82: Closing Balance | G82: =G79+G80-G81 -> 0 | I82: =I79+I80-I81 -> 0 | K82: =K79+K80-K81 -> 0 | M82: =M79+M80-M81 -> 271.83 | O82: =O79+O80-O81 -> 1714.57 | Q82: =Q79+Q80-Q81 -> 2173.17 | S82: =S79+S80-S81 -> 2173.17
C84: Accumulated Depreciation
D85: Opening Balance | G85: 0 | I85: =G88 -> 0 | K85: =I88 -> 0 | M85: =K88 -> 0 | O85: =M88 -> -13.5915 | Q85: =O88 -> -112.9115 | S85: =Q88 -> -307.2985
D86: Amortization expense during year | G86: =IF(ISERROR(-G80/('3. Cost_of_Service_Parameters'!G51*2)), 0, -G80/('3. Cost_of_Service_Parameters'!G51*2)) -> 0 | I86: =IF(ISERROR(-(I80/('3. Cost_of_Service_Parameters'!I51*2)+MIN((I79/'3. Cost_of_Service_Parameters'!I51),(I79+I85)))), 0, -(I80/('3. Cost_of_Service_Parameters'!I51*2)+MIN((I79/'3. Cost_of_Service_Parameters'!I51),(I79+I85)))) -> 0 | K86: =IF(ISERROR(-(K80/('3. Cost_of_Service_Parameters'!K51*2)+MIN((K79/'3. Cost_of_Service_Parameters'!K51),(K79+K85)))), 0, -(K80/('3. Cost_of_Service_Parameters'!K51*2)+MIN((K79/'3. Cost_of_Service_Parameters'!K51),(K79+K85)))) -> 0 | M86: =IF(ISERROR(-(M80/('3. Cost_of_Service_Parameters'!M51*2)+MIN((M79/'3. Cost_of_Service_Parameters'!M51),(M79+M85)))), 0,-(M80/('3. Cost_of_Service_Parameters'!M51*2)+MIN((M79/'3. Cost_of_Service_Parameters'!M51),(M79+M85)))) -> -13.5915 | O86: =IF(ISERROR(-(O80/('3. Cost_of_Service_Parameters'!O51*2)+MIN((O79/'3. Cost_of_Service_Parameters'!O51),(O79+O85)))), 0, -(O80/('3. Cost_of_Service_Parameters'!O51*2)+MIN((O79/'3. Cost_of_Service_Parameters'!O51),(O79+O85)))) -> -99.32 | Q86: =IF(ISERROR(-(Q80/('3. Cost_of_Service_Parameters'!Q51*2)+MIN((Q79/'3. Cost_of_Service_Parameters'!Q51),(Q79+Q85)))), 0, -(Q80/('3. Cost_of_Service_Parameters'!Q51*2)+MIN((Q79/'3. Cost_of_Service_Parameters'!Q51),(Q79+Q85)))) -> -194.387 | S86: =IF(ISERROR(-(S80/('3. Cost_of_Service_Parameters'!S51*2)+MIN((S79/'3. Cost_of_Service_Parameters'!S51),(S79+S85)))), 0, -(S80/('3. Cost_of_Service_Parameters'!S51*2)+MIN((S79/'3. Cost_of_Service_Parameters'!S51),(S79+S85)))) -> -217.317
D87: Retirements/Removals (if applicable)
D88: Closing Balance | G88: =G85+G86-G87 -> 0 | I88: =I85+I86-I87 -> 0 | K88: =K85+K86-K87 -> 0 | M88: =M85+M86-M87 -> -13.5915 | O88: =O85+O86-O87 -> -112.9115 | Q88: =Q85+Q86-Q87 -> -307.2985 | S88: =S85+S86-S87 -> -524.6155
C90: Net Book Value
D91: Opening Balance | G91: =G79+G85 -> 0 | I91: =G92 -> 0 | K91: =I92 -> 0 | M91: =K92 -> 0 | O91: =M92 -> 258.2385 | Q91: =O92 -> 1601.6585 | S91: =Q92 -> 1865.8715
D92: Closing Balance | G92: =G82+G88 -> 0 | I92: =I82+I88 -> 0 | K92: =K82+K88 -> 0 | M92: =M82+M88 -> 258.2385 | O92: =O82+O88 -> 1601.6585 | Q92: =Q82+Q88 -> 1865.8715 | S92: =S82+S88 -> 1648.5545
D93: Average Net Book Value | G93: =AVERAGE(G91:G92) -> 0 | I93: =AVERAGE(I91:I92) -> 0 | K93: =AVERAGE(K91:K92) -> 0 | M93: =AVERAGE(M91:M92) -> 129.11925 | O93: =AVERAGE(O91:O92) -> 929.9485 | Q93: =AVERAGE(Q91:Q92) -> 1733.765 | S93: =AVERAGE(S91:S92) -> 1757.213
B95: Net Fixed Assets - Other Equipment
C97: Gross Book Value
D98: Opening Balance | I98: =G101 -> 0 | K98: =I101 -> 0 | M98: =K101 -> 0 | O98: =M101 -> 0 | Q98: =O101 -> 0 | S98: =Q101 -> 0
D99: Capital Additions during year (from Smart Meter Costs) | G99: ='2. Smart_Meter_Costs'!G189 -> 0 | I99: ='2. Smart_Meter_Costs'!I189 -> 0 | K99: ='2. Smart_Meter_Costs'!K189 -> 0 | M99: ='2. Smart_Meter_Costs'!M189 -> 0 | O99: ='2. Smart_Meter_Costs'!O189 -> 0 | Q99: ='2. Smart_Meter_Costs'!Q189 -> 0 | S99: ='2. Smart_Meter_Costs'!S189 -> 0
D100: Retirements/Removals (if applicable)
D101: Closing Balance | G101: =G98+G99-G100 -> 0 | I101: =I98+I99-I100 -> 0 | K101: =K98+K99-K100 -> 0 | M101: =M98+M99-M100 -> 0 | O101: =O98+O99-O100 -> 0 | Q101: =Q98+Q99-Q100 -> 0 | S101: =S98+S99-S100 -> 0
C103: Accumulated Depreciation
D104: Opening Balance | G104: 0 | I104: =G107 -> 0 | K104: =I107 -> 0 | M104: =K107 -> 0 | O104: =M107 -> 0 | Q104: =O107 -> 0 | S104: =Q107 -> 0
D105: Amortization expense during year | G105: =IF(ISERROR(-G99/('3. Cost_of_Service_Parameters'!G53*2)), 0, -G99/('3. Cost_of_Service_Parameters'!G53*2)) -> 0 | I105: =IF(ISERROR(-(I99/('3. Cost_of_Service_Parameters'!I53*2)+MIN((I98/'3. Cost_of_Service_Parameters'!I53),(I98+I104)))), 0, -(I99/('3. Cost_of_Service_Parameters'!I53*2)+MIN((I98/'3. Cost_of_Service_Parameters'!I53),(I98+I104)))) -> 0 | K105: =IF(ISERROR(-(K99/('3. Cost_of_Service_Parameters'!K53*2)+MIN((K98/'3. Cost_of_Service_Parameters'!K53),(K98+K104)))), 0, -(K99/('3. Cost_of_Service_Parameters'!K53*2)+MIN((K98/'3. Cost_of_Service_Parameters'!K53),(K98+K104)))) -> 0 | M105: =IF(ISERROR(-(M99/('3. Cost_of_Service_Parameters'!M53*2)+MIN((M98/'3. Cost_of_Service_Parameters'!M53),(M98+M104)))), 0,-(M99/('3. Cost_of_Service_Parameters'!M53*2)+MIN((M98/'3. Cost_of_Service_Parameters'!M53),(M98+M104)))) -> 0 | O105: =IF(ISERROR(-(O99/('3. Cost_of_Service_Parameters'!O53*2)+MIN((O98/'3. Cost_of_Service_Parameters'!O53),(O98+O104)))), 0, -(O99/('3. Cost_of_Service_Parameters'!O53*2)+MIN((O98/'3. Cost_of_Service_Parameters'!O53),(O98+O104)))) -> 0 | Q105: =IF(ISERROR(-(Q99/('3. Cost_of_Service_Parameters'!Q53*2)+MIN((Q98/'3. Cost_of_Service_Parameters'!Q53),(Q98+Q104)))), 0, -(Q99/('3. Cost_of_Service_Parameters'!Q53*2)+MIN((Q98/'3. Cost_of_Service_Parameters'!Q53),(Q98+Q104)))) -> 0 | S105: =IF(ISERROR(-(S99/('3. Cost_of_Service_Parameters'!S53*2)+MIN((S98/'3. Cost_of_Service_Parameters'!S53),(S98+S104)))), 0, -(S99/('3. Cost_of_Service_Parameters'!S53*2)+MIN((S98/'3. Cost_of_Service_Parameters'!S53),(S98+S104)))) -> 0
D106: Retirements/Removals (if applicable)
D107: Closing Balance | G107: =G104+G105-G106 -> 0 | I107: =I104+I105-I106 -> 0 | K107: =K104+K105-K106 -> 0 | M107: =M104+M105-M106 -> 0 | O107: =O104+O105-O106 -> 0 | Q107: =Q104+Q105-Q106 -> 0 | S107: =S104+S105-S106 -> 0
C109: Net Book Value
D110: Opening Balance | G110: =G98+G104 -> 0 | I110: =G111 -> 0 | K110: =I111 -> 0 | M110: =K111 -> 0 | O110: =M111 -> 0 | Q110: =O111 -> 0 | S110: =Q111 -> 0
D111: Closing Balance | G111: =G101+G107 -> 0 | I111: =I101+I107 -> 0 | K111: =K101+K107 -> 0 | M111: =M101+M107 -> 0 | O111: =O101+O107 -> 0 | Q111: =Q101+Q107 -> 0 | S111: =S101+S107 -> 0
D112: Average Net Book Value | G112: =AVERAGE(G110:G111) -> 0 | I112: =AVERAGE(I110:I111) -> 0 | K112: =AVERAGE(K110:K111) -> 0 | M112: =AVERAGE(M110:M111) -> 0 | O112: =AVERAGE(O110:O111) -> 0 | Q112: =AVERAGE(Q110:Q111) -> 0 | S112: =AVERAGE(S110:S111) -> 0

Sheet 5. SM_Rev_Reqt
G18: 2006 | I18: 2007 | K18: 2008 | M18: 2009 | O18: 2010 | Q18: 2011 | S18: 2012 and Later
B19: Average Net Fixed Asset Values (from Sheet 4)
C20: Smart Meters | G20: ='4. SM_Assets_and_Rate_Base'!G36 -> 0 | I20: ='4. SM_Assets_and_Rate_Base'!I36 -> 0 | K20: ='4. SM_Assets_and_Rate_Base'!K36 -> 0 | M20: ='4. SM_Assets_and_Rate_Base'!M36 -> 87812.25133 | O20: ='4. SM_Assets_and_Rate_Base'!O36 -> 317164.4977 | Q20: ='4. SM_Assets_and_Rate_Base'!Q36 -> 497939.132 | S20: ='4. SM_Assets_and_Rate_Base'!S36 -> 517113.2227
C21: Computer Hardware | G21: ='4. SM_Assets_and_Rate_Base'!G55 -> 0 | I21: ='4. SM_Assets_and_Rate_Base'!I55 -> 0 | K21: ='4. SM_Assets_and_Rate_Base'!K55 -> 0 | M21: ='4. SM_Assets_and_Rate_Base'!M55 -> 0 | O21: ='4. SM_Assets_and_Rate_Base'!O55 -> 0 | Q21: ='4. SM_Assets_and_Rate_Base'!Q55 -> 0 | S21: ='4. SM_Assets_and_Rate_Base'!S55 -> 0
C22: Computer Software | G22: ='4. SM_Assets_and_Rate_Base'!G74 -> 0 | I22: ='4. SM_Assets_and_Rate_Base'!I74 -> 0 | K22: ='4. SM_Assets_and_Rate_Base'!K74 -> 0 | M22: ='4. SM_Assets_and_Rate_Base'!M74 -> 0 | O22: ='4. SM_Assets_and_Rate_Base'!O74 -> 463.32 | Q22: ='4. SM_Assets_and_Rate_Base'!Q74 -> 19057.59 | S22: ='4. SM_Assets_and_Rate_Base'!S74 -> 33033.6
C23: Tools & Equipment | G23: ='4. SM_Assets_and_Rate_Base'!G93 -> 0 | I23: ='4. SM_Assets_and_Rate_Base'!I93 -> 0 | K23: ='4. SM_Assets_and_Rate_Base'!K93 -> 0 | M23: ='4. SM_Assets_and_Rate_Base'!M93 -> 129.11925 | O23: ='4. SM_Assets_and_Rate_Base'!O93 -> 929.9485 | Q23: ='4. SM_Assets_and_Rate_Base'!Q93 -> 1733.765 | S23: ='4. SM_Assets_and_Rate_Base'!S93 -> 1757.213
C24: Other Equipment | G24: ='4. SM_Assets_and_Rate_Base'!G112 -> 0 | I24: ='4. SM_Assets_and_Rate_Base'!I112 -> 0 | K24: ='4. SM_Assets_and_Rate_Base'!K112 -> 0 | M24: ='4. SM_Assets_and_Rate_Base'!M112 -> 0 | O24: ='4. SM_Assets_and_Rate_Base'!O112 -> 0 | Q24: ='4. SM_Assets_and_Rate_Base'!Q112 -> 0 | S24: ='4. SM_Assets_and_Rate_Base'!S112 -> 0
C25: Total Net Fixed Assets | G25: =SUM(G20:G24) -> 0 | I25: =SUM(I20:I24) -> 0 | K25: =SUM(K20:K24) -> 0 | M25: =SUM(M20:M24) -> 87941.37058 | O25: =SUM(O20:O24) -> 318557.7662 | Q25: =SUM(Q20:Q24) -> 518730.487 | S25: =SUM(S20:S24) -> 551904.0357
B27: Working Capital
C28: Operating Expenses (from Sheet 2) | G28: ='2. Smart_Meter_Costs'!G174 -> 0 | I28: ='2. Smart_Meter_Costs'!I174 -> 0 | K28: ='2. Smart_Meter_Costs'!K174 -> 0 | M28: ='2. Smart_Meter_Costs'!M174 -> 0 | O28: ='2. Smart_Meter_Costs'!O174 -> 5242.83 | Q28: ='2. Smart_Meter_Costs'!Q174 -> 3699.79 | S28: ='2. Smart_Meter_Costs'!S174 -> 5957.52
C29: Working Capital Factor (from Sheet 3) | G29: ='3. Cost_of_Service_Parameters'!G36 -> 0.15 | I29: ='3. Cost_of_Service_Parameters'!I36 -> 0.15 | K29: ='3. Cost_of_Service_Parameters'!K36 -> 0.15 | M29: ='3. Cost_of_Service_Parameters'!M36 -> 0.15 | O29: ='3. Cost_of_Service_Parameters'!O36 -> 0.15 | Q29: ='3. Cost_of_Service_Parameters'!Q36 -> 0.15 | S29: ='3. Cost_of_Service_Parameters'!S36 -> 0.15
C30: Working Capital Allowance | G30: =G28*G29 -> 0 | I30: =I28*I29 -> 0 | K30: =K28*K29 -> 0 | M30: =M28*M29 -> 0 | O30: =O28*O29 -> 786.4245 | Q30: =Q28*Q29 -> 554.9685 | S30: =S28*S29 -> 893.628
B32: Incremental Smart Meter Rate Base | G32: =G25+G30 -> 0 | I32: =I25+I30 -> 0 | K32: =K25+K30 -> 0 | M32: =M25+M30 -> 87941.37058 | O32: =O25+O30 -> 319344.1907 | Q32: =Q25+Q30 -> 519285.4555 | S32: =S25+S30 -> 552797.6637
B34: Return on Rate Base
C35: Capital Structure
C36: Deemed Short Term Debt | G36: =G$32*'3. Cost_of_Service_Parameters'!G22 -> 0 | I36: =I$32*'3. Cost_of_Service_Parameters'!I22 -> 0 | K36: =K$32*'3. Cost_of_Service_Parameters'!K22 -> 0 | M36: =M$32*'3. Cost_of_Service_Parameters'!M22 -> 0 | O36: =O$32*'3. Cost_of_Service_Parameters'!O22 -> 12773.76763 | Q36: =Q$32*'3. Cost_of_Service_Parameters'!Q22 -> 20771.41822 | S36: =S$32*'3. Cost_of_Service_Parameters'!S22 -> 22111.90655
C37: Deemed Long Term Debt | G37: =G$32*'3. Cost_of_Service_Parameters'!G23 -> 0 | I37: =I$32*'3. Cost_of_Service_Parameters'!I23 -> 0 | K37: =K$32*'3. Cost_of_Service_Parameters'!K23 -> 0 | M37: =M$32*'3. Cost_of_Service_Parameters'!M23 -> 49862.75712 | O37: =O$32*'3. Cost_of_Service_Parameters'!O23 -> 178832.7468 | Q37: =Q$32*'3. Cost_of_Service_Parameters'!Q23 -> 290799.8551 | S37: =S$32*'3. Cost_of_Service_Parameters'!S23 -> 309566.6917
C38: Equity | G38: =G$32*'3. Cost_of_Service_Parameters'!G24 -> 0 | I38: =I$32*'3. Cost_of_Service_Parameters'!I24 -> 0 | K38: =K$32*'3. Cost_of_Service_Parameters'!K24 -> 0 | M38: =M$32*'3. Cost_of_Service_Parameters'!M24 -> 38078.61346 | O38: =O$32*'3. Cost_of_Service_Parameters'!O24 -> 127737.6763 | Q38: =Q$32*'3. Cost_of_Service_Parameters'!Q24 -> 207714.1822 | S38: =S$32*'3. Cost_of_Service_Parameters'!S24 -> 221119.0655
C39: Preferred Shares | G39: =G$32*'3. Cost_of_Service_Parameters'!G25 -> 0 | I39: =I$32*'3. Cost_of_Service_Parameters'!I25 -> 0 | K39: =K$32*'3. Cost_of_Service_Parameters'!K25 -> 0 | M39: =M$32*'3. Cost_of_Service_Parameters'!M25 -> 0 | O39: =O$32*'3. Cost_of_Service_Parameters'!O25 -> 0 | Q39: =Q$32*'3. Cost_of_Service_Parameters'!Q25 -> 0 | S39: =S$32*'3. Cost_of_Service_Parameters'!S25 -> 0
C40: Total Capitalization | G40: =SUM(G36:G39) -> 0 | I40: =SUM(I36:I39) -> 0 | K40: =SUM(K36:K39) -> 0 | M40: =SUM(M36:M39) -> 87941.37058 | O40: =SUM(O36:O39) -> 319344.1907 | Q40: =SUM(Q36:Q39) -> 519285.4555 | S40: =SUM(S36:S39) -> 552797.6637
G41: =IF(G40=G32,"","Error") ->  | I41: =IF(I40=I32,"","Error") ->  | K41: =IF(K40=K32,"","Error") ->  | M41: =IF(M40=M32,"","Error") ->  | O41: =IF(O40=O32,"","Error") ->  | Q41: =IF(Q40=Q32,"","Error") ->  | S41: =IF(S40=S32,"","Error") -> 
C42: Return on
C43: Deemed Short Term Debt | G43: =G36*'3. Cost_of_Service_Parameters'!G29 -> 0 | I43: =I36*'3. Cost_of_Service_Parameters'!I29 -> 0 | K43: =K36*'3. Cost_of_Service_Parameters'!K29 -> 0 | M43: =M36*'3. Cost_of_Service_Parameters'!M29 -> 0 | O43: =O36*'3. Cost_of_Service_Parameters'!O29 -> 169.8911094 | Q43: =Q36*'3. Cost_of_Service_Parameters'!Q29 -> 276.2598623 | S43: =S36*'3. Cost_of_Service_Parameters'!S29 -> 294.0883571
C44: Deemed Long Term Debt | G44: =G37*'3. Cost_of_Service_Parameters'!G30 -> 0 | I44: =I37*'3. Cost_of_Service_Parameters'!I30 -> 0 | K44: =K37*'3. Cost_of_Service_Parameters'!K30 -> 0 | M44: =M37*'3. Cost_of_Service_Parameters'!M30 -> 3116.42232 | O44: =O37*'3. Cost_of_Service_Parameters'!O30 -> 13627.0553 | Q44: =Q37*'3. Cost_of_Service_Parameters'!Q30 -> 22158.94896 | S44: =S37*'3. Cost_of_Service_Parameters'!S30 -> 23588.9819
C45: Equity | G45: =G38*'3. Cost_of_Service_Parameters'!G31 -> 0 | I45: =I38*'3. Cost_of_Service_Parameters'!I31 -> 0 | K45: =K38*'3. Cost_of_Service_Parameters'!K31 -> 0 | M45: =M38*'3. Cost_of_Service_Parameters'!M31 -> 3427.075212 | O45: =O38*'3. Cost_of_Service_Parameters'!O31 -> 10231.78787 | Q45: =Q38*'3. Cost_of_Service_Parameters'!Q31 -> 16637.90599 | S45: =S38*'3. Cost_of_Service_Parameters'!S31 -> 17711.63714
C46: Preferred Shares | G46: =G39*'3. Cost_of_Service_Parameters'!G32 -> 0 | I46: =I39*'3. Cost_of_Service_Parameters'!I32 -> 0 | K46: =K39*'3. Cost_of_Service_Parameters'!K32 -> 0 | M46: =M39*'3. Cost_of_Service_Parameters'!M32 -> 0 | O46: =O39*'3. Cost_of_Service_Parameters'!O32 -> 0 | Q46: =Q39*'3. Cost_of_Service_Parameters'!Q32 -> 0 | S46: =S39*'3. Cost_of_Service_Parameters'!S32 -> 0
C47: Total Return on Capital | G47: =SUM(G43:G46) -> 0 | I47: =SUM(I43:I46) -> 0 | K47: =SUM(K43:K46) -> 0 | M47: =SUM(M43:M46) -> 6543.497532 | O47: =SUM(O43:O46) -> 24028.73428 | Q47: =SUM(Q43:Q46) -> 39073.11481 | S47: =SUM(S43:S46) -> 41594.7074
B50: Operating Expenses | G50: =G28 -> 0 | I50: =I28 -> 0 | K50: =K28 -> 0 | M50: =M28 -> 0 | O50: =O28 -> 5242.83 | Q50: =Q28 -> 3699.79 | S50: =S28 -> 5957.52
B52: Amortization Expenses (from Sheet 4)
C53: Smart Meters | G53: =-'4. SM_Assets_and_Rate_Base'!G29 -> 0 | I53: =-'4. SM_Assets_and_Rate_Base'!I29 -> 0 | K53: =-'4. SM_Assets_and_Rate_Base'!K29 -> 0 | M53: =-'4. SM_Assets_and_Rate_Base'!M29 -> 6056.017333 | O53: =-'4. SM_Assets_and_Rate_Base'!O29 -> 22291.07 | Q53: =-'4. SM_Assets_and_Rate_Base'!Q29 -> 36295.60133 | S53: =-'4. SM_Assets_and_Rate_Base'!S29 -> 40121.09733
C54: Computer Hardware | G54: =-'4. SM_Assets_and_Rate_Base'!G48 -> 0 | I54: =-'4. SM_Assets_and_Rate_Base'!I48 -> 0 | K54: =-'4. SM_Assets_and_Rate_Base'!K48 -> 0 | M54: =-'4. SM_Assets_and_Rate_Base'!M48 -> 0 | O54: =-'4. SM_Assets_and_Rate_Base'!O48 -> 0 | Q54: =-'4. SM_Assets_and_Rate_Base'!Q48 -> 0 | S54: =-'4. SM_Assets_and_Rate_Base'!S48 -> 0
C55: Computer Software | G55: =-'4. SM_Assets_and_Rate_Base'!G67 -> 0 | I55: =-'4. SM_Assets_and_Rate_Base'!I67 -> 0 | K55: =-'4. SM_Assets_and_Rate_Base'!K67 -> 0 | M55: =-'4. SM_Assets_and_Rate_Base'!M67 -> 0 | O55: =-'4. SM_Assets_and_Rate_Base'!O67 -> 102.96 | Q55: =-'4. SM_Assets_and_Rate_Base'!Q67 -> 4257.9 | S55: =-'4. SM_Assets_and_Rate_Base'!S67 -> 8309.88
C56: Tools & Equipment | G56: =-'4. SM_Assets_and_Rate_Base'!G86 -> 0 | I56: =-'4. SM_Assets_and_Rate_Base'!I86 -> 0 | K56: =-'4. SM_Assets_and_Rate_Base'!K86 -> 0 | M56: =-'4. SM_Assets_and_Rate_Base'!M86 -> 13.5915 | O56: =-'4. SM_Assets_and_Rate_Base'!O86 -> 99.32 | Q56: =-'4. SM_Assets_and_Rate_Base'!Q86 -> 194.387 | S56: =-'4. SM_Assets_and_Rate_Base'!S86 -> 217.317
C57: Other Equipment | G57: =-'4. SM_Assets_and_Rate_Base'!G105 -> 0 | I57: =-'4. SM_Assets_and_Rate_Base'!I105 -> 0 | K57: =-'4. SM_Assets_and_Rate_Base'!K105 -> 0 | M57: =-'4. SM_Assets_and_Rate_Base'!M105 -> 0 | O57: =-'4. SM_Assets_and_Rate_Base'!O105 -> 0 | Q57: =-'4. SM_Assets_and_Rate_Base'!Q105 -> 0 | S57: =-'4. SM_Assets_and_Rate_Base'!S105 -> 0
C58: Total Amortization Expense in Year | G58: =SUM(G53:G57) -> 0 | I58: =SUM(I53:I57) -> 0 | K58: =SUM(K53:K57) -> 0 | M58: =SUM(M53:M57) -> 6069.608833 | O58: =SUM(O53:O57) -> 22493.35 | Q58: =SUM(Q53:Q57) -> 40747.88833 | S58: =SUM(S53:S57) -> 48648.29433
B60: Incremental Revenue Requirement before Taxes/PILs | G60: =G47+G50+G58 -> 0 | I60: =I47+I50+I58 -> 0 | K60: =K47+K50+K58 -> 0 | M60: =M47+M50+M58 -> 12613.10637 | O60: =O47+O50+O58 -> 51764.91428 | Q60: =Q47+Q50+Q58 -> 83520.79315 | S60: =S47+S50+S58 -> 96200.52174
B62: Calculation of Taxable Income
C63: Incremental Operating Expenses | G63: =G50 -> 0 | I63: =I50 -> 0 | K63: =K50 -> 0 | M63: =M50 -> 0 | O63: =O50 -> 5242.83 | Q63: =Q50 -> 3699.79 | S63: =S50 -> 5957.52
C64: Amortization Expense | G64: =G58 -> 0 | I64: =I58 -> 0 | K64: =K58 -> 0 | M64: =M58 -> 6069.608833 | O64: =O58 -> 22493.35 | Q64: =Q58 -> 40747.88833 | S64: =S58 -> 48648.29433
C65: Interest Expense | G65: =G43+G44 -> 0 | I65: =I43+I44 -> 0 | K65: =K43+K44 -> 0 | M65: =M43+M44 -> 3116.42232 | O65: =O43+O44 -> 13796.94641 | Q65: =Q43+Q44 -> 22435.20882 | S65: =S43+S44 -> 23883.07026
C66: Net Income for Taxes/PILs | G66: =G60-SUM(G63:G65) -> 0 | I66: =I60-SUM(I63:I65) -> 0 | K66: =K60-SUM(K63:K65) -> 0 | M66: =M60-SUM(M63:M65) -> 3427.075212 | O66: =O60-SUM(O63:O65) -> 10231.78787 | Q66: =Q60-SUM(Q63:Q65) -> 16637.90599 | S66: =S60-SUM(S63:S65) -> 17711.63714
B68: Grossed-up Taxes/PILs (from Sheet 7) | G68: ='7_Taxes_PILs'!C59 -> 0 | I68: ='7_Taxes_PILs'!E59 -> 0 | K68: ='7_Taxes_PILs'!G59 -> 0 | M68: ='7_Taxes_PILs'!I59 -> 830.9172939 | O68: ='7_Taxes_PILs'!K59 -> 1460.063285 | Q68: ='7_Taxes_PILs'!M59 -> -412.0906714 | S68: ='7_Taxes_PILs'!O59 -> 851.753457
B70: Revenue Requirement, including Grossed-up Taxes/PILs | G70: =G60+G68 -> 0 | I70: =I60+I68 -> 0 | K70: =K60+K68 -> 0 | M70: =M60+M68 -> 13444.02366 | O70: =O60+O68 -> 53224.97757 | Q70: =Q60+Q68 -> 83108.70248 | S70: =S60+S68 -> 97052.2752

Sheet 6. UCC_Calculation
A18: For PILs Calculation
A20: UCC - Smart Meters | B20: ='2. Smart_Meter_Costs'!G18 -> 2006 | D20: ='2. Smart_Meter_Costs'!I18 -> 2007 | F20: ='2. Smart_Meter_Costs'!K18 -> 2008 | H20: ='2. Smart_Meter_Costs'!M18 -> 2009 | J20: ='2. Smart_Meter_Costs'!O18 -> 2010 | L20: ='2. Smart_Meter_Costs'!Q18 -> 2011 | N20: ='2. Smart_Meter_Costs'!S18 -> 2012 and later
B21: ='2. Smart_Meter_Costs'!G19 -> Audited Actual | D21: ='2. Smart_Meter_Costs'!I19 -> Audited Actual | F21: ='2. Smart_Meter_Costs'!K19 -> Audited Actual | H21: ='2. Smart_Meter_Costs'!M19 -> Audited Actual | J21: ='2. Smart_Meter_Costs'!O19 -> Audited Actual | L21: ='2. Smart_Meter_Costs'!Q19 -> Audited Actual | N21: ='2. Smart_Meter_Costs'!S19 -> Forecast
A23: Opening UCC | B23: 0 | D23: =B26-B31 -> 0 | F23: =D26-D31 -> 0 | H23: =F26-F31 -> 0 | J23: =H26-H31 -> 174413.2992 | L23: =J26-J31 -> 453616.4529 | N23: =L26-L31 -> 527501.4214
A24: Capital Additions | B24: ='4. SM_Assets_and_Rate_Base'!G23 -> 0 | D24: ='4. SM_Assets_and_Rate_Base'!I23 -> 0 | F24: ='4. SM_Assets_and_Rate_Base'!K23 -> 0 | H24: ='4. SM_Assets_and_Rate_Base'!M23 -> 181680.52 | J24: ='4. SM_Assets_and_Rate_Base'!O23 -> 305371.06 | L24: ='4. SM_Assets_and_Rate_Base'!Q23 -> 114764.88 | N24: ='4. SM_Assets_and_Rate_Base'!S23 -> 0
A25: Retirements/Removals (if applicable)
A26: UCC Before Half Year Rule | B26: =SUM(B23:B24)-B25 -> 0 | D26: =SUM(D23:D24)-D25 -> 0 | F26: =SUM(F23:F24)-F25 -> 0 | H26: =SUM(H23:H24)-H25 -> 181680.52 | J26: =SUM(J23:J24)-J25 -> 479784.3592 | L26: =SUM(L23:L24)-L25 -> 568381.3329 | N26: =SUM(N23:N24)-N25 -> 527501.4214
A27: Half Year Rule (1/2 Additions - Disposals) | B27: =IF(((B24-B25)/2)<0, 0, (B24-B25)/2) -> 0 | D27: =IF(((D24-D25)/2)<0, 0, (D24-D25)/2) -> 0 | F27: =IF(((F24-F25)/2)<0, 0, (F24-F25)/2) -> 0 | H27: =IF(((H24-H25)/2)<0, 0, (H24-H25)/2) -> 90840.26 | J27: =IF(((J24-J25)/2)<0, 0, (J24-J25)/2) -> 152685.53 | L27: =IF(((L24-L25)/2)<0, 0, (L24-L25)/2) -> 57382.44 | N27: =IF(((N24-N25)/2)<0, 0, (N24-N25)/2) -> 0
A28: Reduced UCC | B28: =B27+B23 -> 0 | D28: =D27+D23 -> 0 | F28: =F27+F23 -> 0 | H28: =H27+H23 -> 90840.26 | J28: =J27+J23 -> 327098.8292 | L28: =L27+L23 -> 510998.8929 | N28: =N27+N23 -> 527501.4214
A29: CCA Rate Class | B29: ='3. Cost_of_Service_Parameters'!G57 -> 1 | D29: ='3. Cost_of_Service_Parameters'!I57 -> 47 | F29: ='3. Cost_of_Service_Parameters'!K57 -> 47 | H29: ='3. Cost_of_Service_Parameters'!M57 -> 47 | J29: ='3. Cost_of_Service_Parameters'!O57 -> 47 | L29: ='3. Cost_of_Service_Parameters'!Q57 -> 47 | N29: ='3. Cost_of_Service_Parameters'!S57 -> 47
A30: CCA Rate | B30: ='3. Cost_of_Service_Parameters'!G58 -> 0.04 | D30: ='3. Cost_of_Service_Parameters'!I58 -> 0.08 | F30: ='3. Cost_of_Service_Parameters'!K58 -> 0.08 | H30: ='3. Cost_of_Service_Parameters'!M58 -> 0.08 | J30: ='3. Cost_of_Service_Parameters'!O58 -> 0.08 | L30: ='3. Cost_of_Service_Parameters'!Q58 -> 0.08 | N30: ='3. Cost_of_Service_Parameters'!S58 -> 0.08
A31: CCA | B31: =B28*B30 -> 0 | D31: =D28*D30 -> 0 | F31: =F28*F30 -> 0 | H31: =H28*H30 -> 7267.2208 | J31: =J28*J30 -> 26167.90634 | L31: =L28*L30 -> 40879.91143 | N31: =N28*N30 -> 42200.11371
A32: Closing UCC | B32: =IF((B26-B31)<0, 0, B26-B31) -> 0 | D32: =IF((D26-D31)<0, 0, D26-D31) -> 0 | F32: =IF((F26-F31)<0, 0, F26-F31) -> 0 | H32: =IF((H26-H31)<0, 0, H26-H31) -> 174413.2992 | J32: =IF((J26-J31)<0, 0, J26-J31) -> 453616.4529 | L32: =IF((L26-L31)<0, 0, L26-L31) -> 527501.4214 | N32: =IF((N26-N31)<0, 0, N26-N31) -> 485301.3077
A34: UCC - Computer Equipment | B34: =B20 -> 2006 | D34: 2007 | F34: 2008 | H34: 2009 | J34: 2010 | L34: 2011 | N34: =N20 -> 2012 and later
B35: Audited Actual | D35: Audited Actual | F35: Audited Actual | H35: Audited Actual | J35: Audited Actual | L35: Audited Actual | N35: =N21 -> Forecast
A37: Opening UCC | B37: 0 | D37: =B41-B46 -> 0 | F37: =D41-D46 -> 0 | H37: =F41-F46 -> 0 | J37: =H41-H46 -> 0 | L37: =J41-J46 -> 0 | N37: =L41-L46 -> 7626.855
A38: Capital Additions Computer Hardware | B38: ='2. Smart_Meter_Costs'!G183 -> 0 | D38: ='2. Smart_Meter_Costs'!I183 -> 0 | F38: ='2. Smart_Meter_Costs'!K183 -> 0 | H38: ='2. Smart_Meter_Costs'!M183 -> 0 | J38: ='2. Smart_Meter_Costs'!O183 -> 0 | L38: ='2. Smart_Meter_Costs'!Q183 -> 0 | N38: ='2. Smart_Meter_Costs'!S183 -> 0
A39: Capital Additions Computer Software | B39: ='2. Smart_Meter_Costs'!G185 -> 0 | D39: ='2. Smart_Meter_Costs'!I185 -> 0 | F39: ='2. Smart_Meter_Costs'!K185 -> 0 | H39: ='2. Smart_Meter_Costs'!M185 -> 0 | J39: ='2. Smart_Meter_Costs'!O185 -> 0 | L39: ='2. Smart_Meter_Costs'!Q185 -> 10519.8 | N39: ='2. Smart_Meter_Costs'!S185 -> 0
A40: Retirements/Removals (if applicable)
A41: UCC Before Half Year Rule | B41: =SUM(B37:B39)-B40 -> 0 | D41: =SUM(D37:D39)-D40 -> 0 | F41: =SUM(F37:F39)-F40 -> 0 | H41: =SUM(H37:H39)-H40 -> 0 | J41: =SUM(J37:J39)-J40 -> 0 | L41: =SUM(L37:L39)-L40 -> 10519.8 | N41: =SUM(N37:N39)-N40 -> 7626.855
A42: Half Year Rule (1/2 Additions - Disposals) | B42: =IF((SUM(B38:B39)/2)<0, 0, SUM(B38:B39)/2) -> 0 | D42: =IF((SUM(D38:D39)/2)<0, 0, SUM(D38:D39)/2) -> 0 | F42: =IF((SUM(F38:F39)/2)<0, 0, SUM(F38:F39)/2) -> 0 | H42: =IF((SUM(H38:H39)/2)<0, 0, SUM(H38:H39)/2) -> 0 | J42: =IF((SUM(J38:J39)/2)<0, 0, SUM(J38:J39)/2) -> 0 | L42: =IF((SUM(L38:L39)/2)<0, 0, SUM(L38:L39)/2) -> 5259.9 | N42: =IF((SUM(N38:N39)/2)<0, 0, SUM(N38:N39)/2) -> 0
A43: Reduced UCC | B43: =B42+B37 -> 0 | D43: =D42+D37 -> 0 | F43: =F42+F37 -> 0 | H43: =H42+H37 -> 0 | J43: =J42+J37 -> 0 | L43: =L42+L37 -> 5259.9 | N43: =N42+N37 -> 7626.855
A44: CCA Rate Class | B44: ='3. Cost_of_Service_Parameters'!G60 -> 45 | D44: ='3. Cost_of_Service_Parameters'!I60 -> 50 | F44: ='3. Cost_of_Service_Parameters'!K60 -> 50 | H44: ='3. Cost_of_Service_Parameters'!M60 -> 52 | J44: ='3. Cost_of_Service_Parameters'!O60 -> 52 | L44: ='3. Cost_of_Service_Parameters'!Q60 -> 50 | N44: ='3. Cost_of_Service_Parameters'!S60 -> 50
A45: CCA Rate | B45: ='3. Cost_of_Service_Parameters'!G61 -> 0.45 | D45: ='3. Cost_of_Service_Parameters'!I61 -> 0.55 | F45: ='3. Cost_of_Service_Parameters'!K61 -> 0.55 | H45: ='3. Cost_of_Service_Parameters'!M61 -> 1 | J45: ='3. Cost_of_Service_Parameters'!O61 -> 1 | L45: ='3. Cost_of_Service_Parameters'!Q61 -> 0.55 | N45: ='3. Cost_of_Service_Parameters'!S61 -> 0.55
A46: CCA | B46: =B45*B43 -> 0 | D46: =D45*D43 -> 0 | F46: =F45*F43 -> 0 | H46: =H45*H43 -> 0 | J46: =J45*J43 -> 0 | L46: =L45*L43 -> 2892.945 | N46: =N45*N43 -> 4194.77025
A47: Closing UCC | B47: =IF((B41-B46)<0, 0, B41-B46) -> 0 | D47: =IF((D41-D46)<0, 0, D41-D46) -> 0 | F47: =IF((F41-F46)<0, 0, F41-F46) -> 0 | H47: =IF((H41-H46)<0, 0, H41-H46) -> 0 | J47: =IF((J41-J46)<0, 0, J41-J46) -> 0 | L47: =IF((L41-L46)<0, 0, L41-L46) -> 7626.855 | N47: =IF((N41-N46)<0, 0, N41-N46) -> 3432.08475
A49: UCC - General Equipment | B49: =B34 -> 2006 | D49: 2007 | F49: 2008 | H49: 2009 | J49: 2010 | L49: 2011 | N49: =N34 -> 2012 and later
B50: Audited Actual | D50: Audited Actual | F50: Audited Actual | H50: Audited Actual | J50: Audited Actual | L50: Audited Actual | N50: =N35 -> Forecast
A52: Opening UCC | B52: 0 | D52: =B56-B61 -> 0 | F52: =D56-D61 -> 0 | H52: =F56-F61 -> 0 | J52: =H56-H61 -> 244.647 | L52: =J56-J61 -> 1494.1836 | N52: =L56-L61 -> 1608.08688
A53: Capital Additions Tools & Equipment | B53: ='2. Smart_Meter_Costs'!G187 -> 0 | D53: ='2. Smart_Meter_Costs'!I187 -> 0 | F53: ='2. Smart_Meter_Costs'!K187 -> 0 | H53: ='2. Smart_Meter_Costs'!M187 -> 271.83 | J53: ='2. Smart_Meter_Costs'!O187 -> 1442.74 | L53: ='2. Smart_Meter_Costs'!Q187 -> 458.6 | N53: ='2. Smart_Meter_Costs'!S187 -> 0
A54: Capital Additions Other Equipment | B54: ='2. Smart_Meter_Costs'!G189 -> 0 | D54: ='2. Smart_Meter_Costs'!I189 -> 0 | F54: ='2. Smart_Meter_Costs'!K189 -> 0 | H54: ='2. Smart_Meter_Costs'!M189 -> 0 | J54: ='2. Smart_Meter_Costs'!O189 -> 0 | L54: ='2. Smart_Meter_Costs'!Q189 -> 0 | N54: ='2. Smart_Meter_Costs'!S189 -> 0
A55: Retirements/Removals (if applicable)
A56: UCC Before Half Year Rule | B56: =SUM(B52:B54)-B55 -> 0 | D56: =SUM(D52:D54)-D55 -> 0 | F56: =SUM(F52:F54)-F55 -> 0 | H56: =SUM(H52:H54)-H55 -> 271.83 | J56: =SUM(J52:J54)-J55 -> 1687.387 | L56: =SUM(L52:L54)-L55 -> 1952.7836 | N56: =SUM(N52:N54)-N55 -> 1608.08688
A57: Half Year Rule (1/2 Additions - Disposals) | B57: =IF(((SUM(B53:B54)-B55)/2)<0, 0, (SUM(B53:B54)-B55)/2) -> 0 | D57: =IF(((SUM(D53:D54)-D55)/2)<0, 0, (SUM(D53:D54)-D55)/2) -> 0 | F57: =IF(((SUM(F53:F54)-F55)/2)<0, 0, (SUM(F53:F54)-F55)/2) -> 0 | H57: =IF(((SUM(H53:H54)-H55)/2)<0, 0, (SUM(H53:H54)-H55)/2) -> 135.915 | J57: =IF(((SUM(J53:J54)-J55)/2)<0, 0, (SUM(J53:J54)-J55)/2) -> 721.37 | L57: =IF(((SUM(L53:L54)-L55)/2)<0, 0, (SUM(L53:L54)-L55)/2) -> 229.3 | N57: =IF(((SUM(N53:N54)-N55)/2)<0, 0, (SUM(N53:N54)-N55)/2) -> 0
A58: Reduced UCC | B58: =B57+B52 -> 0 | D58: =D57+D52 -> 0 | F58: =F57+F52 -> 0 | H58: =H57+H52 -> 135.915 | J58: =J57+J52 -> 966.017 | L58: =L57+L52 -> 1723.4836 | N58: =N57+N52 -> 1608.08688
A59: CCA Rate Class | B59: ='3. Cost_of_Service_Parameters'!G63 -> 8 | D59: ='3. Cost_of_Service_Parameters'!I63 -> 8 | F59: ='3. Cost_of_Service_Parameters'!K63 -> 8 | H59: ='3. Cost_of_Service_Parameters'!M63 -> 8 | J59: ='3. Cost_of_Service_Parameters'!O63 -> 8 | L59: ='3. Cost_of_Service_Parameters'!Q63 -> 8 | N59: ='3. Cost_of_Service_Parameters'!S63 -> 8
A60: CCA Rate | B60: ='3. Cost_of_Service_Parameters'!G64 -> 0.2 | D60: ='3. Cost_of_Service_Parameters'!I64 -> 0.2 | F60: ='3. Cost_of_Service_Parameters'!K64 -> 0.2 | H60: ='3. Cost_of_Service_Parameters'!M64 -> 0.2 | J60: ='3. Cost_of_Service_Parameters'!O64 -> 0.2 | L60: ='3. Cost_of_Service_Parameters'!Q64 -> 0.2 | N60: ='3. Cost_of_Service_Parameters'!S64 -> 0.2
A61: CCA | B61: =B60*B58 -> 0 | D61: =D60*D58 -> 0 | F61: =F60*F58 -> 0 | H61: =H60*H58 -> 27.183 | J61: =J60*J58 -> 193.2034 | L61: =L60*L58 -> 344.69672 | N61: =N60*N58 -> 321.617376
A62: Closing UCC | B62: =IF((B56-B61)<0, 0, B56-B61) -> 0 | D62: =IF((D56-D61)<0, 0, D56-D61) -> 0 | F62: =IF((F56-F61)<0, 0, F56-F61) -> 0 | H62: =IF((H56-H61)<0, 0, H56-H61) -> 244.647 | J62: =IF((J56-J61)<0, 0, J56-J61) -> 1494.1836 | L62: =IF((L56-L61)<0, 0, L56-L61) -> 1608.08688 | N62: =IF((N56-N61)<0, 0, N56-N61) -> 1286.469504
A64: UCC - Applications Software | B64: =B49 -> 2006 | D64: =D49 -> 2007 | F64: =F49 -> 2008 | H64: =H49 -> 2009 | J64: =J49 -> 2010 | L64: =L49 -> 2011 | N64: =N49 -> 2012 and later
B65: =B50 -> Audited Actual | D65: =D50 -> Audited Actual | F65: =F50 -> Audited Actual | H65: =H50 -> Audited Actual | J65: =J50 -> Audited Actual | L65: =L50 -> Audited Actual | N65: =N50 -> Forecast
A67: Opening UCC | B67: 0 | D67: =B70-B75 -> 0 | F67: =D70-D75 -> 0 | H67: =F70-F75 -> 0 | J67: =H70-H75 -> 0 | L67: =J70-J75 -> 514.8 | N67: =L70-L75 -> 15000
A68: Capital Additions Applications Software | B68: ='2. Smart_Meter_Costs'!G191 -> 0 | D68: ='2. Smart_Meter_Costs'!I191 -> 0 | F68: ='2. Smart_Meter_Costs'!K191 -> 0 | H68: ='2. Smart_Meter_Costs'!M191 -> 0 | J68: ='2. Smart_Meter_Costs'!O191 -> 1029.6 | L68: ='2. Smart_Meter_Costs'!Q191 -> 30000 | N68: ='2. Smart_Meter_Costs'!S191 -> 0
A69: Retirements/Removals (if applicable)
A70: UCC Before Half Year Rule | B70: =SUM(B67:B68)-B69 -> 0 | D70: =SUM(D67:D68)-D69 -> 0 | F70: =SUM(F67:F68)-F69 -> 0 | H70: =SUM(H67:H68)-H69 -> 0 | J70: =SUM(J67:J68)-J69 -> 1029.6 | L70: =SUM(L67:L68)-L69 -> 30514.8 | N70: =SUM(N67:N68)-N69 -> 15000
A71: Half Year Rule (1/2 Additions - Disposals) | B71: =IF(((SUM(B68:B68)-B69)/2)<0, 0, (SUM(B68:B68)-B69)/2) -> 0 | D71: =IF(((SUM(D68:D68)-D69)/2)<0, 0, (SUM(D68:D68)-D69)/2) -> 0 | F71: =IF(((SUM(F68:F68)-F69)/2)<0, 0, (SUM(F68:F68)-F69)/2) -> 0 | H71: =IF(((SUM(H68:H68)-H69)/2)<0, 0, (SUM(H68:H68)-H69)/2) -> 0 | J71: =IF(((SUM(J68:J68)-J69)/2)<0, 0, (SUM(J68:J68)-J69)/2) -> 514.8 | L71: =IF(((SUM(L68:L68)-L69)/2)<0, 0, (SUM(L68:L68)-L69)/2) -> 15000 | N71: =IF(((SUM(N68:N68)-N69)/2)<0, 0, (SUM(N68:N68)-N69)/2) -> 0
A72: Reduced UCC | B72: =B71+B67 -> 0 | D72: =D71+D67 -> 0 | F72: =F71+F67 -> 0 | H72: =H71+H67 -> 0 | J72: =J71+J67 -> 514.8 | L72: =L71+L67 -> 15514.8 | N72: =N71+N67 -> 15000
A73: CCA Rate Class | B73: ='3. Cost_of_Service_Parameters'!G66 -> 12 | D73: ='3. Cost_of_Service_Parameters'!I66 -> 12 | F73: ='3. Cost_of_Service_Parameters'!K66 -> 12 | H73: ='3. Cost_of_Service_Parameters'!M66 -> 12 | J73: ='3. Cost_of_Service_Parameters'!O66 -> 12 | L73: ='3. Cost_of_Service_Parameters'!Q66 -> 12 | N73: ='3. Cost_of_Service_Parameters'!S66 -> 12
A74: CCA Rate | B74: ='3. Cost_of_Service_Parameters'!G67 -> 1 | D74: ='3. Cost_of_Service_Parameters'!I67 -> 1 | F74: ='3. Cost_of_Service_Parameters'!K67 -> 1 | H74: ='3. Cost_of_Service_Parameters'!M67 -> 1 | J74: ='3. Cost_of_Service_Parameters'!O67 -> 1 | L74: ='3. Cost_of_Service_Parameters'!Q67 -> 1 | N74: ='3. Cost_of_Service_Parameters'!S67 -> 1
A75: CCA | B75: =B74*B72 -> 0 | D75: =D74*D72 -> 0 | F75: =F74*F72 -> 0 | H75: =H74*H72 -> 0 | J75: =J74*J72 -> 514.8 | L75: =L74*L72 -> 15514.8 | N75: =N74*N72 -> 15000
A76: Closing UCC | B76: =IF((B70-B75)<0, 0, B70-B75) -> 0 | D76: =IF((D70-D75)<0, 0, D70-D75) -> 0 | F76: =IF((F70-F75)<0, 0, F70-F75) -> 0 | H76: =IF((H70-H75)<0, 0, H70-H75) -> 0 | J76: =IF((J70-J75)<0, 0, J70-J75) -> 514.8 | L76: =IF((L70-L75)<0, 0, L70-L75) -> 15000 | N76: =IF((N70-N75)<0, 0, N70-N75) -> 0

Sheet 7_Taxes_PILs
A18: PILs Calculation
C20: ='2. Smart_Meter_Costs'!G18& " " &'2. Smart_Meter_Costs'!G19 -> 2006 Audited Actual | E20: ='2. Smart_Meter_Costs'!I18& " " &'2. Smart_Meter_Costs'!I19 -> 2007 Audited Actual | G20: ='2. Smart_Meter_Costs'!K18& " " &'2. Smart_Meter_Costs'!K19 -> 2008 Audited Actual | I20: ='2. Smart_Meter_Costs'!M18& " " &'2. Smart_Meter_Costs'!M19 -> 2009 Audited Actual | K20: ='2. Smart_Meter_Costs'!O18& " " &'2. Smart_Meter_Costs'!O19 -> 2010 Audited Actual | M20: ='2. Smart_Meter_Costs'!Q18& " " &'2. Smart_Meter_Costs'!Q19 -> 2011 Audited Actual | O20: ='2. Smart_Meter_Costs'!S18& " " &'2. Smart_Meter_Costs'!S19 -> 2012 and later Forecast
A22: INCOME TAX
B23: Net Income | C23: ='5. SM_Rev_Reqt'!G$66 -> 0 | E23: ='5. SM_Rev_Reqt'!I$66 -> 0 | G23: ='5. SM_Rev_Reqt'!K$66 -> 0 | I23: ='5. SM_Rev_Reqt'!M$66 -> 3427.075212 | K23: ='5. SM_Rev_Reqt'!O$66 -> 10231.78787 | M23: ='5. SM_Rev_Reqt'!Q$66 -> 16637.90599 | O23: ='5. SM_Rev_Reqt'!S$66 -> 17711.63714
B24: Amortization | C24: ='5. SM_Rev_Reqt'!G$64 -> 0 | E24: ='5. SM_Rev_Reqt'!I$64 -> 0 | G24: ='5. SM_Rev_Reqt'!K$64 -> 0 | I24: ='5. SM_Rev_Reqt'!M$64 -> 6069.608833 | K24: ='5. SM_Rev_Reqt'!O$64 -> 22493.35 | M24: ='5. SM_Rev_Reqt'!Q$64 -> 40747.88833 | O24: ='5. SM_Rev_Reqt'!S$64 -> 48648.29433
B25: CCA - Smart Meters | C25: =-'6. UCC_Calculation'!B31 -> 0 | E25: =-'6. UCC_Calculation'!D31 -> 0 | G25: =-'6. UCC_Calculation'!F31 -> 0 | I25: =-'6. UCC_Calculation'!H31 -> -7267.2208 | K25: =-'6. UCC_Calculation'!J31 -> -26167.90634 | M25: =-'6. UCC_Calculation'!L31 -> -40879.91143 | O25: =-'6. UCC_Calculation'!N31 -> -42200.11371
B26: CCA - Computers | C26: =-'6. UCC_Calculation'!B46 -> 0 | E26: =-'6. UCC_Calculation'!D46 -> 0 | G26: =-'6. UCC_Calculation'!F46 -> 0 | I26: =-'6. UCC_Calculation'!H46 -> 0 | K26: =-'6. UCC_Calculation'!J46 -> 0 | M26: =-'6. UCC_Calculation'!L46 -> -2892.945 | O26: =-'6. UCC_Calculation'!N46 -> -4194.77025
B27: CCA - Applications Software | C27: =-'6. UCC_Calculation'!B75 -> 0 | E27: =-'6. UCC_Calculation'!D75 -> 0 | G27: =-'6. UCC_Calculation'!F75 -> 0 | I27: =-'6. UCC_Calculation'!H75 -> 0 | K27: =-'6. UCC_Calculation'!J75 -> -514.8 | M27: =-'6. UCC_Calculation'!L75 -> -15514.8 | O27: =-'6. UCC_Calculation'!N75 -> -15000
B28: CCA - Other Equipment | C28: =-'6. UCC_Calculation'!B61 -> 0 | E28: =-'6. UCC_Calculation'!D61 -> 0 | G28: =-'6. UCC_Calculation'!F61 -> 0 | I28: =-'6. UCC_Calculation'!H61 -> -27.183 | K28: =-'6. UCC_Calculation'!J61 -> -193.2034 | M28: =-'6. UCC_Calculation'!L61 -> -344.69672 | O28: =-'6. UCC_Calculation'!N61 -> -321.617376
B29: Change in taxable income | C29: =SUM(C23:C28) -> 0 | E29: 0 | G29: 0 | I29: 2202.280245 | K29: 5849.228133 | M29: -2246.558822 | O29: 4643.430136
B31: Tax Rate (from Sheet 3) | C31: ='3. Cost_of_Service_Parameters'!G40 -> 0.1862 | E31: ='3. Cost_of_Service_Parameters'!I40 -> 0.1862 | G31: ='3. Cost_of_Service_Parameters'!K40 -> 0.165 | I31: ='3. Cost_of_Service_Parameters'!M40 -> 0.165 | K31: ='3. Cost_of_Service_Parameters'!O40 -> 0.16 | M31: ='3. Cost_of_Service_Parameters'!Q40 -> 0.155 | O31: ='3. Cost_of_Service_Parameters'!S40 -> 0.155
B33: Income Taxes Payable | C33: =C29*C31 -> 0 | E33: 0 | G33: 0 | I33: 363.3762404 | K33: 935.8765013 | M33: -348.2166173 | O33: 719.7316711
A35: ONTARIO CAPITAL TAX
B36: Smart Meters | C36: ='4. SM_Assets_and_Rate_Base'!G35 -> 0 | E36: ='4. SM_Assets_and_Rate_Base'!I35 -> 0 | G36: ='4. SM_Assets_and_Rate_Base'!K35 -> 0 | I36: ='4. SM_Assets_and_Rate_Base'!M35 -> 175624.5027 | K36: ='4. SM_Assets_and_Rate_Base'!O35 -> 458704.4927 | M36: ='4. SM_Assets_and_Rate_Base'!Q35 -> 537173.7713 | O36: ='4. SM_Assets_and_Rate_Base'!S35 -> 497052.674
B37: Computer Hardware | C37: ='4. SM_Assets_and_Rate_Base'!G54 -> 0 | E37: ='4. SM_Assets_and_Rate_Base'!I54 -> 0 | G37: ='4. SM_Assets_and_Rate_Base'!K54 -> 0 | I37: ='4. SM_Assets_and_Rate_Base'!M54 -> 0 | K37: ='4. SM_Assets_and_Rate_Base'!O54 -> 0 | M37: ='4. SM_Assets_and_Rate_Base'!Q54 -> 0 | O37: ='4. SM_Assets_and_Rate_Base'!S54 -> 0
B38: Computer Software (Including Application Software) | C38: ='4. SM_Assets_and_Rate_Base'!G73 -> 0 | E38: ='4. SM_Assets_and_Rate_Base'!I73 -> 0 | G38: ='4. SM_Assets_and_Rate_Base'!K73 -> 0 | I38: ='4. SM_Assets_and_Rate_Base'!M73 -> 0 | K38: ='4. SM_Assets_and_Rate_Base'!O73 -> 926.64 | M38: ='4. SM_Assets_and_Rate_Base'!Q73 -> 37188.54 | O38: ='4. SM_Assets_and_Rate_Base'!S73 -> 28878.66
B39: Tools & Equipment | C39: ='4. SM_Assets_and_Rate_Base'!G92 -> 0 | E39: ='4. SM_Assets_and_Rate_Base'!I92 -> 0 | G39: ='4. SM_Assets_and_Rate_Base'!K92 -> 0 | I39: ='4. SM_Assets_and_Rate_Base'!M92 -> 258.2385 | K39: ='4. SM_Assets_and_Rate_Base'!O92 -> 1601.6585 | M39: ='4. SM_Assets_and_Rate_Base'!Q92 -> 1865.8715 | O39: ='4. SM_Assets_and_Rate_Base'!S92 -> 1648.5545
B40: Other Equipment | C40: ='4. SM_Assets_and_Rate_Base'!G111 -> 0 | E40: ='4. SM_Assets_and_Rate_Base'!I111 -> 0 | G40: ='4. SM_Assets_and_Rate_Base'!K111 -> 0 | I40: ='4. SM_Assets_and_Rate_Base'!M111 -> 0 | K40: ='4. SM_Assets_and_Rate_Base'!O111 -> 0 | M40: ='4. SM_Assets_and_Rate_Base'!Q111 -> 0 | O40: ='4. SM_Assets_and_Rate_Base'!S111 -> 0
B41: Rate Base | C41: =SUM(C36:C40) -> 0 | E41: =SUM(E36:E40) -> 0 | G41: =SUM(G36:G40) -> 0 | I41: =SUM(I36:I40) -> 175882.7412 | K41: =SUM(K36:K40) -> 461232.7912 | M41: =SUM(M36:M40) -> 576228.1828 | O41: =SUM(O36:O40) -> 527579.8885
B42: Less: Exemption
B43: Deemed Taxable Capital | C43: =C41-C42 -> 0 | E43: 0 | G43: 0 | I43: 175882.7412 | K43: 461232.7912 | M43: 576228.1828 | O43: 527579.8885
B45: Ontario Capital Tax Rate (from Sheet 3) | C45: ='3. Cost_of_Service_Parameters'!G41 -> 0.003 | E45: 0.00225 | G45: 0.00225 | I45: 0.00225 | K45: =0.15%/2 -> 0.00075 | M45: 0 | O45: 0
B47: Net Amount (Taxable Capital x Rate) | C47: =C43*C45 -> 0 | E47: 0 | G47: 0 | I47: 395.7361676 | K47: 345.9245934 | M47: 0 | O47: 0
B50: Change in Income Taxes Payable | C50: =C33 -> 0 | E50: 0 | G50: 0 | I50: 363.3762404 | K50: 935.8765013 | M50: -348.2166173 | O50: 719.7316711
B51: Change in OCT | C51: =C47 -> 0 | E51: 0 | G51: 0 | I51: 395.7361676 | K51: 345.9245934 | M51: 0 | O51: 0
B52: PILs | C52: =SUM(C50:C51) -> 0 | E52: 0 | G52: 0 | I52: 759.112408 | K52: 1281.801095 | M52: -348.2166173 | O52: 719.7316711
A55: Gross Up PILs
B56: Tax Rate | C56: =C31 -> 0.1862 | E56: =E31 -> 0.1862 | G56: 0.165 | I56: 0.165 | K56: 0.16 | M56: 0.155 | O56: 0.155
B57: Change in Income Taxes Payable | C57: =C50/(1-C56) -> 0 | E57: 0 | G57: 0 | I57: 435.1811263 | K57: 1114.138692 | M57: -412.0906714 | O57: 851.753457
B58: Change in OCT | C58: =C51 -> 0 | E58: 0 | G58: 0 | I58: 395.7361676 | K58: 345.9245934 | M58: 0 | O58: 0
B59: PILs | C59: =SUM(C57:C58) -> 0 | E59: 0 | G59: 0 | I59: 830.9172939 | K59: 1460.063285 | M59: -412.0906714 | O59: 851.753457

Sheet 8. Funding_Adder_Revs
J20: Account 1555 - Sub-account Funding Adder Revenues
B22: Interest Rates | C22: Approved Deferral and Variance Accounts | D22: CWIP | F22: Date | G22: Year | H22: Quarter | J22: Opening Balance (Principal) | K22: Funding Adder Revenues | L22: Interest Rate | M22: Interest | N22: Closing Balance | O22: Annual amounts | P22: Board Approved Smart Meter Funding Adder (from Tariff)
B24: 2006 Q1 | F24: 2006-01-01 | G24: =YEAR(F24) -> 2006 | H24: =IF(MONTH(F24)=0,"",IF(MONTH(F24)<4,"Q1",IF(MONTH(F24)<7,"Q2",IF(MONTH(F24)<10,"Q3","Q4")))) -> Q1 | I24: =CONCATENATE(G24," ",H24) -> 2006 Q1 | J24: 0 | L24: =VLOOKUP(I24,$B$22:$D$51,2) -> 0 | M24: =ROUND(J24*L24/12,2) -> 0 | N24: =J24+K24+M24 -> 0
B25: 2006 Q2 | C25: 0.0414 | D25: 0.0468 | F25: 2006-02-01 | G25: =YEAR(F25) -> 2006 | H25: =IF(MONTH(F25)=0,"",IF(MONTH(F25)<4,"Q1",IF(MONTH(F25)<7,"Q2",IF(MONTH(F25)<10,"Q3","Q4")))) -> Q1 | I25: =CONCATENATE(G25," ",H25) -> 2006 Q1 | J25: =J24+K24 -> 0 | L25: 0 | M25: =ROUND(J25*L25/12,2) -> 0 | N25: =J25+K25+M25 -> 0
B26: 2006 Q3 | C26: 0.0459 | D26: 0.0505 | F26: 2006-03-01 | G26: 2006 | H26: Q1 | I26: 2006 Q1 | J26: =J25+K25 -> 0 | L26: 0 | M26: 0 | N26: 0
B27: 2006 Q4 | C27: 0.0459 | D27: 0.0472 | F27: 2006-04-01 | G27: 2006 | H27: Q2 | I27: 2006 Q2 | J27: 0 | L27: 0.0414 | M27: 0 | N27: 0
B28: 2007 Q1 | C28: 0.0459 | D28: 0.0472 | F28: 2006-05-01 | G28: 2006 | H28: Q2 | I28: 2006 Q2 | J28: 0 | K28: 45.32 | L28: 0.0414 | M28: 0 | N28: 45.32 | P28: 0.26
B29: 2007 Q2 | C29: 0.0459 | D29: 0.0472 | F29: 2006-06-01 | G29: 2006 | H29: Q2 | I29: 2006 Q2 | J29: 45.32 | K29: 1113.88 | L29: 0.0414 | M29: 0.16 | N29: 1159.36 | P29: 0.26
B30: 2007 Q3 | C30: 0.0459 | D30: 0.0518 | F30: 2006-07-01 | G30: 2006 | H30: Q3 | I30: 2006 Q3 | J30: 1159.2 | K30: 158.73 | L30: 0.0459 | M30: 4.43 | N30: 1322.36 | P30: 0.26
B31: 2007 Q4 | C31: 0.0514 | D31: 0.0518 | F31: 2006-08-01 | G31: 2006 | H31: Q3 | I31: 2006 Q3 | J31: 1317.93 | K31: 2533.14 | L31: 0.0459 | M31: 5.04 | N31: 3856.11 | P31: 0.26
B32: 2008 Q1 | C32: 0.0514 | D32: 0.0518 | F32: 2006-09-01 | G32: 2006 | H32: Q3 | I32: 2006 Q3 | J32: 3851.07 | K32: 169.02 | L32: 0.0459 | M32: 14.73 | N32: 4034.82 | P32: 0.26
B33: 2008 Q2 | C33: 0.0408 | D33: 0.0518 | F33: 2006-10-01 | G33: 2006 | H33: Q4 | I33: 2006 Q4 | J33: 4020.09 | K33: 2550.43 | L33: 0.0459 | M33: 15.38 | N33: 6585.9 | P33: 0.26
B34: 2008 Q3 | C34: 0.0335 | D34: 0.0543 | F34: 2006-11-01 | G34: 2006 | H34: Q4 | I34: 2006 Q4 | J34: 6570.52 | K34: 187.5 | L34: 0.0459 | M34: 25.13 | N34: 6783.15 | P34: 0.26
B35: 2008 Q4 | C35: 0.0335 | D35: 0.0543 | F35: 2006-12-01 | G35: 2006 | H35: Q4 | I35: 2006 Q4 | J35: 6758.02 | K35: 2572.12 | L35: 0.0459 | M35: 25.85 | N35: 9355.99 | O35: =SUM(K24:K35)+SUM(M24:M35) -> 9420.86 | P35: 0.26
B36: 2009 Q1 | C36: 0.0245 | D36: 0.0661 | F36: 2007-01-01 | G36: 2007 | H36: Q1 | I36: 2007 Q1 | J36: 9330.14 | K36: 191.55 | L36: 0.0459 | M36: 35.69 | N36: 9557.38 | P36: 0.26
B37: 2009 Q2 | C37: 0.01 | D37: 0.0661 | F37: 2007-02-01 | G37: 2007 | H37: Q1 | I37: 2007 Q1 | J37: 9521.69 | K37: 2544.81 | L37: 0.0459 | M37: 36.42 | N37: 12102.92 | P37: 0.26
B38: 2009 Q3 | C38: 0.0055 | D38: 0.0567 | F38: 2007-03-01 | G38: 2007 | H38: Q1 | I38: 2007 Q1 | J38: 12066.5 | K38: 163.87 | L38: 0.0459 | M38: 46.15 | N38: 12276.52 | P38: 0.26
B39: 2009 Q4 | C39: 0.0055 | D39: 0.0466 | F39: 2007-04-01 | G39: 2007 | H39: Q2 | I39: 2007 Q2 | J39: 12230.37 | K39: 2574.69 | L39: 0.0459 | M39: 46.78 | N39: 14851.84 | P39: 0.26
B40: 2010 Q1 | C40: 0.0055 | D40: 0.0434 | F40: 2007-05-01 | G40: 2007 | H40: Q2 | I40: 2007 Q2 | J40: 14805.06 | K40: 181.19 | L40: 0.0459 | M40: 56.63 | N40: 15042.88 | P40: 0.26
B41: 2010 Q2 | C41: 0.0055 | D41: 0.0434 | F41: 2007-06-01 | G41: 2007 | H41: Q2 | I41: 2007 Q2 | J41: 14986.25 | K41: 2593.41 | L41: 0.0459 | M41: 57.32 | N41: 17636.98 | P41: 0.26
B42: 2010 Q3 | C42: 0.0089 | D42: 0.0466 | F42: 2007-07-01 | G42: 2007 | H42: Q3 | I42: 2007 Q3 | J42: 17579.66 | K42: 183.05 | L42: 0.0459 | M42: 67.24 | N42: 17829.95 | P42: 0.26
B43: 2010 Q4 | C43: 0.012 | D43: 0.0401 | F43: 2007-08-01 | G43: 2007 | H43: Q3 | I43: 2007 Q3 | J43: 17762.71 | K43: 2565.71 | L43: 0.0459 | M43: 67.94 | N43: 20396.36 | P43: 0.26
B44: 2011 Q1 | C44: 0.0147 | D44: 0.0429 | F44: 2007-09-01 | G44: 2007 | H44: Q3 | I44: 2007 Q3 | J44: 20328.42 | K44: 169.19 | L44: 0.0459 | M44: 77.76 | N44: 20575.37 | P44: 0.26
B45: 2011 Q2 | C45: 0.0147 | D45: 0.0429 | F45: 2007-10-01 | G45: 2007 | H45: Q4 | I45: 2007 Q4 | J45: 20497.61 | K45: 2587.52 | L45: 0.0514 | M45: 87.8 | N45: 23172.93 | P45: 0.26
B46: 2011 Q3 | C46: 0.0147 | D46: 0.0429 | F46: 2007-11-01 | G46: 2007 | H46: Q4 | I46: 2007 Q4 | J46: 23085.13 | K46: 190.78 | L46: 0.0514 | M46: 98.88 | N46: 23374.79 | P46: 0.26
B47: 2011 Q4 | C47: =C46 -> 0.0147 | D47: 0.0429 | F47: 2007-12-01 | G47: 2007 | H47: Q4 | I47: 2007 Q4 | J47: 23275.91 | K47: 2604.06 | L47: 0.0514 | M47: 99.7 | N47: 25979.67 | O47: =SUM(K36:K47)+SUM(M36:M47) -> 17328.14 | P47: 0.26
B48: 2012 Q1 | C48: 0.0147 | D48: 0.0429 | F48: 2008-01-01 | G48: 2008 | H48: Q1 | I48: 2008 Q1 | J48: 25879.97 | K48: 173.68 | L48: 0.0514 | M48: 110.85 | N48: 26164.5 | P48: 0.26
B49: 2012 Q2 | C49: 0.0147 | D49: 0.0429 | F49: 2008-02-01 | G49: 2008 | H49: Q1 | I49: 2008 Q1 | J49: 26053.65 | K49: 2646.62 | L49: 0.0514 | M49: 111.6 | N49: 28811.87 | P49: 0.26
B50: 2012 Q3 | C50: 0.0147 | D50: 0.0429 | F50: 2008-03-01 | G50: 2008 | H50: Q1 | I50: 2008 Q1 | J50: 28700.27 | K50: 162.33 | L50: 0.0514 | M50: 122.93 | N50: 28985.53 | P50: 0.26
B51: 2012 Q4 | D51: 0.0429 | F51: 2008-04-01 | G51: 2008 | H51: Q2 | I51: 2008 Q2 | J51: 28862.6 | K51: 2606.32 | L51: 0.0408 | M51: 98.13 | N51: 31567.05 | P51: 0.26
F52: 2008-05-01 | G52: 2008 | H52: Q2 | I52: 2008 Q2 | J52: 31468.92 | K52: 153.81 | L52: 0.0408 | M52: 106.99 | N52: 31729.72 | P52: 0.26
F53: 2008-06-01 | G53: 2008 | H53: Q2 | I53: 2008 Q2 | J53: 31622.73 | K53: 2557.5 | L53: 0.0408 | M53: 107.52 | N53: 34287.75 | P53: 0.26
F54: 2008-07-01 | G54: 2008 | H54: Q3 | I54: 2008 Q3 | J54: 34180.23 | K54: 193.74 | L54: 0.0335 | M54: 95.42 | N54: 34469.39 | P54: 0.26
F55: 2008-08-01 | G55: 2008 | H55: Q3 | I55: 2008 Q3 | J55: 34373.97 | K55: 2589.75 | L55: 0.0335 | M55: 95.96 | N55: 37059.68 | P55: 0.26
F56: 2008-09-01 | G56: 2008 | H56: Q3 | I56: 2008 Q3 | J56: 36963.72 | K56: 178.68 | L56: =VLOOKUP(I56,$B$22:$D$51,2) -> 0.0335 | M56: 103.19 | N56: 37245.59 | P56: 0.26
F57: 2008-10-01 | G57: 2008 | H57: Q4 | I57: 2008 Q4 | J57: 37142.4 | K57: 2601.87 | L57: 0.0335 | M57: 103.69 | N57: 39847.96 | P57: 0.26
F58: 2008-11-01 | G58: 2008 | H58: Q4 | I58: 2008 Q4 | J58: 39744.27 | K58: 183.81 | L58: 0.0335 | M58: 110.95 | N58: 40039.03 | P58: 0.26
F59: 2008-12-01 | G59: 2008 | H59: Q4 | I59: 2008 Q4 | J59: 39928.08 | K59: 2599.28 | L59: 0.0335 | M59: 111.47 | N59: 42638.83 | O59: =SUM(K48:K59)+SUM(M48:M59) -> 17926.09 | P59: 0.26
F60: 2009-01-01 | G60: 2009 | H60: Q1 | I60: 2009 Q1 | J60: 42527.36 | K60: 168.12 | L60: 0.0245 | M60: 86.83 | N60: 42782.31 | P60: 0.26
F61: 2009-02-01 | G61: 2009 | H61: Q1 | I61: 2009 Q1 | J61: 42695.48 | K61: 2630.85 | L61: 0.0245 | M61: 87.17 | N61: 45413.5 | P61: 0.26
F62: 2009-03-01 | G62: 2009 | H62: Q1 | I62: 2009 Q1 | J62: 45326.33 | K62: 165.36 | L62: 0.0245 | M62: 92.54 | N62: 45584.23 | P62: 0.26
F63: 2009-04-01 | G63: 2009 | H63: Q2 | I63: 2009 Q2 | J63: 45491.69 | K63: 2549.35 | L63: 0.01 | M63: 37.91 | N63: 48078.95 | P63: 0.26
F64: 2009-05-01 | G64: 2009 | H64: Q2 | I64: 2009 Q2 | J64: 48041.04 | K64: 237.84 | L64: 0.01 | M64: 40.03 | N64: 48318.91 | P64: 1
F65: 2009-06-01 | G65: 2009 | H65: Q2 | I65: 2009 Q2 | J65: 48278.88 | K65: 5813.63 | L65: 0.01 | M65: 40.23 | N65: 54132.74 | P65: 1
F66: 2009-07-01 | G66: 2009 | H66: Q3 | I66: 2009 Q3 | J66: 54092.51 | K66: 690.77 | L66: 0.0055 | M66: 24.79 | N66: 54808.07 | P66: 1
F67: 2009-08-01 | G67: 2009 | H67: Q3 | I67: 2009 Q3 | J67: 54783.28 | K67: 10290.12 | L67: 0.0055 | M67: 25.11 | N67: 65098.51 | P67: 1
F68: 2009-09-01 | G68: 2009 | H68: Q3 | I68: 2009 Q3 | J68: 65073.4 | K68: 723.47 | L68: 0.0055 | M68: 29.83 | N68: 65826.7 | P68: 1
F69: 2009-10-01 | G69: 2009 | H69: Q4 | I69: 2009 Q4 | J69: 65796.87 | K69: 10187.21 | L69: 0.0055 | M69: 30.16 | N69: 76014.24 | P69: 1
F70: 2009-11-01 | G70: 2009 | H70: Q4 | I70: 2009 Q4 | J70: 75984.08 | K70: 744.63 | L70: 0.0055 | M70: 34.83 | N70: 76763.54 | P70: 1
F71: 2009-12-01 | G71: 2009 | H71: Q4 | I71: 2009 Q4 | J71: 76728.71 | K71: 9805.61 | L71: 0.0055 | M71: 35.17 | N71: 86569.49 | O71: =SUM(K60:K71)+SUM(M60:M71) -> 44571.56 | P71: 1
F72: 2010-01-01 | G72: 2010 | H72: Q1 | I72: 2010 Q1 | J72: 86534.32 | K72: 762.26 | L72: 0.0055 | M72: 39.66 | N72: 87336.24 | P72: 1
F73: 2010-02-01 | G73: 2010 | H73: Q1 | I73: 2010 Q1 | J73: 87296.58 | K73: 10695.33 | L73: 0.0055 | M73: 40.01 | N73: 98031.92 | P73: 1
F74: 2010-03-01 | G74: 2010 | H74: Q1 | I74: 2010 Q1 | J74: 97991.91 | K74: 684.31 | L74: 0.0055 | M74: 44.91 | N74: 98721.13 | P74: 1
F75: 2010-04-01 | G75: 2010 | H75: Q2 | I75: 2010 Q2 | J75: 98676.22 | K75: 9854.9 | L75: 0.0055 | M75: 45.23 | N75: 108576.35 | P75: 1
F76: 2010-05-01 | G76: 2010 | H76: Q2 | I76: 2010 Q2 | J76: 108531.12 | K76: 714.5 | L76: 0.0055 | M76: 49.74 | N76: 109295.36 | P76: 1
F77: 2010-06-01 | G77: 2010 | H77: Q2 | I77: 2010 Q2 | J77: 109245.62 | K77: 12377.6 | L77: 0.0055 | M77: 50.07 | N77: 121673.29 | P77: 1
F78: 2010-07-01 | G78: 2010 | H78: Q3 | I78: 2010 Q3 | J78: 121623.22 | K78: 1150.33 | L78: 0.0089 | M78: 90.2 | N78: 122863.75 | P78: 1
F79: 2010-08-01 | G79: 2010 | H79: Q3 | I79: 2010 Q3 | J79: 122773.55 | K79: 14297.39 | L79: 0.0089 | M79: 91.06 | N79: 137162 | P79: 1
F80: 2010-09-01 | G80: 2010 | H80: Q3 | I80: 2010 Q3 | J80: 137070.94 | K80: 1030.17 | L80: 0.0089 | M80: 101.66 | N80: 138202.77 | P80: 1
F81: 2010-10-01 | G81: 2010 | H81: Q4 | I81: 2010 Q4 | J81: 138101.11 | K81: 15261.75 | L81: 0.012 | M81: 138.1 | N81: 153500.96 | P81: 1
F82: 2010-11-01 | G82: 2010 | H82: Q4 | I82: 2010 Q4 | J82: 153362.86 | K82: 1056.77 | L82: 0.012 | M82: 153.36 | N82: 154572.99 | P82: 1
F83: 2010-12-01 | G83: 2010 | H83: Q4 | I83: 2010 Q4 | J83: 154419.63 | K83: 14471.65 | L83: 0.012 | M83: 154.42 | N83: 169045.7 | O83: =SUM(K72:K83)+SUM(M72:M83) -> 83355.38 | P83: 1
F84: 2011-01-01 | G84: 2011 | H84: Q1 | I84: 2011 Q1 | J84: 168891.28 | K84: 1154.74 | L84: 0.0147 | M84: 206.89 | N84: 170252.91 | P84: 1
F85: 2011-02-01 | G85: 2011 | H85: Q1 | I85: 2011 Q1 | J85: 170046.02 | K85: 14976.74 | L85: 0.0147 | M85: 208.31 | N85: 185231.07 | P85: 1
F86: 2011-03-01 | G86: 2011 | H86: Q1 | I86: 2011 Q1 | J86: 185022.76 | K86: 933.05 | L86: 0.0147 | M86: 226.65 | N86: 186182.46 | P86: 1
F87: 2011-04-01 | G87: 2011 | H87: Q2 | I87: 2011 Q2 | J87: 185955.81 | K87: 16222.52 | L87: 0.0147 | M87: 227.8 | N87: 202406.13 | P87: 1
F88: 2011-05-01 | G88: 2011 | H88: Q2 | I88: 2011 Q2 | J88: 202178.33 | K88: 1024.68 | L88: =VLOOKUP(I88,$B$22:$D$51,2) -> 0.0147 | M88: 247.67 | N88: 203450.68 | P88: 1
F89: 2011-06-01 | G89: =YEAR(F89) -> 2011 | H89: =IF(MONTH(F89)=0,"",IF(MONTH(F89)<4,"Q1",IF(MONTH(F89)<7,"Q2",IF(MONTH(F89)<10,"Q3","Q4")))) -> Q2 | I89: =CONCATENATE(G89," ",H89) -> 2011 Q2 | J89: 203203.01 | K89: 15035.8 | L89: 0.0147 | M89: =ROUND(J89*L89/12,2) -> 248.92 | N89: =J89+K89+M89 -> 218487.73 | P89: 1.45
F90: 2011-07-01 | G90: 2011 | H90: Q3 | I90: 2011 Q3 | J90: =J89+K89 -> 218238.81 | K90: 1069.95 | L90: 0.0147 | M90: 267.34 | N90: 219576.1 | P90: 1.45
F91: 2011-08-01 | G91: 2011 | H91: Q3 | I91: 2011 Q3 | J91: 219308.76 | K91: 14995.24 | L91: 0.0147 | M91: 268.65 | N91: 234572.65 | P91: 1.45
F92: 2011-09-01 | G92: 2011 | H92: Q3 | I92: 2011 Q3 | J92: 234304 | K92: 1084.22 | L92: 0.0147 | M92: 287.02 | N92: 235675.24 | P92: 1.45
F93: 2011-10-01 | G93: 2011 | H93: Q4 | I93: 2011 Q4 | J93: 235388.22 | K93: 14969.18 | L93: 0.0147 | M93: 288.35 | N93: 250645.75 | P93: 1.45
F94: 2011-11-01 | G94: 2011 | H94: Q4 | I94: 2011 Q4 | J94: 250357.4 | K94: 8171.76 | L94: 0.0147 | M94: 306.69 | N94: 258835.85 | P94: 1.45
F95: 2011-12-01 | G95: 2011 | H95: Q4 | I95: 2011 Q4 | J95: 258529.16 | K95: 7889.5 | L95: 0.0147 | M95: 316.7 | N95: 266735.36 | O95: =SUM(K84:K95)+SUM(M84:M95) -> 100628.37 | P95: 1.45
F96: 2012-01-01 | G96: 2012 | H96: Q1 | I96: 2012 Q1 | J96: 266418.66 | K96: 8444.34 | L96: 0.0147 | M96: 326.36 | N96: 275189.36 | P96: 1.45
F97: 2012-02-01 | G97: 2012 | H97: Q1 | I97: 2012 Q1 | J97: 274863 | K97: 8190.09 | L97: 0.0147 | M97: 336.71 | N97: 283389.8 | P97: 1.45
F98: 2012-03-01 | G98: 2012 | H98: Q1 | I98: 2012 Q1 | J98: 283053.09 | K98: 7655.47 | L98: 0.0147 | M98: 346.74 | N98: 291055.3 | P98: 1.45
F99: 2012-04-01 | G99: 2012 | H99: Q2 | I99: 2012 Q2 | J99: 290708.56 | K99: 7027.54 | L99: 0.0147 | M99: 356.12 | N99: 298092.22 | P99: 1.45
F100: 2012-05-01 | G100: 2012 | H100: Q2 | I100: 2012 Q2 | J100: 297736.1 | K100: 8325.31 | L100: 0.0147 | M100: 364.73 | N100: 306426.14
F101: 2012-06-01 | G101: 2012 | H101: Q2 | I101: 2012 Q2 | J101: 306061.41 | K101: 742.01 | L101: 0.0147 | M101: 374.93 | N101: 307178.35
F102: 2012-07-01 | G102: 2012 | H102: Q3 | I102: 2012 Q3 | J102: 306803.42 | L102: 0.0147 | M102: 375.83 | N102: 307179.25
F103: 2012-08-01 | G103: 2012 | H103: Q3 | I103: 2012 Q3 | J103: 306803.42 | L103: 0.0147 | M103: 375.83 | N103: 307179.25
F104: 2012-09-01 | G104: 2012 | H104: Q3 | I104: 2012 Q3 | J104: 306803.42 | L104: 0.0147 | M104: 375.83 | N104: 307179.25
F105: 2012-10-01 | G105: 2012 | H105: Q4 | I105: 2012 Q4 | J105: 306803.42 | L105: 0.0147 | M105: 375.83 | N105: 307179.25
F106: 2012-11-01 | G106: 2012 | H106: Q4 | I106: 2012 Q4 | J106: 306803.42 | L106: 0 | M106: 0 | N106: 306803.42
F107: 2012-12-01 | G107: 2012 | H107: Q4 | I107: 2012 Q4 | J107: 306803.42 | L107: 0 | M107: 0 | N107: 306803.42 | O107: =SUM(K96:K107)+SUM(M96:M107) -> 43993.67
F109: Total Funding Adder Revenues Collected | K109: =SUM(K24:K107) -> 306803.42 | M109: =SUM(M24:M107) -> 10420.65 | N109: =K109+M109 -> 317224.07 | O109: =SUM(O24:O107) -> 317224.07

Sheet 8A. Opex_Interest_monthly
J21: Account 1556 - Sub-accounts Operating Expenses, Amortization Expenses, Carrying Charges
B23: Prescribed Interest Rates | C23: Approved Deferral and Variance Accounts | D23: CWIP | F23: Date | G23: Year | H23: Quarter | J23: Opening Balance (Principal) | K23: OM&A Expenses | L23: Amortization / Depreciation Expense | M23: Closing Balance (Principal) | N23: (Annual) Interest Rate | O23: Interest (on opening balance) | P23: Cumulative Interest
B25: ='8. Funding_Adder_Revs'!B24 -> 2006 Q1 | C25: ='8. Funding_Adder_Revs'!C24 -> 0 | D25: ='8. Funding_Adder_Revs'!D24 -> 0 | F25: ='8. Funding_Adder_Revs'!F24 -> 2006-01-01 | G25: ='8. Funding_Adder_Revs'!G24 -> 2006 | H25: ='8. Funding_Adder_Revs'!H24 -> Q1 | J25: 0 | M25: =J25+K25+L25 -> 0 | N25: ='8. Funding_Adder_Revs'!L24 -> 0 | O25: =J25*N25/12 -> 0 | P25: =O25 -> 0
B26: ='8. Funding_Adder_Revs'!B25 -> 2006 Q2 | C26: ='8. Funding_Adder_Revs'!C25 -> 0.0414 | D26: ='8. Funding_Adder_Revs'!D25 -> 0.0468 | F26: ='8. Funding_Adder_Revs'!F25 -> 2006-02-01 | G26: ='8. Funding_Adder_Revs'!G25 -> 2006 | H26: ='8. Funding_Adder_Revs'!H25 -> Q1 | J26: =M25 -> 0 | M26: =J26+K26+L26 -> 0 | N26: ='8. Funding_Adder_Revs'!L25 -> 0 | O26: =J26*N26/12 -> 0 | P26: =O26+P25 -> 0
B27: ='8. Funding_Adder_Revs'!B26 -> 2006 Q3 | C27: ='8. Funding_Adder_Revs'!C26 -> 0.0459 | D27: ='8. Funding_Adder_Revs'!D26 -> 0.0505 | F27: ='8. Funding_Adder_Revs'!F26 -> 2006-03-01 | G27: ='8. Funding_Adder_Revs'!G26 -> 2006 | H27: ='8. Funding_Adder_Revs'!H26 -> Q1 | J27: =M26 -> 0 | M27: 0 | N27: ='8. Funding_Adder_Revs'!L26 -> 0 | O27: 0 | P27: =O27+P26 -> 0
B28: ='8. Funding_Adder_Revs'!B27 -> 2006 Q4 | C28: ='8. Funding_Adder_Revs'!C27 -> 0.0459 | D28: ='8. Funding_Adder_Revs'!D27 -> 0.0472 | F28: ='8. Funding_Adder_Revs'!F27 -> 2006-04-01 | G28: ='8. Funding_Adder_Revs'!G27 -> 2006 | H28: ='8. Funding_Adder_Revs'!H27 -> Q2 | J28: 0 | M28: 0 | N28: ='8. Funding_Adder_Revs'!L27 -> 0.0414 | O28: 0 | P28: 0
B29: ='8. Funding_Adder_Revs'!B28 -> 2007 Q1 | C29: ='8. Funding_Adder_Revs'!C28 -> 0.0459 | D29: ='8. Funding_Adder_Revs'!D28 -> 0.0472 | F29: ='8. Funding_Adder_Revs'!F28 -> 2006-05-01 | G29: ='8. Funding_Adder_Revs'!G28 -> 2006 | H29: ='8. Funding_Adder_Revs'!H28 -> Q2 | J29: 0 | M29: 0 | N29: ='8. Funding_Adder_Revs'!L28 -> 0.0414 | O29: 0 | P29: 0
B30: ='8. Funding_Adder_Revs'!B29 -> 2007 Q2 | C30: ='8. Funding_Adder_Revs'!C29 -> 0.0459 | D30: ='8. Funding_Adder_Revs'!D29 -> 0.0472 | F30: ='8. Funding_Adder_Revs'!F29 -> 2006-06-01 | G30: ='8. Funding_Adder_Revs'!G29 -> 2006 | H30: ='8. Funding_Adder_Revs'!H29 -> Q2 | J30: 0 | M30: 0 | N30: ='8. Funding_Adder_Revs'!L29 -> 0.0414 | O30: 0 | P30: 0
B31: ='8. Funding_Adder_Revs'!B30 -> 2007 Q3 | C31: ='8. Funding_Adder_Revs'!C30 -> 0.0459 | D31: ='8. Funding_Adder_Revs'!D30 -> 0.0518 | F31: ='8. Funding_Adder_Revs'!F30 -> 2006-07-01 | G31: ='8. Funding_Adder_Revs'!G30 -> 2006 | H31: ='8. Funding_Adder_Revs'!H30 -> Q3 | J31: 0 | M31: 0 | N31: ='8. Funding_Adder_Revs'!L30 -> 0.0459 | O31: 0 | P31: 0
B32: ='8. Funding_Adder_Revs'!B31 -> 2007 Q4 | C32: ='8. Funding_Adder_Revs'!C31 -> 0.0514 | D32: ='8. Funding_Adder_Revs'!D31 -> 0.0518 | F32: ='8. Funding_Adder_Revs'!F31 -> 2006-08-01 | G32: ='8. Funding_Adder_Revs'!G31 -> 2006 | H32: ='8. Funding_Adder_Revs'!H31 -> Q3 | J32: 0 | M32: 0 | N32: ='8. Funding_Adder_Revs'!L31 -> 0.0459 | O32: 0 | P32: 0
B33: ='8. Funding_Adder_Revs'!B32 -> 2008 Q1 | C33: ='8. Funding_Adder_Revs'!C32 -> 0.0514 | D33: ='8. Funding_Adder_Revs'!D32 -> 0.0518 | F33: ='8. Funding_Adder_Revs'!F32 -> 2006-09-01 | G33: ='8. Funding_Adder_Revs'!G32 -> 2006 | H33: ='8. Funding_Adder_Revs'!H32 -> Q3 | J33: 0 | M33: 0 | N33: ='8. Funding_Adder_Revs'!L32 -> 0.0459 | O33: 0 | P33: 0
B34: ='8. Funding_Adder_Revs'!B33 -> 2008 Q2 | C34: ='8. Funding_Adder_Revs'!C33 -> 0.0408 | D34: ='8. Funding_Adder_Revs'!D33 -> 0.0518 | F34: ='8. Funding_Adder_Revs'!F33 -> 2006-10-01 | G34: ='8. Funding_Adder_Revs'!G33 -> 2006 | H34: ='8. Funding_Adder_Revs'!H33 -> Q4 | J34: 0 | M34: 0 | N34: ='8. Funding_Adder_Revs'!L33 -> 0.0459 | O34: 0 | P34: 0
B35: ='8. Funding_Adder_Revs'!B34 -> 2008 Q3 | C35: ='8. Funding_Adder_Revs'!C34 -> 0.0335 | D35: ='8. Funding_Adder_Revs'!D34 -> 0.0543 | F35: ='8. Funding_Adder_Revs'!F34 -> 2006-11-01 | G35: ='8. Funding_Adder_Revs'!G34 -> 2006 | H35: ='8. Funding_Adder_Revs'!H34 -> Q4 | J35: 0 | M35: 0 | N35: ='8. Funding_Adder_Revs'!L34 -> 0.0459 | O35: 0 | P35: 0
B36: ='8. Funding_Adder_Revs'!B35 -> 2008 Q4 | C36: ='8. Funding_Adder_Revs'!C35 -> 0.0335 | D36: ='8. Funding_Adder_Revs'!D35 -> 0.0543 | F36: ='8. Funding_Adder_Revs'!F35 -> 2006-12-01 | G36: ='8. Funding_Adder_Revs'!G35 -> 2006 | H36: ='8. Funding_Adder_Revs'!H35 -> Q4 | J36: 0 | M36: 0 | N36: ='8. Funding_Adder_Revs'!L35 -> 0.0459 | O36: 0 | P36: 0
B37: ='8. Funding_Adder_Revs'!B36 -> 2009 Q1 | C37: ='8. Funding_Adder_Revs'!C36 -> 0.0245 | D37: ='8. Funding_Adder_Revs'!D36 -> 0.0661 | F37: ='8. Funding_Adder_Revs'!F36 -> 2007-01-01 | G37: ='8. Funding_Adder_Revs'!G36 -> 2007 | H37: ='8. Funding_Adder_Revs'!H36 -> Q1 | J37: 0 | M37: 0 | N37: ='8. Funding_Adder_Revs'!L36 -> 0.0459 | O37: 0 | P37: 0
B38: ='8. Funding_Adder_Revs'!B37 -> 2009 Q2 | C38: ='8. Funding_Adder_Revs'!C37 -> 0.01 | D38: ='8. Funding_Adder_Revs'!D37 -> 0.0661 | F38: ='8. Funding_Adder_Revs'!F37 -> 2007-02-01 | G38: ='8. Funding_Adder_Revs'!G37 -> 2007 | H38: ='8. Funding_Adder_Revs'!H37 -> Q1 | J38: 0 | M38: 0 | N38: ='8. Funding_Adder_Revs'!L37 -> 0.0459 | O38: 0 | P38: 0
B39: ='8. Funding_Adder_Revs'!B38 -> 2009 Q3 | C39: ='8. Funding_Adder_Revs'!C38 -> 0.0055 | D39: ='8. Funding_Adder_Revs'!D38 -> 0.0567 | F39: ='8. Funding_Adder_Revs'!F38 -> 2007-03-01 | G39: ='8. Funding_Adder_Revs'!G38 -> 2007 | H39: ='8. Funding_Adder_Revs'!H38 -> Q1 | J39: 0 | M39: 0 | N39: ='8. Funding_Adder_Revs'!L38 -> 0.0459 | O39: 0 | P39: 0
B40: ='8. Funding_Adder_Revs'!B39 -> 2009 Q4 | C40: ='8. Funding_Adder_Revs'!C39 -> 0.0055 | D40: ='8. Funding_Adder_Revs'!D39 -> 0.0466 | F40: ='8. Funding_Adder_Revs'!F39 -> 2007-04-01 | G40: ='8. Funding_Adder_Revs'!G39 -> 2007 | H40: ='8. Funding_Adder_Revs'!H39 -> Q2 | J40: 0 | M40: 0 | N40: ='8. Funding_Adder_Revs'!L39 -> 0.0459 | O40: 0 | P40: 0
B41: ='8. Funding_Adder_Revs'!B40 -> 2010 Q1 | C41: ='8. Funding_Adder_Revs'!C40 -> 0.0055 | D41: ='8. Funding_Adder_Revs'!D40 -> 0.0434 | F41: ='8. Funding_Adder_Revs'!F40 -> 2007-05-01 | G41: ='8. Funding_Adder_Revs'!G40 -> 2007 | H41: ='8. Funding_Adder_Revs'!H40 -> Q2 | J41: 0 | M41: 0 | N41: ='8. Funding_Adder_Revs'!L40 -> 0.0459 | O41: 0 | P41: 0
B42: ='8. Funding_Adder_Revs'!B41 -> 2010 Q2 | C42: ='8. Funding_Adder_Revs'!C41 -> 0.0055 | D42: ='8. Funding_Adder_Revs'!D41 -> 0.0434 | F42: ='8. Funding_Adder_Revs'!F41 -> 2007-06-01 | G42: ='8. Funding_Adder_Revs'!G41 -> 2007 | H42: ='8. Funding_Adder_Revs'!H41 -> Q2 | J42: 0 | M42: 0 | N42: ='8. Funding_Adder_Revs'!L41 -> 0.0459 | O42: 0 | P42: 0
B43: ='8. Funding_Adder_Revs'!B42 -> 2010 Q3 | C43: ='8. Funding_Adder_Revs'!C42 -> 0.0089 | D43: ='8. Funding_Adder_Revs'!D42 -> 0.0466 | F43: ='8. Funding_Adder_Revs'!F42 -> 2007-07-01 | G43: ='8. Funding_Adder_Revs'!G42 -> 2007 | H43: ='8. Funding_Adder_Revs'!H42 -> Q3 | J43: 0 | M43: 0 | N43: ='8. Funding_Adder_Revs'!L42 -> 0.0459 | O43: 0 | P43: 0
B44: ='8. Funding_Adder_Revs'!B43 -> 2010 Q4 | C44: ='8. Funding_Adder_Revs'!C43 -> 0.012 | D44: ='8. Funding_Adder_Revs'!D43 -> 0.0401 | F44: ='8. Funding_Adder_Revs'!F43 -> 2007-08-01 | G44: ='8. Funding_Adder_Revs'!G43 -> 2007 | H44: ='8. Funding_Adder_Revs'!H43 -> Q3 | J44: 0 | M44: 0 | N44: ='8. Funding_Adder_Revs'!L43 -> 0.0459 | O44: 0 | P44: 0
B45: ='8. Funding_Adder_Revs'!B44 -> 2011 Q1 | C45: ='8. Funding_Adder_Revs'!C44 -> 0.0147 | D45: ='8. Funding_Adder_Revs'!D44 -> 0.0429 | F45: ='8. Funding_Adder_Revs'!F44 -> 2007-09-01 | G45: ='8. Funding_Adder_Revs'!G44 -> 2007 | H45: ='8. Funding_Adder_Revs'!H44 -> Q3 | J45: 0 | M45: 0 | N45: ='8. Funding_Adder_Revs'!L44 -> 0.0459 | O45: 0 | P45: 0
B46: ='8. Funding_Adder_Revs'!B45 -> 2011 Q2 | C46: ='8. Funding_Adder_Revs'!C45 -> 0.0147 | D46: ='8. Funding_Adder_Revs'!D45 -> 0.0429 | F46: ='8. Funding_Adder_Revs'!F45 -> 2007-10-01 | G46: ='8. Funding_Adder_Revs'!G45 -> 2007 | H46: ='8. Funding_Adder_Revs'!H45 -> Q4 | J46: 0 | M46: 0 | N46: ='8. Funding_Adder_Revs'!L45 -> 0.0514 | O46: 0 | P46: 0
B47: ='8. Funding_Adder_Revs'!B46 -> 2011 Q3 | C47: ='8. Funding_Adder_Revs'!C46 -> 0.0147 | D47: ='8. Funding_Adder_Revs'!D46 -> 0.0429 | F47: ='8. Funding_Adder_Revs'!F46 -> 2007-11-01 | G47: ='8. Funding_Adder_Revs'!G46 -> 2007 | H47: ='8. Funding_Adder_Revs'!H46 -> Q4 | J47: 0 | M47: 0 | N47: ='8. Funding_Adder_Revs'!L46 -> 0.0514 | O47: 0 | P47: 0
B48: ='8. Funding_Adder_Revs'!B47 -> 2011 Q4 | C48: ='8. Funding_Adder_Revs'!C47 -> 0.0147 | D48: ='8. Funding_Adder_Revs'!D47 -> 0.0429 | F48: ='8. Funding_Adder_Revs'!F47 -> 2007-12-01 | G48: ='8. Funding_Adder_Revs'!G47 -> 2007 | H48: ='8. Funding_Adder_Revs'!H47 -> Q4 | J48: 0 | M48: 0 | N48: ='8. Funding_Adder_Revs'!L47 -> 0.0514 | O48: 0 | P48: 0
B49: ='8. Funding_Adder_Revs'!B48 -> 2012 Q1 | C49: ='8. Funding_Adder_Revs'!C48 -> 0.0147 | D49: ='8. Funding_Adder_Revs'!D48 -> 0.0429 | F49: ='8. Funding_Adder_Revs'!F48 -> 2008-01-01 | G49: ='8. Funding_Adder_Revs'!G48 -> 2008 | H49: ='8. Funding_Adder_Revs'!H48 -> Q1 | J49: 0 | M49: 0 | N49: ='8. Funding_Adder_Revs'!L48 -> 0.0514 | O49: 0 | P49: 0
B50: ='8. Funding_Adder_Revs'!B49 -> 2012 Q2 | C50: ='8. Funding_Adder_Revs'!C49 -> 0.0147 | D50: ='8. Funding_Adder_Revs'!D49 -> 0.0429 | F50: ='8. Funding_Adder_Revs'!F49 -> 2008-02-01 | G50: ='8. Funding_Adder_Revs'!G49 -> 2008 | H50: ='8. Funding_Adder_Revs'!H49 -> Q1 | J50: 0 | M50: 0 | N50: ='8. Funding_Adder_Revs'!L49 -> 0.0514 | O50: 0 | P50: 0
B51: ='8. Funding_Adder_Revs'!B50 -> 2012 Q3 | C51: ='8. Funding_Adder_Revs'!C50 -> 0.0147 | D51: ='8. Funding_Adder_Revs'!D50 -> 0.0429 | F51: ='8. Funding_Adder_Revs'!F50 -> 2008-03-01 | G51: ='8. Funding_Adder_Revs'!G50 -> 2008 | H51: ='8. Funding_Adder_Revs'!H50 -> Q1 | J51: 0 | M51: 0 | N51: ='8. Funding_Adder_Revs'!L50 -> 0.0514 | O51: 0 | P51: 0
B52: ='8. Funding_Adder_Revs'!B51 -> 2012 Q4 | C52: ='8. Funding_Adder_Revs'!C51 -> 0 | D52: ='8. Funding_Adder_Revs'!D51 -> 0.0429 | F52: ='8. Funding_Adder_Revs'!F51 -> 2008-04-01 | G52: ='8. Funding_Adder_Revs'!G51 -> 2008 | H52: ='8. Funding_Adder_Revs'!H51 -> Q2 | J52: 0 | M52: 0 | N52: ='8. Funding_Adder_Revs'!L51 -> 0.0408 | O52: 0 | P52: 0
F53: ='8. Funding_Adder_Revs'!F52 -> 2008-05-01 | G53: ='8. Funding_Adder_Revs'!G52 -> 2008 | H53: ='8. Funding_Adder_Revs'!H52 -> Q2 | J53: 0 | M53: 0 | N53: ='8. Funding_Adder_Revs'!L52 -> 0.0408 | O53: 0 | P53: 0
F54: ='8. Funding_Adder_Revs'!F53 -> 2008-06-01 | G54: ='8. Funding_Adder_Revs'!G53 -> 2008 | H54: ='8. Funding_Adder_Revs'!H53 -> Q2 | J54: 0 | M54: 0 | N54: ='8. Funding_Adder_Revs'!L53 -> 0.0408 | O54: 0 | P54: 0
F55: ='8. Funding_Adder_Revs'!F54 -> 2008-07-01 | G55: ='8. Funding_Adder_Revs'!G54 -> 2008 | H55: ='8. Funding_Adder_Revs'!H54 -> Q3 | J55: 0 | M55: 0 | N55: ='8. Funding_Adder_Revs'!L54 -> 0.0335 | O55: 0 | P55: 0
F56: ='8. Funding_Adder_Revs'!F55 -> 2008-08-01 | G56: ='8. Funding_Adder_Revs'!G55 -> 2008 | H56: ='8. Funding_Adder_Revs'!H55 -> Q3 | J56: 0 | M56: 0 | N56: ='8. Funding_Adder_Revs'!L55 -> 0.0335 | O56: 0 | P56: 0
F57: ='8. Funding_Adder_Revs'!F56 -> 2008-09-01 | G57: ='8. Funding_Adder_Revs'!G56 -> 2008 | H57: ='8. Funding_Adder_Revs'!H56 -> Q3 | J57: 0 | M57: 0 | N57: ='8. Funding_Adder_Revs'!L56 -> 0.0335 | O57: 0 | P57: 0
F58: ='8. Funding_Adder_Revs'!F57 -> 2008-10-01 | G58: ='8. Funding_Adder_Revs'!G57 -> 2008 | H58: ='8. Funding_Adder_Revs'!H57 -> Q4 | J58: 0 | M58: 0 | N58: ='8. Funding_Adder_Revs'!L57 -> 0.0335 | O58: 0 | P58: 0
F59: ='8. Funding_Adder_Revs'!F58 -> 2008-11-01 | G59: ='8. Funding_Adder_Revs'!G58 -> 2008 | H59: ='8. Funding_Adder_Revs'!H58 -> Q4 | J59: 0 | M59: 0 | N59: ='8. Funding_Adder_Revs'!L58 -> 0.0335 | O59: 0 | P59: 0
F60: ='8. Funding_Adder_Revs'!F59 -> 2008-12-01 | G60: ='8. Funding_Adder_Revs'!G59 -> 2008 | H60: ='8. Funding_Adder_Revs'!H59 -> Q4 | J60: 0 | M60: 0 | N60: ='8. Funding_Adder_Revs'!L59 -> 0.0335 | O60: 0 | P60: 0
F61: ='8. Funding_Adder_Revs'!F60 -> 2009-01-01 | G61: ='8. Funding_Adder_Revs'!G60 -> 2009 | H61: ='8. Funding_Adder_Revs'!H60 -> Q1 | J61: 0 | L61: ='5. SM_Rev_Reqt'!$M$58/12 -> 505.8007361 | M61: 505.8007361 | N61: ='8. Funding_Adder_Revs'!L60 -> 0.0245 | O61: 0 | P61: 0
F62: ='8. Funding_Adder_Revs'!F61 -> 2009-02-01 | G62: ='8. Funding_Adder_Revs'!G61 -> 2009 | H62: ='8. Funding_Adder_Revs'!H61 -> Q1 | J62: 505.8007361 | L62: ='5. SM_Rev_Reqt'!$M$58/12 -> 505.8007361 | M62: 1011.601472 | N62: ='8. Funding_Adder_Revs'!L61 -> 0.0245 | O62: 1.032676503 | P62: 1.032676503
F63: ='8. Funding_Adder_Revs'!F62 -> 2009-03-01 | G63: ='8. Funding_Adder_Revs'!G62 -> 2009 | H63: ='8. Funding_Adder_Revs'!H62 -> Q1 | J63: 1011.601472 | L63: ='5. SM_Rev_Reqt'!$M$58/12 -> 505.8007361 | M63: 1517.402208 | N63: ='8. Funding_Adder_Revs'!L62 -> 0.0245 | O63: 2.065353006 | P63: 3.098029509
F64: ='8. Funding_Adder_Revs'!F63 -> 2009-04-01 | G64: ='8. Funding_Adder_Revs'!G63 -> 2009 | H64: ='8. Funding_Adder_Revs'!H63 -> Q2 | J64: 1517.402208 | L64: ='5. SM_Rev_Reqt'!$M$58/12 -> 505.8007361 | M64: 2023.202944 | N64: ='8. Funding_Adder_Revs'!L63 -> 0.01 | O64: 1.26450184 | P64: 4.362531349
F65: ='8. Funding_Adder_Revs'!F64 -> 2009-05-01 | G65: ='8. Funding_Adder_Revs'!G64 -> 2009 | H65: ='8. Funding_Adder_Revs'!H64 -> Q2 | J65: 2023.202944 | L65: ='5. SM_Rev_Reqt'!$M$58/12 -> 505.8007361 | M65: 2529.003681 | N65: ='8. Funding_Adder_Revs'!L64 -> 0.01 | O65: 1.686002454 | P65: 6.048533803
F66: ='8. Funding_Adder_Revs'!F65 -> 2009-06-01 | G66: ='8. Funding_Adder_Revs'!G65 -> 2009 | H66: ='8. Funding_Adder_Revs'!H65 -> Q2 | J66: 2529.003681 | L66: ='5. SM_Rev_Reqt'!$M$58/12 -> 505.8007361 | M66: 3034.804417 | N66: ='8. Funding_Adder_Revs'!L65 -> 0.01 | O66: 2.107503067 | P66: 8.15603687
F67: ='8. Funding_Adder_Revs'!F66 -> 2009-07-01 | G67: ='8. Funding_Adder_Revs'!G66 -> 2009 | H67: ='8. Funding_Adder_Revs'!H66 -> Q3 | J67: 3034.804417 | L67: ='5. SM_Rev_Reqt'!$M$58/12 -> 505.8007361 | M67: 3540.605153 | N67: ='8. Funding_Adder_Revs'!L66 -> 0.0055 | O67: 1.390952024 | P67: 9.546988894
F68: ='8. Funding_Adder_Revs'!F67 -> 2009-08-01 | G68: ='8. Funding_Adder_Revs'!G67 -> 2009 | H68: ='8. Funding_Adder_Revs'!H67 -> Q3 | J68: 3540.605153 | L68: ='5. SM_Rev_Reqt'!$M$58/12 -> 505.8007361 | M68: 4046.405889 | N68: ='8. Funding_Adder_Revs'!L67 -> 0.0055 | O68: 1.622777362 | P68: 11.16976626
F69: ='8. Funding_Adder_Revs'!F68 -> 2009-09-01 | G69: ='8. Funding_Adder_Revs'!G68 -> 2009 | H69: ='8. Funding_Adder_Revs'!H68 -> Q3 | J69: 4046.405889 | L69: ='5. SM_Rev_Reqt'!$M$58/12 -> 505.8007361 | M69: 4552.206625 | N69: ='8. Funding_Adder_Revs'!L68 -> 0.0055 | O69: 1.854602699 | P69: 13.02436895
F70: ='8. Funding_Adder_Revs'!F69 -> 2009-10-01 | G70: ='8. Funding_Adder_Revs'!G69 -> 2009 | H70: ='8. Funding_Adder_Revs'!H69 -> Q4 | J70: 4552.206625 | L70: ='5. SM_Rev_Reqt'!$M$58/12 -> 505.8007361 | M70: 5058.007361 | N70: ='8. Funding_Adder_Revs'!L69 -> 0.0055 | O70: 2.086428036 | P70: 15.11079699
F71: ='8. Funding_Adder_Revs'!F70 -> 2009-11-01 | G71: ='8. Funding_Adder_Revs'!G70 -> 2009 | H71: ='8. Funding_Adder_Revs'!H70 -> Q4 | J71: 5058.007361 | L71: ='5. SM_Rev_Reqt'!$M$58/12 -> 505.8007361 | M71: 5563.808097 | N71: ='8. Funding_Adder_Revs'!L70 -> 0.0055 | O71: 2.318253374 | P71: 17.42905037
F72: ='8. Funding_Adder_Revs'!F71 -> 2009-12-01 | G72: ='8. Funding_Adder_Revs'!G71 -> 2009 | H72: ='8. Funding_Adder_Revs'!H71 -> Q4 | J72: 5563.808097 | L72: ='5. SM_Rev_Reqt'!$M$58/12 -> 505.8007361 | M72: 6069.608833 | N72: ='8. Funding_Adder_Revs'!L71 -> 0.0055 | O72: 2.550078711 | P72: 19.97912908
F73: ='8. Funding_Adder_Revs'!F72 -> 2010-01-01 | G73: ='8. Funding_Adder_Revs'!G72 -> 2010 | H73: ='8. Funding_Adder_Revs'!H72 -> Q1 | J73: 6069.608833 | L73: ='5. SM_Rev_Reqt'!$O$58/12 -> 1874.445833 | M73: 7944.054667 | N73: ='8. Funding_Adder_Revs'!L72 -> 0.0055 | O73: 2.781904049 | P73: 22.76103313
F74: ='8. Funding_Adder_Revs'!F73 -> 2010-02-01 | G74: ='8. Funding_Adder_Revs'!G73 -> 2010 | H74: ='8. Funding_Adder_Revs'!H73 -> Q1 | J74: 7944.054667 | L74: ='5. SM_Rev_Reqt'!$O$58/12 -> 1874.445833 | M74: 9818.5005 | N74: ='8. Funding_Adder_Revs'!L73 -> 0.0055 | O74: 3.641025056 | P74: 26.40205818
F75: ='8. Funding_Adder_Revs'!F74 -> 2010-03-01 | G75: ='8. Funding_Adder_Revs'!G74 -> 2010 | H75: ='8. Funding_Adder_Revs'!H74 -> Q1 | J75: 9818.5005 | L75: ='5. SM_Rev_Reqt'!$O$58/12 -> 1874.445833 | M75: 11692.94633 | N75: ='8. Funding_Adder_Revs'!L74 -> 0.0055 | O75: 4.500146063 | P75: 30.90220424
F76: ='8. Funding_Adder_Revs'!F75 -> 2010-04-01 | G76: ='8. Funding_Adder_Revs'!G75 -> 2010 | H76: ='8. Funding_Adder_Revs'!H75 -> Q2 | J76: 11692.94633 | L76: ='5. SM_Rev_Reqt'!$O$58/12 -> 1874.445833 | M76: 13567.39217 | N76: ='8. Funding_Adder_Revs'!L75 -> 0.0055 | O76: 5.359267069 | P76: 36.26147131
F77: ='8. Funding_Adder_Revs'!F76 -> 2010-05-01 | G77: ='8. Funding_Adder_Revs'!G76 -> 2010 | H77: ='8. Funding_Adder_Revs'!H76 -> Q2 | J77: 13567.39217 | L77: ='5. SM_Rev_Reqt'!$O$58/12 -> 1874.445833 | M77: 15441.838 | N77: ='8. Funding_Adder_Revs'!L76 -> 0.0055 | O77: 6.218388076 | P77: 42.47985939
F78: ='8. Funding_Adder_Revs'!F77 -> 2010-06-01 | G78: ='8. Funding_Adder_Revs'!G77 -> 2010 | H78: ='8. Funding_Adder_Revs'!H77 -> Q2 | J78: 15441.838 | L78: ='5. SM_Rev_Reqt'!$O$58/12 -> 1874.445833 | M78: 17316.28383 | N78: ='8. Funding_Adder_Revs'!L77 -> 0.0055 | O78: 7.077509083 | P78: 49.55736847
F79: ='8. Funding_Adder_Revs'!F78 -> 2010-07-01 | G79: ='8. Funding_Adder_Revs'!G78 -> 2010 | H79: ='8. Funding_Adder_Revs'!H78 -> Q3 | J79: 17316.28383 | L79: ='5. SM_Rev_Reqt'!$O$58/12 -> 1874.445833 | M79: 19190.72967 | N79: ='8. Funding_Adder_Revs'!L78 -> 0.0089 | O79: 12.84291051 | P79: 62.40027898
F80: ='8. Funding_Adder_Revs'!F79 -> 2010-08-01 | G80: ='8. Funding_Adder_Revs'!G79 -> 2010 | H80: ='8. Funding_Adder_Revs'!H79 -> Q3 | J80: 19190.72967 | L80: ='5. SM_Rev_Reqt'!$O$58/12 -> 1874.445833 | M80: 21065.1755 | N80: ='8. Funding_Adder_Revs'!L79 -> 0.0089 | O80: 14.2331245 | P80: 76.63340348
F81: ='8. Funding_Adder_Revs'!F80 -> 2010-09-01 | G81: ='8. Funding_Adder_Revs'!G80 -> 2010 | H81: ='8. Funding_Adder_Revs'!H80 -> Q3 | J81: 21065.1755 | L81: ='5. SM_Rev_Reqt'!$O$58/12 -> 1874.445833 | M81: 22939.62133 | N81: ='8. Funding_Adder_Revs'!L80 -> 0.0089 | O81: 15.6233385 | P81: 92.25674198
F82: ='8. Funding_Adder_Revs'!F81 -> 2010-10-01 | G82: ='8. Funding_Adder_Revs'!G81 -> 2010 | H82: ='8. Funding_Adder_Revs'!H81 -> Q4 | J82: 22939.62133 | L82: ='5. SM_Rev_Reqt'!$O$58/12 -> 1874.445833 | M82: 24814.06717 | N82: ='8. Funding_Adder_Revs'!L81 -> 0.012 | O82: 22.93962133 | P82: 115.1963633
F83: ='8. Funding_Adder_Revs'!F82 -> 2010-11-01 | G83: ='8. Funding_Adder_Revs'!G82 -> 2010 | H83: ='8. Funding_Adder_Revs'!H82 -> Q4 | J83: 24814.06717 | L83: ='5. SM_Rev_Reqt'!$O$58/12 -> 1874.445833 | M83: 26688.513 | N83: ='8. Funding_Adder_Revs'!L82 -> 0.012 | O83: 24.81406717 | P83: 140.0104305
F84: ='8. Funding_Adder_Revs'!F83 -> 2010-12-01 | G84: ='8. Funding_Adder_Revs'!G83 -> 2010 | H84: ='8. Funding_Adder_Revs'!H83 -> Q4 | J84: 26688.513 | K84: ='5. SM_Rev_Reqt'!O63 -> 5242.83 | L84: ='5. SM_Rev_Reqt'!$O$58/12 -> 1874.445833 | M84: 33805.78883 | N84: ='8. Funding_Adder_Revs'!L83 -> 0.012 | O84: 26.688513 | P84: 166.6989435
F85: ='8. Funding_Adder_Revs'!F84 -> 2011-01-01 | G85: ='8. Funding_Adder_Revs'!G84 -> 2011 | H85: ='8. Funding_Adder_Revs'!H84 -> Q1 | J85: 33805.78883 | L85: ='5. SM_Rev_Reqt'!$Q$58/12 -> 3395.657361 | M85: 37201.44619 | N85: ='8. Funding_Adder_Revs'!L84 -> 0.0147 | O85: 41.41209132 | P85: 208.1110348
F86: ='8. Funding_Adder_Revs'!F85 -> 2011-02-01 | G86: ='8. Funding_Adder_Revs'!G85 -> 2011 | H86: ='8. Funding_Adder_Revs'!H85 -> Q1 | J86: 37201.44619 | L86: ='5. SM_Rev_Reqt'!$Q$58/12 -> 3395.657361 | M86: 40597.10356 | N86: ='8. Funding_Adder_Revs'!L85 -> 0.0147 | O86: 45.57177159 | P86: 253.6828064
F87: ='8. Funding_Adder_Revs'!F86 -> 2011-03-01 | G87: ='8. Funding_Adder_Revs'!G86 -> 2011 | H87: ='8. Funding_Adder_Revs'!H86 -> Q1 | J87: 40597.10356 | L87: ='5. SM_Rev_Reqt'!$Q$58/12 -> 3395.657361 | M87: 43992.76092 | N87: ='8. Funding_Adder_Revs'!L86 -> 0.0147 | O87: 49.73145186 | P87: 303.4142582
F88: ='8. Funding_Adder_Revs'!F87 -> 2011-04-01 | G88: ='8. Funding_Adder_Revs'!G87 -> 2011 | H88: ='8. Funding_Adder_Revs'!H87 -> Q2 | J88: 43992.76092 | L88: ='5. SM_Rev_Reqt'!$Q$58/12 -> 3395.657361 | M88: 47388.41828 | N88: ='8. Funding_Adder_Revs'!L87 -> 0.0147 | O88: 53.89113212 | P88: 357.3053904
F89: ='8. Funding_Adder_Revs'!F88 -> 2011-05-01 | G89: ='8. Funding_Adder_Revs'!G88 -> 2011 | H89: ='8. Funding_Adder_Revs'!H88 -> Q2 | J89: 47388.41828 | L89: ='5. SM_Rev_Reqt'!$Q$58/12 -> 3395.657361 | M89: 50784.07564 | N89: ='8. Funding_Adder_Revs'!L88 -> 0.0147 | O89: 58.05081239 | P89: 415.3562028
F90: ='8. Funding_Adder_Revs'!F89 -> 2011-06-01 | G90: ='8. Funding_Adder_Revs'!G89 -> 2011 | H90: ='8. Funding_Adder_Revs'!H89 -> Q2 | J90: 50784.07564 | L90: ='5. SM_Rev_Reqt'!$Q$58/12 -> 3395.657361 | M90: =J90+K90+L90 -> 54179.733 | N90: ='8. Funding_Adder_Revs'!L89 -> 0.0147 | O90: =J90*N90/12 -> 62.21049266 | P90: 477.5666954
F91: ='8. Funding_Adder_Revs'!F90 -> 2011-07-01 | G91: ='8. Funding_Adder_Revs'!G90 -> 2011 | H91: ='8. Funding_Adder_Revs'!H90 -> Q3 | J91: =M90 -> 54179.733 | L91: ='5. SM_Rev_Reqt'!$Q$58/12 -> 3395.657361 | M91: 57575.39036 | N91: ='8. Funding_Adder_Revs'!L90 -> 0.0147 | O91: 66.37017292 | P91: =O91+P90 -> 543.9368683
F92: ='8. Funding_Adder_Revs'!F91 -> 2011-08-01 | G92: ='8. Funding_Adder_Revs'!G91 -> 2011 | H92: ='8. Funding_Adder_Revs'!H91 -> Q3 | J92: 57575.39036 | L92: ='5. SM_Rev_Reqt'!$Q$58/12 -> 3395.657361 | M92: 60971.04772 | N92: ='8. Funding_Adder_Revs'!L91 -> 0.0147 | O92: 70.52985319 | P92: 614.4667215
F93: ='8. Funding_Adder_Revs'!F92 -> 2011-09-01 | G93: ='8. Funding_Adder_Revs'!G92 -> 2011 | H93: ='8. Funding_Adder_Revs'!H92 -> Q3 | J93: 60971.04772 | L93: ='5. SM_Rev_Reqt'!$Q$58/12 -> 3395.657361 | M93: 64366.70508 | N93: ='8. Funding_Adder_Revs'!L92 -> 0.0147 | O93: 74.68953346 | P93: 689.156255
F94: ='8. Funding_Adder_Revs'!F93 -> 2011-10-01 | G94: ='8. Funding_Adder_Revs'!G93 -> 2011 | H94: ='8. Funding_Adder_Revs'!H93 -> Q4 | J94: 64366.70508 | L94: ='5. SM_Rev_Reqt'!$Q$58/12 -> 3395.657361 | M94: 67762.36244 | N94: ='8. Funding_Adder_Revs'!L93 -> 0.0147 | O94: 78.84921373 | P94: 768.0054687
F95: ='8. Funding_Adder_Revs'!F94 -> 2011-11-01 | G95: ='8. Funding_Adder_Revs'!G94 -> 2011 | H95: ='8. Funding_Adder_Revs'!H94 -> Q4 | J95: 67762.36244 | L95: ='5. SM_Rev_Reqt'!$Q$58/12 -> 3395.657361 | M95: 71158.01981 | N95: ='8. Funding_Adder_Revs'!L94 -> 0.0147 | O95: 83.00889399 | P95: 851.0143627
F96: ='8. Funding_Adder_Revs'!F95 -> 2011-12-01 | G96: ='8. Funding_Adder_Revs'!G95 -> 2011 | H96: ='8. Funding_Adder_Revs'!H95 -> Q4 | J96: 71158.01981 | K96: ='5. SM_Rev_Reqt'!Q63 -> 3699.79 | L96: ='5. SM_Rev_Reqt'!$Q$58/12 -> 3395.657361 | M96: 78253.46717 | N96: ='8. Funding_Adder_Revs'!L95 -> 0.0147 | O96: 87.16857426 | P96: 938.182937
F97: ='8. Funding_Adder_Revs'!F96 -> 2012-01-01 | G97: ='8. Funding_Adder_Revs'!G96 -> 2012 | H97: ='8. Funding_Adder_Revs'!H96 -> Q1 | J97: 78253.46717 | M97: 78253.46717 | N97: ='8. Funding_Adder_Revs'!L96 -> 0.0147 | O97: 95.86049728 | P97: 1034.043434
F98: ='8. Funding_Adder_Revs'!F97 -> 2012-02-01 | G98: ='8. Funding_Adder_Revs'!G97 -> 2012 | H98: ='8. Funding_Adder_Revs'!H97 -> Q1 | J98: 78253.46717 | M98: 78253.46717 | N98: ='8. Funding_Adder_Revs'!L97 -> 0.0147 | O98: 95.86049728 | P98: 1129.903932
F99: ='8. Funding_Adder_Revs'!F98 -> 2012-03-01 | G99: ='8. Funding_Adder_Revs'!G98 -> 2012 | H99: ='8. Funding_Adder_Revs'!H98 -> Q1 | J99: 78253.46717 | M99: 78253.46717 | N99: ='8. Funding_Adder_Revs'!L98 -> 0.0147 | O99: 95.86049728 | P99: 1225.764429
F100: ='8. Funding_Adder_Revs'!F99 -> 2012-04-01 | G100: ='8. Funding_Adder_Revs'!G99 -> 2012 | H100: ='8. Funding_Adder_Revs'!H99 -> Q2 | J100: 78253.46717 | M100: 78253.46717 | N100: ='8. Funding_Adder_Revs'!L99 -> 0.0147 | O100: 95.86049728 | P100: 1321.624926
F101: ='8. Funding_Adder_Revs'!F100 -> 2012-05-01 | G101: ='8. Funding_Adder_Revs'!G100 -> 2012 | H101: ='8. Funding_Adder_Revs'!H100 -> Q2 | J101: 78253.46717 | M101: 78253.46717 | N101: ='8. Funding_Adder_Revs'!L100 -> 0.0147 | O101: 95.86049728 | P101: 1417.485423
F102: ='8. Funding_Adder_Revs'!F101 -> 2012-06-01 | G102: ='8. Funding_Adder_Revs'!G101 -> 2012 | H102: ='8. Funding_Adder_Revs'!H101 -> Q2 | J102: 78253.46717 | M102: 78253.46717 | N102: ='8. Funding_Adder_Revs'!L101 -> 0.0147 | O102: 95.86049728 | P102: 1513.345921
F103: ='8. Funding_Adder_Revs'!F102 -> 2012-07-01 | G103: ='8. Funding_Adder_Revs'!G102 -> 2012 | H103: ='8. Funding_Adder_Revs'!H102 -> Q3 | J103: 78253.46717 | M103: 78253.46717 | N103: ='8. Funding_Adder_Revs'!L102 -> 0.0147 | O103: 95.86049728 | P103: 1609.206418
F104: ='8. Funding_Adder_Revs'!F103 -> 2012-08-01 | G104: ='8. Funding_Adder_Revs'!G103 -> 2012 | H104: ='8. Funding_Adder_Revs'!H103 -> Q3 | J104: 78253.46717 | M104: 78253.46717 | N104: ='8. Funding_Adder_Revs'!L103 -> 0.0147 | O104: 95.86049728 | P104: 1705.066915
F105: ='8. Funding_Adder_Revs'!F104 -> 2012-09-01 | G105: ='8. Funding_Adder_Revs'!G104 -> 2012 | H105: ='8. Funding_Adder_Revs'!H104 -> Q3 | J105: 78253.46717 | M105: 78253.46717 | N105: ='8. Funding_Adder_Revs'!L104 -> 0.0147 | O105: 95.86049728 | P105: 1800.927412
F106: ='8. Funding_Adder_Revs'!F105 -> 2012-10-01 | G106: ='8. Funding_Adder_Revs'!G105 -> 2012 | H106: ='8. Funding_Adder_Revs'!H105 -> Q4 | J106: 78253.46717 | M106: 78253.46717 | N106: ='8. Funding_Adder_Revs'!L105 -> 0.0147 | O106: 95.86049728 | P106: 1896.78791
F107: ='8. Funding_Adder_Revs'!F106 -> 2012-11-01 | G107: ='8. Funding_Adder_Revs'!G106 -> 2012 | H107: ='8. Funding_Adder_Revs'!H106 -> Q4 | J107: 78253.46717 | M107: 78253.46717 | N107: ='8. Funding_Adder_Revs'!L106 -> 0 | O107: 0 | P107: 1896.78791
F108: ='8. Funding_Adder_Revs'!F107 -> 2012-12-01 | G108: ='8. Funding_Adder_Revs'!G107 -> 2012 | H108: ='8. Funding_Adder_Revs'!H107 -> Q4 | J108: 78253.46717 | M108: 78253.46717 | N108: ='8. Funding_Adder_Revs'!L107 -> 0 | O108: 0 | P108: 1896.78791
K110: =SUM(K25:K108) -> 8942.62 | L110: =SUM(L25:L108) -> 69310.84717 | M110: =K110+L110 -> 78253.46717

Sheet 8B. Opex_Interest_annual
B21: Year | D21: OM&A | F21: Amortization Expense | H21: Cumulative OM&A and Amortization Expense | J21: Average Cumulative OM&A and Amortization Expense | L21: Average Annual Prescribed Interest Rate for Deferral and Variance Accounts (from Sheets 8A and 8B) | N21: Simple Interest on OM&A and Amortization Expenses
D22: (from Sheet 5) | F22: (from Sheet 5)
B23: 2006 | D23: ='5. SM_Rev_Reqt'!G50 -> 0 | F23: ='5. SM_Rev_Reqt'!G58 -> 0 | H23: =D23+F23 -> 0 | J23: =H23/2 -> 0 | L23: =AVERAGE('8A. Opex_Interest_monthly'!$C$26:$C$28,'8A. Opex_Interest_monthly'!$C$26) -> 0.04365 | N23: =J23*L23 -> 0
B24: 2007 | D24: ='5. SM_Rev_Reqt'!I50 -> 0 | F24: ='5. SM_Rev_Reqt'!I58 -> 0 | H24: =H23+D24+F24 -> 0 | J24: =(H24+H23)/2 -> 0 | L24: =AVERAGE('8A. Opex_Interest_monthly'!$C$29:$C$32) -> 0.047275 | N24: 0
B25: 2008 | D25: ='5. SM_Rev_Reqt'!K50 -> 0 | F25: ='5. SM_Rev_Reqt'!K58 -> 0 | H25: 0 | J25: 0 | L25: =AVERAGE('8A. Opex_Interest_monthly'!$C$33:$C$36) -> 0.0398 | N25: 0
B26: 2009 | D26: ='5. SM_Rev_Reqt'!M50 -> 0 | F26: ='5. SM_Rev_Reqt'!M58 -> 6069.608833 | H26: 6069.608833 | J26: 3034.804417 | L26: =AVERAGE('8A. Opex_Interest_monthly'!$C$37:$C$40) -> 0.011375 | N26: 34.52090024
B27: 2010 | D27: ='5. SM_Rev_Reqt'!O50 -> 5242.83 | F27: ='5. SM_Rev_Reqt'!O58 -> 22493.35 | H27: 33805.78883 | J27: 19937.69883 | L27: =AVERAGE('8A. Opex_Interest_monthly'!$C$41:$C$44) -> 0.007975 | N27: 159.0031482
B28: 2011 | D28: ='5. SM_Rev_Reqt'!Q50 -> 3699.79 | F28: ='5. SM_Rev_Reqt'!Q58 -> 40747.88833 | H28: 78253.46717 | J28: 56029.628 | L28: =AVERAGE('8A. Opex_Interest_monthly'!$C$45:$C$48) -> 0.0147 | N28: 823.6355316
B29: 2012 | D29: ='5. SM_Rev_Reqt'!S50 -> 5957.52 | F29: ='5. SM_Rev_Reqt'!S58 -> 48648.29433 | H29: 132859.2815 | J29: 105556.3743 | L29: =L28 -> 0.0147 | N29: 1551.678703
B31: Cumulative Interest to 2011 | N31: =SUM(N23:N28) -> 1017.15958
B32: Cumulative Interest to 2012 | N32: =SUM(N23:N29) -> 2568.838283

Sheet 9. SMFA_SMDR_SMIRR
B20: Check if applicable
E22: Smart Meter Funding Adder (SMFA)
C24: X | E24: Smart Meter Disposition Rider (SMDR) | G24: The SMDR is calculated based on costs to December 31, 2011
C26: X | E26: Smart Meter Incremental Revenue Requirement Rate Rider (SMIRR) | G26: The SMIRR is calculated based on the incremental revenue requirement associated with the recovery of capital related costs to December 31, 2012 and associated OM&A.
G28: 2006 | I28: 2007 | K28: 2008 | M28: 2009 | O28: 2010 | Q28: 2011 | S28: 2012 and later | U28: Total
C30: Deferred and forecasted Smart Meter Incremental Revenue Requirement (from Sheet 5) | G30: ='5. SM_Rev_Reqt'!G70 -> 0 | I30: ='5. SM_Rev_Reqt'!I70 -> 0 | K30: ='5. SM_Rev_Reqt'!K70 -> 0 | M30: ='5. SM_Rev_Reqt'!M70 -> 13444.02366 | O30: ='5. SM_Rev_Reqt'!O70 -> 53224.97757 | Q30: ='5. SM_Rev_Reqt'!Q70 -> 83108.70248 | S30: ='5. SM_Rev_Reqt'!S70 -> 97052.2752 | U30: =SUM(G30:S30) -> 246829.9789
C32: Interest on Deferred and forecasted OM&A and Amortization Expense (Sheet 8A/8B) | G32: =IF($C35="X",G35,IF($C37="X",G37,0)) -> 0 | I32: =IF($C35="X",I35,IF($C37="X",I37,0)) -> 0 | K32: =IF($C35="X",K35,IF($C37="X",K37,0)) -> 0 | M32: =IF($C35="X",M35,IF($C37="X",M37,0)) -> 34.52090024 | O32: =IF($C35="X",O35,IF($C37="X",O37,0)) -> 159.0031482 | Q32: =IF($C35="X",Q35,IF($C37="X",Q37,0)) -> 823.6355316 | S32: =IF($C35="X",S35,IF($C37="X",S37,0)) -> 1551.678703 | U32: =SUM(G32:S32) -> 2568.838283
C33: (Check one of the boxes below)
E35: Sheet 8A (Interest calculated on monthly balances) | G35: =IF(C35="X",SUM('8A. Opex_Interest_monthly'!O25:O36),"") ->  | I35: =IF(C35="X",SUM('8A. Opex_Interest_monthly'!O37:O48),"") ->  | K35: =IF(C35="X",SUM('8A. Opex_Interest_monthly'!O49:O60),"") ->  | M35: =IF(C35="X",SUM('8A. Opex_Interest_monthly'!O61:O72),"") ->  | O35: =IF(C35="X",SUM('8A. Opex_Interest_monthly'!O73:O84),"") ->  | Q35: =IF(C35="X",SUM('8A. Opex_Interest_monthly'!O85:O96),"") ->  | S35: =IF(E35="X",SUM('8A. Opex_Interest_monthly'!O97:O107),0) -> 0 | U35: =SUM(G35:S35) -> 0
C37: X | E37: Sheet 8B (Interest calculated on average annual balances) | G37: =IF(C37="X",'8B. Opex_Interest_annual'!N23,"") -> 0 | I37: =IF(C37="X",'8B. Opex_Interest_annual'!N24,"") -> 0 | K37: =IF(C37="X",'8B. Opex_Interest_annual'!N25,"") -> 0 | M37: =IF(C37="X",'8B. Opex_Interest_annual'!N26,"") -> 34.52090024 | O37: =IF(C37="X",'8B. Opex_Interest_annual'!N27,"") -> 159.0031482 | Q37: =IF(C37="X",'8B. Opex_Interest_annual'!N28,"") -> 823.6355316 | S37: =IF(C37="X",'8B. Opex_Interest_annual'!N29,"") -> 1551.678703 | U37: =SUM(G37:Q37) -> 1017.15958
C40: SMFA Revenues (from Sheet 8) | G40: =SUM('8. Funding_Adder_Revs'!K24:K35) -> 9330.14 | I40: =SUM('8. Funding_Adder_Revs'!K36:K47) -> 16549.83 | K40: =SUM('8. Funding_Adder_Revs'!K48:K59) -> 16647.39 | M40: =SUM('8. Funding_Adder_Revs'!K60:K71) -> 44006.96 | O40: =SUM('8. Funding_Adder_Revs'!K72:K83) -> 82356.96 | Q40: =SUM('8. Funding_Adder_Revs'!K84:K95) -> 97527.38 | S40: =SUM('8. Funding_Adder_Revs'!K96:K107) -> 40384.76 | U40: =SUM(G40:S40) -> 306803.42
C42: SMFA Interest (from Sheet 8) | G42: =SUM('8. Funding_Adder_Revs'!M24:M35) -> 90.72 | I42: =SUM('8. Funding_Adder_Revs'!M36:M47) -> 778.31 | K42: =SUM('8. Funding_Adder_Revs'!M48:M59) -> 1278.7 | M42: =SUM('8. Funding_Adder_Revs'!M60:M71) -> 564.6 | O42: =SUM('8. Funding_Adder_Revs'!M72:M83) -> 998.42 | Q42: =SUM('8. Funding_Adder_Revs'!M84:M95) -> 3100.99 | S42: =SUM('8. Funding_Adder_Revs'!M96:M107) -> 3608.91 | U42: =SUM(G42:S42) -> 10420.65
C44: Net Deferred Revenue Requirement | G44: =(G30+G32)-(G40+G42) -> -9420.86 | I44: =(I30+I32)-(I40+I42) -> -17328.14 | K44: =(K30+K32)-(K40+K42) -> -17926.09 | M44: =(M30+M32)-(M40+M42) -> -31093.01544 | O44: =(O30+O32)-(O40+O42) -> -29971.39928 | Q44: =(Q30+Q32)-(Q40+Q42) -> -16696.03199 | S44: =(S30+S32)-(S40+S42) -> 54610.2839 | U44: =(U30+U32)-(U40+U42) -> -67825.25282
C46: Number of Metered Customers (average for 2012 test year) | S46: 5530
C48: Calculation of Smart Meter Funding Adder (per metered customer per month)
D50: Net Deferred Revenues from 2006 to April 30, 2012 | G50: =U44 -> -67825.25282
D52: SMFA | F52: May 1, 2012 to April 30, 201X | G52: =IF(S46=0,"",ROUND(S44/(S46*12),2)) -> 0.82
D54: Check: Forecasted SMFA Revenues for 2012 test year | G54: =IF(S46=0,"",G52*S46*12) -> 54415.2
C56: Calculation of Smart Meter Disposition Rider (per metered customer per month)
D58: Years for collection or refunding | G58: 2
D60: Deferred Incremental Revenue Requirement from 2006 to December 31, 2011 | G60: =SUM(G30:Q30)+SUM(G32:S32) -> 152346.542
E61: plus Interest on OM&A and Amortization
D62: SMFA Revenues collected from 2006 to 2012 test year (inclusive) | G62: =U40+SUM(G42:S42) -> 317224.07
E63: Plus Simple Interest on SMFA Revenues
D64: Net Deferred Revenue Requirement | G64: =G60-G62 -> -164877.528
D66: SMDR | F66: May 1, 2012 to April 30, 2014 | G66: =IF(S46=0,"",ROUND(G64/(S46*12*G58),2)) -> -1.24 | I66: =IF(ISERROR(G68/G64), "Error", IF(G68/G64>=95%, "Match", "Error")) -> Match
D68: Check: Forecasted SMDR Revenues | G68: =IF(ISERROR(G66*S46*12*G58), "", G66*S46*12*G58) -> -164572.8
C70: Calculation of Smart Meter Incremental Revenue Requirement Rate Rider (per metered customer per month)
D72: Incremental Revenue Requirement for 2012 | G72: =S30 -> 97052.2752
D74: SMIRR | G74: =IF(ISERROR(ROUND(G72/(S46*12),2)), "", ROUND(G72/(S46*12),2)) -> 1.46 | I74: =IF(ISERROR(G76/G72), "Error", IF(G76/G72>=95%, "Match", "Error")) -> Match
D76: Check: Forecasted SMIRR Revenues | G76: =IF(ISERROR(G74*S46*12), "", G74*S46*12) -> 96885.6

Sheet SMDR Cost Allocation
B1: Hydro Hawkesbury Inc.
C3: 2009 | D3: 2010 | E3: 2011 | G3: Total 2009 to 2011 | H3: Explanation Allocator | I3: ID and Factors | J3: Total | K3: Residential | L3: General Service Less than 50 kW | M3: General Service Greater than 50 kW
B4: Revenue Requirement for the Historical Years | C4: ='9. SMFA_SMDR_SMIRR'!M30+'9. SMFA_SMDR_SMIRR'!M32 -> 13478.54456 | D4: ='9. SMFA_SMDR_SMIRR'!O30+'9. SMFA_SMDR_SMIRR'!O32 -> 53383.98072 | E4: ='9. SMFA_SMDR_SMIRR'!Q30+'9. SMFA_SMDR_SMIRR'!Q32 -> 83932.33801 | G4: =SUM(C4:E4) -> 150794.8633
B6: Total Return on Capital | C6: ='5. SM_Rev_Reqt'!M47 -> 6543.497532 | D6: ='5. SM_Rev_Reqt'!O47 -> 24028.73428 | E6: ='5. SM_Rev_Reqt'!Q47 -> 39073.11481 | G6: =SUM(C6:E6) -> 69645.34663 | H6: Smart Meter -Capital | J6: =SUM(K6:M6) -> 1 | K6: 0.8121633323 | L6: 0.1878366677 | M6: 0
G7: Allocated per Class | J7: =SUM(K7:M7) -> 69645.34663 | K7: =K6*$G$6 -> 56563.3968 | L7: =L6*$G$6 -> 13081.94983 | M7: =M6*$G$6 -> 0
B8: Amortization | C8: ='5. SM_Rev_Reqt'!M58+'9. SMFA_SMDR_SMIRR'!M32 -> 6104.129734 | D8: ='5. SM_Rev_Reqt'!O58+'9. SMFA_SMDR_SMIRR'!O32 -> 22652.35315 | E8: ='5. SM_Rev_Reqt'!Q58+'9. SMFA_SMDR_SMIRR'!Q32 -> 41571.52386 | G8: =SUM(C8:E8) -> 70328.00675 | H8: =H6 -> Smart Meter -Capital | J8: =SUM(K8:M8) -> 1 | K8: =K6 -> 0.8121633323 | L8: =L6 -> 0.1878366677 | M8: =M6 -> 0
G9: Allocated per Class | J9: =SUM(K9:M9) -> 70328.00675 | K9: =$G$8*K8 -> 57117.82831 | L9: =$G$8*L8 -> 13210.17843 | M9: =$G$8*M8 -> 0
B10: Operating Expenses | C10: ='5. SM_Rev_Reqt'!M50 -> 0 | D10: ='5. SM_Rev_Reqt'!O50 -> 5242.83 | E10: ='5. SM_Rev_Reqt'!Q50 -> 3699.79 | G10: =SUM(C10:E10) -> 8942.62 | H10: Number of Smart Meters Installed for each Class | J10: =SUM(K10:M10) -> 5381 | K10: ='2. Smart_Meter_Costs'!U25 -> 4803 | L10: ='2. Smart_Meter_Costs'!U27 -> 578 | M10: ='2. Smart_Meter_Costs'!U33 -> 0
G11: Allocated per Class | J11: =SUM(K11:L11) -> 8942.62 | K11: =$G$10/$J$10*K10 -> 7982.048664 | L11: =$G$10/$J$10*L10 -> 960.5713362 | M11: =$G$10/$J$10*M10 -> 0
B12: Grossed-up Taxes/PILs | C12: ='5. SM_Rev_Reqt'!M68 -> 830.9172939 | D12: ='5. SM_Rev_Reqt'!O68 -> 1460.063285 | E12: ='5. SM_Rev_Reqt'!Q68 -> -412.0906714 | G12: =SUM(C12:E12) -> 1878.889908 | H12: Revenue Requirement allocated to each Class before PILs | J12: =SUM(K12:M12) -> 148915.9734 | K12: =K7+K9+K11 -> 121663.2738 | L12: =L7+L9+L11 -> 27252.6996 | M12: =M7+M9+M11 -> 0
G13: Allocated per Class | J13: =SUM(K13:M13) -> 1878.889908 | K13: =$G$12/$J$12*K12 -> 1535.039473 | L13: =$G$12/$J$12*L12 -> 343.8504351 | M13: =$G$12/$J$12*M12 -> 0
J14: Total | K14: Residential | L14: General Service Less than 50 kW | M14: =M3 -> General Service Greater than 50 kW
B15: TOTAL REVENUE REQUIREMENT | G15: =G6+G8+G10+G12 -> 150794.8633 | J15: =+J7+J9+J11+J13 -> 150794.8633 | K15: =+K7+K9+K11+K13 -> 123198.3132 | L15: =+L7+L9+L11+L13 -> 27596.55003 | M15: =+M7+M9+M11+M13 -> 0
G16: Percentage of costs allocated to Residential and GS < 50 kW customer classes | J16: =SUM(K16:M16) -> 1 | K16: =K15/J15 -> 0.8169927713 | L16: =L15/J15 -> 0.1830072287 | M16: =M15/J15 -> 0
B17: Revenue Generated from Smart Meter Funding Adder | G17: ='8. Funding_Adder_Revs'!O109 -> 317224.07
C18: Revenues Generated from SMFA | G18: =G17 -> 317224.07 | K18: =G37 -> 270730.3762 | L18: =H37 -> 44990.37384 | M18: =I37 -> 0
B19: Net Deferred Revenue Requirement | G19: =G15-G17 -> -166429.2067 | K19: =K18/(SUM(K18:M18)) -> 0.8574994712 | L19: =L18/(SUM(K18:M18)) -> 0.1425005288
G20: Allocated per Class | J20: =SUM(K20:M20) -> -164925.8867 | K20: =K15-K18 -> -147532.0629 | L20: =L15-L18 -> -17393.8238 | M20: =M15-M18 -> 0
G21: Number of Metered Customers | I21: (2012) | K21: =K10 -> 4803 | L21: =L10 -> 578 | M21: =M10 -> 0
F22: Smart Meter Disposition Rate Rider | K22: =K20/K21/12/'9. SMFA_SMDR_SMIRR'!G58 -> -1.279860356 | L22: =L20/L21/12/'9. SMFA_SMDR_SMIRR'!G58 -> -1.253880032 | M22: =M20/M21/12 -> 
B26: Smart Meter Funding Adder Revenues | C26: Number of customers | G26: Estimated SMFA Revenues
B27: Year | C27: Residential | D27: GS < 50 kW | E27: Other Metered Customer Classes | G27: Residential | H27: GS < 50 kW | I27: Other Metered Customer Classes | J27: Total
B29: 2006 (May 1, 2006) | C29: =K21 -> 4803 | D29: =L21 -> 578 | E29: =M21 -> 0 | G29: 8408.918524 | H29: 1011.941476 | I29: =($J29/SUM($C29:$E29))*E29 -> 0 | J29: =SUM('8. Funding_Adder_Revs'!O35) -> 9420.86
B30: 2007 | C30: =C29 -> 4803 | D30: 578 | E30: 0 | G30: 15466.83821 | H30: 1861.301788 | I30: 0 | J30: ='8. Funding_Adder_Revs'!O47 -> 17328.14
B31: 2008 | C31: 4803 | D31: 578 | E31: 0 | G31: 16000.55943 | H31: 1925.530574 | I31: 0 | J31: ='8. Funding_Adder_Revs'!O59 -> 17926.09
B32: 2009 | C32: 4803 | D32: 578 | E32: 0 | G32: 38777.26 | H32: 5794.3 | I32: 0 | J32: ='8. Funding_Adder_Revs'!O71 -> 44571.56
B33: 2010 | C33: 4803 | D33: 578 | E33: 0 | G33: 66517.59 | H33: 16837.79 | I33: 0 | J33: ='8. Funding_Adder_Revs'!O83 -> 83355.38
B34: 2011 | C34: 4803 | D34: 578 | E34: 0 | G34: 88389.17 | H34: 12239.2 | I34: 0 | J34: ='8. Funding_Adder_Revs'!O95 -> 100628.37
B35: 2012 (to April 30, 2012) | C35: 4803 | D35: 578 | E35: 0 | G35: =36591.7+578.34 -> 37170.04 | H35: =5156.64+160.72+2.95 -> 5320.31 | I35: 0 | J35: ='8. Funding_Adder_Revs'!O107 -> 43993.67
G37: =SUM(G29:G35) -> 270730.3762 | H37: =SUM(H29:H35) -> 44990.37384 | I37: =SUM(I29:I35) -> 0 | J37: =SUM(J29:J35) -> 317224.07

Sheet SMIRR Cost Allocation
B1: Hydro Hawkesbury Inc.
C3: 2012 | E3: Total 2012 | F3: Explanation Allocator | G3: ID and Factors | H3: Total | I3: Residential | J3: General Service Less than 50 kW | K3: General Service Greater than 50 kW
B4: Revenue Requirement for the Historical Years | C4: ='5. SM_Rev_Reqt'!S70 -> 97052.2752 | E4: =SUM(C4:C4) -> 97052.2752
B6: Total Return on Capital | C6: ='5. SM_Rev_Reqt'!S47 -> 41594.7074 | E6: =SUM(C6:C6) -> 41594.7074 | F6: Smart Meter -Capital | G6: CWMC | H6: =SUM(I6:K6) -> 1 | I6: ='SMDR Cost Allocation'!K6 -> 0.8121633323 | J6: ='SMDR Cost Allocation'!L6 -> 0.1878366677 | K6: ='SMDR Cost Allocation'!M6 -> 0
E7: Allocated per Class | H7: =SUM(I7:K7) -> 41594.7074 | I7: =I6*$E$6 -> 33781.69617 | J7: =J6*$E$6 -> 7813.011232 | K7: =K6*$E$6 -> 0
B8: Amortization | C8: ='5. SM_Rev_Reqt'!S58 -> 48648.29433 | E8: =SUM(C8:C8) -> 48648.29433 | F8: =F6 -> Smart Meter -Capital | G8: =G6 -> CWMC | H8: =SUM(I8:K8) -> 1 | I8: =I6 -> 0.8121633323 | J8: =J6 -> 0.1878366677 | K8: =K6 -> 0
E9: Allocated per Class | H9: =SUM(I9:K9) -> 48648.29433 | I9: =$E$8*I8 -> 39510.36084 | J9: =$E$8*J8 -> 9137.933496 | K9: =$E$8*K8 -> 0
B10: Operating Expenses | C10: ='5. SM_Rev_Reqt'!S63 -> 5957.52 | E10: =SUM(C10:C10) -> 5957.52 | F10: Number of Smart Meters Installed for each Class | H10: =SUM(I10:K10) -> 5381 | I10: ='2. Smart_Meter_Costs'!U25 -> 4803 | J10: ='2. Smart_Meter_Costs'!U27 -> 578 | K10: ='2. Smart_Meter_Costs'!U33 -> 0
E11: Allocated per Class | H11: =SUM(I11:J11) -> 5957.52 | I11: =$E$10/$H$10*I10 -> 5317.593117 | J11: =$E$10/$H$10*J10 -> 639.9268835 | K11: =$E$10/$H$10*K10 -> 0
B12: Grossed-up Taxes/PILs | C12: ='5. SM_Rev_Reqt'!S68 -> 851.753457 | E12: =SUM(C12:C12) -> 851.753457 | F12: Revenue Requirement allocated to each Class before PILs | H12: =SUM(I12:K12) -> 96200.52174 | I12: =I7+I9+I11 -> 78609.65013 | J12: =J7+J9+J11 -> 17590.87161 | K12: =K7+K9+K11 -> 0
E13: Allocated per Class | H13: =SUM(I13:K13) -> 851.753457 | I13: =$E$12/$H$12*I12 -> 696.00497 | J13: =$E$12/$H$12*J12 -> 155.748487 | K13: =$E$12/$H$12*K12 -> 0
H14: Total | I14: Residential | J14: General Service Less than 50 kW | K14: General Service Less than 50 kW
B15: TOTAL REVENUE REQUIREMENT | E15: =E6+E8+E10+E12 -> 97052.2752 | H15: =+H7+H9+H11+H13 -> 97052.2752 | I15: =+I7+I9+I11+I13 -> 79305.6551 | J15: =+J7+J9+J11+J13 -> 17746.6201 | K15: =+K7+K9+K11+K13 -> 0
E16: Percentage of costs allocated to Residential and GS < 50 kW customer classes | H16: =SUM(I16:K16) -> 1 | I16: =I15/H15 -> 0.8171436984 | J16: =J15/H15 -> 0.1828563016 | K16: =K15/H15 -> 0
E17: Number of Metered Customers | G17: (2012) | I17: =I10 -> 4803 | J17: =J10 -> 578 | K17: =K10 -> 0
D18: Smart Meter Disposition Rate Rider | I18: =I15/I17/12 -> 1.375974306 | J18: =J15/J17/12 -> 2.558624582 | K18: =K15/K17/12 -> 

Sheet Sheet1
B3: Rate Class | C3: SMDR | E3: SMIRR
C4: Two Year Recovery
B6: ='SMDR Cost Allocation'!K3 -> Residential | C6: =ROUND('SMDR Cost Allocation'!K22,2) -> -1.28 | E6: =ROUND('SMIRR Cost Allocation'!I18,2) -> 1.38
B8: ='SMDR Cost Allocation'!L3 -> General Service Less than 50 kW | C8: =ROUND('SMDR Cost Allocation'!L22,2) -> -1.25 | E8: =ROUND('SMIRR Cost Allocation'!J18,2) -> 2.56
